Workbook

Sheet All local authorities
A1: Description - all local authorities 2020-2021 | B1: Q1 20/21 | C1: Q2 20/21 | D1: Q3 20/21 | E1: Q4 20/21
A2: Number of local authorities subscribing at end of quarter | B2: 67 | C2: 69 | D2: 69 | E2: 70
A3: Number of local authorities with data uploaded at end of quarter - all case types | B3: 67 | C3: 67 | D3: 68 | E3: 68
A4: Number of local authorities with data for family cases | B4: 67 | C4: 67 | D4: 67 | E4: 67
A5: Number of local authorities with data for adult cases | B5: 42 | C5: 42 | D5: 43 | E5: 43
A6: Number of local authorities with data for children / care leaver cases | B6: 29 | C6: 30 | D6: 28 | E6: 28
A10: Family cases | B10: Q1 20/21 | C10: Q2 20/21 | D10: Q3 20/21 | E10: Q4 20/21
A11: Number of financially supported households at end of quarter | B11: 1580 | C11: 1614 | D11: 1674 | E11: 1636
A12: Number of dependants of financially supported households at end of quarter | B12: 2957 | C12: 2987 | D12: 3054 | E12: 2932
A13: Total weekly spend for the cases supported at the end of the quarter | B13: 471270 | C13: 488064 | D13: 514946 | E13: 517079
A14: Average annual cost per case | B14: =B13/B11*52 -> 15510.1519 | C14: =C13/C11*52 -> 15724.49071 | D14: =D13/D11*52 -> 15995.93309 | E14: =E13/E11*52 -> 16435.27384
A15: Average annual cost (weekly spend X 52) | B15: =B13*52 -> 24506040 | C15: =C13*52 -> 25379328 | D15: =D13*52 -> 26777192 | E15: =E13*52 -> 26888108
A16: Average number of days on support, cases open at end of quarter | B16: 599 | C16: 555 | D16: 572 | E16: 589
A17: Of Row 11 - Number that are non EEA and unresolved | B17: 1212 | C17: 1244 | D17: 1271 | E17: 1204
A18: Of Row 11 - EEA national or EEA family member / derivative rights | B18: 164 | C18: 184 | D18: 188 | E18: 195
A19: Of Row 11 - Number that are non EEA but have LTR with recourse | B19: 204 | C19: 186 | D19: 215 | E19: 237
A20: Of Row 17 - Number that are 1000 day cases | B20: 196 | C20: 189 | D20: 190 | E20: 184
A21: Of Row 18 - Number of 1000 day EEA national cases without 'settled status | B21: 29 | C21: 34 | D21: 32 | E21: 28
A22: Non EEA 1000 day cases, percentage of unresolved cohort (row 20 / row 17) | B22: 0.16 | C22: 0.15 | D22: 0.15 | E22: 0.15
A23: EEA 1000 day cases, percentage of unresolved cohort (row 21 / row 18) | B23: 0.18 | C23: 0.19 | D23: 0.18 | E23: 0.15
A24: Total number of referrals per quarter | B24: 928 | C24: 836 | D24: 781 | E24: 728
A25: Total number of new cases taken on for support within quarter | B25: 429 | C25: 363 | D25: 326 | E25: 276
A26: Total number of supported cases closed within quarter | B26: 244 | C26: 329 | D26: 266 | E26: 314
A30: Adult cases | B30: Q1 20/21 | C30: Q2 20/21 | D30: Q3 20/21 | E30: Q4 20/21
A31: Number of financially supported households at end of quarter | B31: 664 | C31: 665 | D31: 707 | E31: 708
A32: Total weekly spend for the cases supported at the end of the quarter | B32: 240897 | C32: 237616 | D32: 251458 | E32: 248979
A33: Average annual cost per case | B33: =B32/B31*52 -> 18865.42771 | C33: =C32/C31*52 -> 18580.49925 | D33: =D32/D31*52 -> 18494.78925 | E33: =E32/E31*52 -> 18286.59322
A34: Average annual cost (weekly spend X 52) | B34: =B32*52 -> 12526644 | C34: =C32*52 -> 12356032 | D34: =D32*52 -> 13075816 | E34: =E32*52 -> 12946908
A35: Average number of days on support, cases open at end of quarter | B35: 917 | C35: 930 | D35: 893 | E35: 911
A36: Of Row 31 - Number that are non EEA and unresolved | B36: 510 | C36: 512 | D36: 535 | E36: 531
A37: Of Row 31 - EEA national or EEA family member / derivative rights | B37: 121 | C37: 127 | D37: 145 | E37: 140
A38: Of Row 31 - Number that are non EEA but have LTR with recourse | B38: 33 | C38: 26 | D38: 27 | E38: 37
A39: Of Row 31 - Number that are 1000 day cases | B39: 172 | C39: 174 | D39: 178 | E39: 531
A40: Of Row 31 - Number of 1000 day EEA national cases without 'settled status | B40: 23 | C40: 21 | D40: 22 | E40: 21
A41: Non EEA 1000 day cases, percentage of unresolved cohort (row 39 / row 36) | B41: 0.34 | C41: 0.34 | D41: 0.33 | E41: 0.34
A42: EEA 1000 day cases, percentage of unresolved cohort (row 40 / row 37) | B42: 0.2 | C42: 0.17 | D42: 0.15 | E42: 0.15
A43: Total number of referrals per quarter | B43: 506 | C43: 407 | D43: 432 | E43: 473
A44: Total number of new cases taken on for support within quarter | B44: 159 | C44: 95 | D44: 120 | E44: 97
A45: Total number of supported cases closed within quarter | B45: 85 | C45: 94 | D45: 78 | E45: 96
A49: Looked after children and care leavers | B49: Q1 20/21 | C49: Q2 20/21 | D49: Q3 20/21 | E49: Q4 20/21
A50: Number of open cases at end of quarter | B50: 2175 | C50: 2265 | D50: 2394 | E50: 2493
A51: Of which under age of 18 | B51: 214 | C51: 272 | D51: 346 | E51: 397
A52: Of which aged 18-21 | B52: 1088 | C52: 1132 | D52: 1184 | E52: 1255
A53: Of which aged 21 and over | B53: 873 | C53: 861 | D53: 864 | E53: 841
A54: Of number of open cases (row 50), number financially supported | B54: 761 | C54: 788 | D54: 806 | E54: 856
A55: Total weekly spend for the cases financially supported at end of quarter | B55: 287870 | C55: 291420 | D55: 307997 | E55: 331720
A56: Average annual cost per case | B56: =B55/B54*52 -> 19670.4862 | C56: =C55/C54*52 -> 19230.76142 | D56: =D55/D54*52 -> 19870.77419 | E56: =E55/E54*52 -> 20151.21495
A57: Average annual cost (weekly spend X 52) | B57: =B55*52 -> 14969240 | C57: =C55*52 -> 15153840 | D57: =D55*52 -> 16015844 | E57: =E55*52 -> 17249440
A58: Total number of new cases recorded within the quarter | B58: 116 | C58: 145 | D58: 189 | E58: 227
A59: Total number of cases closed | B59: 115 | C59: 52 | D59: 60 | E59: 131
A70: Closure reason family and adult cases - all closures in the year | B70: Total | C70: Percentage
A71: EEA national - left the UK (LA Funded / self return) | B71: 61 | C71: =100/1510*B71 -> 4.039735099
A72: Non-EEA national - left the UK (HO / LA funded) | B72: 10 | C72: 0.6622516556
A73: Accessed Asylum Support | B73: 109 | C73: 7.218543046
A74: No longer eligible | B74: =133+33 -> 166 | C74: 10.99337748
A75: EEA national / family member - accessed benefits / employment | B75: 65 | C75: 4.304635762
A76: Granted Leave to Remain | B76: =994 + 76+29 -> 1099 | C76: =100/1510*B76 -> 72.78145695
A81: Closure reason family cases - all closures in the year | B81: Total | C81: Percentage
A82: EEA national - left the UK (LA Funded / self return) | B82: 36 | C82: =100/1156*B82 -> 3.114186851
A83: Non-EEA national - left the UK (HO / LA funded) | B83: 8 | C83: 0.6920415225
A84: Accessed Asylum Support | B84: 67 | C84: 5.795847751
A85: No longer eligible | B85: =2+81 -> 83 | C85: 7.179930796
A86: EEA national / family member - accessed benefits / employment | B86: 45 | C86: 3.892733564
A87: Granted Leave to Remain | B87: =833 + 62+22 -> 917 | C87: =100/1156*B87 -> 79.32525952
A109: Closure reason adult cases - all closures in the year | B109: Total | C109: Percentage
A110: EEA national - left the UK (LA Funded / self return) | B110: 25 | C110: =100/354*B110 -> 7.062146893
A111: Non-EEA national - left the UK (HO / LA funded) | B111: 2 | C111: 1
A112: Accessed Asylum Support | B112: 42 | C112: =100/354*B112 -> 11.86440678
A113: Deceased | B113: 31 | C113: 8.757062147
A114: No longer eligible | B114: 52 | C114: 14.68926554
A115: EEA national / family member - accessed benefits / employment | B115: 20 | C115: 5
A116: Granted Leave to Remain | B116: =14 + 7 + 161 -> 182 | C116: 51.41242938
A136: Immigration status families - open cases as of 31 March 2021 | B136: Total | C136: Percentage | E136: Summary - families - 31 March 2021 | F136: Number | G136: Percentage
A137: EEA nationals or EU residence rights - not granted EUSS | B137: 128 | C137: =100/1578*B137 -> 8.111533587 | E137: EEA national or EU residence rights | F137: =B137+B138+B139 -> 194 | G137: =100/1578*F137 -> 12.29404309
A138: Indefinite leave to remain (EU Settlement Scheme) | B138: 11 | C138: =100/1578*B138 -> 0.6970849176 | E138: Leave to Remain (LTR) with NRPF | F138: =B143+B144 -> 153 | G138: 9.69581749
A139: Leave to remain (EU Settlement Scheme) | B139: 55 | C139: =100/1578*B139 -> 3.485424588 | E139: No current immigration permission | F139: =B155+B152+B147 -> 733 | G139: 47
A140: Limited leave with recourse to public funds (10 year route) | B140: 129 | C140: 8.174904943 | E140: Asylum seeker / asylum seeker ARE | F140: =B157+B154+B156+B153+B145 -> 241 | G140: 15.27249683
A141: Limited leave with recourse to public funds (following COC) | B141: 38 | C141: 2.408111534 | E141: Leave to Remain (LTR) with recourse | F141: =B149+B150+B151+B148+B146+B142+B141+B140 -> 250 | G141: 15.84283904
A142: Limited Leave with Recourse to Public Funds (other) | B142: 26 | C142: 1.64765526 | E142: British | F142: =B158 -> 7 | G142: 0.443599493
A143: Limited leave with NRPF (10 year route) | B143: 67 | C143: 4.245880862
A144: Limited leave with NRPF (other) | B144: 86 | C144: 5.449936629
A145: UASC leave | B145: 1 | C145: 0.06337135615
A146: No record held by HO (non EEA) | B146: 36 | C146: 2.281368821
A147: Humanitarian Protection | B147: 3 | C147: 0.1901140684
A148: Refugee Status | B148: 5 | C148: 0.3168567807
A149: Indefinite leave | B149: 16 | C149: 1.013941698
A150: Discretionary leave - trafficking | B150: 0 | C150: 0
A151: DDV Concession | B151: 0 | C151: 0
A152: Over-stayer / Deception / Breach - asylum claimed 'no' | B152: 647 | C152: 41.00126743
A153: Over-stayer / Deception / Breach - asylum claimed 'yes' | B153: 123 | C153: 7.794676806
A154: In Country Asylum Seeker | B154: 12 | C154: 0.7604562738
A155: Illegal entrant - asylum claimed 'no' | B155: 83 | C155: 5.25982256
A156: Illegal entrant - asylum claimed 'yes' | B156: 85 | C156: 5.386565272
A157: Port Case | B157: 20 | C157: 1.267427123
A158: British | B158: 7 | C158: 0.443599493
A165: Adults - open cases as of 31 March 2021 | B165: Total | C165: Percentage | E165: Summary - adults - 31 March 2021 | F165: Number | G165: Percentage
A166: EEA nationals or EU residence rights - not granted EUSS | B166: 117 | C166: =100/687*B166 -> 17.03056769 | E166: EEA national or EU residence rights | F166: =B166+B167+B168 -> 139 | G166: =100/687*F166 -> 20.23289665
A167: Indefinite leave to remain (EU Settlement Scheme) | B167: 2 | C167: =100/687*B167 -> 0.2911208151 | E167: Leave to Remain (LTR) with NRPF | F167: =B172+B173 -> 34 | G167: 6
A168: Leave to remain (EU Settlement Scheme) | B168: 20 | C168: 2.911208151 | E168: No current immigration permission | F168: =B184+B181+B176 -> 264 | G168: =100/687*F168 -> 38.4279476
A169: Limited leave with recourse to public funds (10 year route) | B169: 10 | C169: 1.455604076 | E169: Asylum seeker / asylum seeker ARE | F169: =B186+B183+B185+B182+B174 -> 214 | G169: 31.14992722
A170: Limited leave with recourse to public funds (following COC) | B170: 5 | C170: 0.7278020378 | E170: Leave to Remain (LTR) with recourse | F170: =B178+B179+B180+B177+B175+B171+B170+B169 -> 35 | G170: 5.094614265
A171: Limited Leave with Recourse to Public Funds (other) | B171: 18 | C171: 2.620087336 | E171: British | F171: =B187 -> 1 | G171: 0.1455604076
A172: Limited leave with NRPF (10 year route) | B172: 8 | C172: 1.164483261
A173: Limited leave with NRPF (other) | B173: 26 | C173: 3.784570597
A174: UASC leave | B174: 0 | C174: 0
A175: Indefinite Leave | B175: 1 | C175: 0.1455604076
A176: No record held by HO (non EEA) | B176: 42 | C176: 6.113537118
A177: Humanitarian Protection | B177: 0 | C177: 0
A178: Refugee Status | B178: 1 | C178: 0.1455604076
A179: Discretionary leave - trafficking | B179: 0 | C179: 0
A180: DDV Concession | B180: 0 | C180: 0
A181: Over-stayer / Deception / Breach - asylum claimed 'no' | B181: 192 | C181: 27.94759825
A182: Over-stayer / Deception / Breach - asylum claimed 'yes' | B182: 94 | C182: 13.68267831
A183: In Country Asylum Seeker | B183: 12 | C183: 1.746724891
A184: Illegal entrant - asylum claimed 'no' | B184: 30 | C184: 4.366812227
A185: Illegal entrant - asylum claimed 'yes' | B185: 93 | C185: 13.5371179
A186: Port Case | B186: 15 | C186: 2.183406114
A187: British | B187: 1 | C187: 0.1455604076
A194: looked after children and care leavers - open cases as of 31 March 2021 | B194: Total | C194: Percentage | E194: Summary - LAC / CL - 31 March 21 | F194: Number | G194: Percentage
A195: EEA nationals or EU residence rights - not granted EUSS | B195: 79 | C195: =100/3137*B195 -> 2.518329614 | E195: EEA national or EU residence rights | F195: =B195+B196+B197 -> 85 | G195: =100/2374*F195 -> 3.580454928
A196: Indefinite leave to remain (EU Settlement Scheme) | B196: 2 | C196: =100/3137*B196 -> 0.06375518011 | E196: Leave to Remain (LTR) with NRPF | F196: =B201+B202 -> 17 | G196: =100/2374*F196 -> 0.7160909857
A197: Leave to remain (EU Settlement Scheme) | B197: 4 | C197: 0.1275103602 | E197: No current immigration permission | F197: =B213+B210+B205 -> 231 | G197: 9.730412805
A198: Limited leave with recourse to public funds (10 year route) | B198: 15 | C198: 0.4781638508 | E198: Asylum seeker / asylum seeker ARE | F198: =B215+B212+B214+B211+B203 -> 1516 | G198: 63.85846672
A199: Limited leave with recourse to public funds (following COC) | B199: 8 | C199: 0.2550207204 | E199: Leave to Remain (LTR) with recourse | F199: =B207+B208+B209+B206+B204+B200+B199+B198 -> 524 | G199: 22.07245156
A200: Limited Leave with Recourse to Public Funds (other) | B200: 97 | C200: 3.092126235 | E200: British | F200: =B216 -> 1 | G200: 0.04212299916
A201: Limited leave with NRPF (10 year route) | B201: 6 | C201: 0.1912655403
A202: Limited leave with NRPF (other) | B202: 11 | C202: 0.3506534906
A203: UASC leave | B203: 61 | C203: 1.944532993
A204: Indefinite Leave | B204: 33 | C204: 1.051960472
A205: No record held by HO (non EEA) | B205: 93 | C205: 2.964615875
A206: Humanitarian Protection | B206: 28 | C206: 0.8925725215
A207: Refugee Status | B207: 342 | C207: 10.9021358
A208: Discretionary leave - trafficking | B208: 1 | C208: 0.03187759005
A209: DDV Concession | B209: 0 | C209: 0
A210: Over-stayer / Deception / Breach - asylum claimed 'no' | B210: 37 | C210: 1.179470832
A211: Over-stayer / Deception / Breach - asylum claimed 'yes' | B211: 174 | C211: 5.546700669
A212: In Country Asylum Seeker | B212: 111 | C212: 3.538412496
A213: Illegal entrant - asylum claimed 'no' | B213: 101 | C213: 3.219636595
A214: Illegal entrant - asylum claimed 'yes' | B214: 1115 | C214: 35.54351291
A215: Port Case | B215: 55 | C215: 1.753267453
A216: British | B216: 1 | C216: 0.03187759005
A223: Immigration status families - all referrals for the year | B223: Total | C223: Percentage | E223: Summary - families referred - F/Y | F223: Number | G223: Percentage
A224: EEA nationals or EU residence rights - not granted EUSS | B224: 275 | C224: =100/3137*B224 -> 8.766337265 | E224: EEA national or EU residence rights | F224: =B224+B225+B226 -> 480 | G224: =100/3137*F224 -> 15.30124323
A225: Indefinite leave to remain (EU Settlement Scheme) | B225: 51 | C225: =100/3137*B225 -> 1.625757093 | E225: Leave to Remain (LTR) with NRPF | F225: =B230+B231 -> 673 | G225: 22
A226: Leave to remain (EU Settlement Scheme) | B226: 154 | C226: 4.909148868 | E226: No current immigration permission | F226: =B242+B239+B234 -> 956 | G226: 31
A227: Limited leave with recourse to public funds (10 year route) | B227: 136 | C227: 4.335352247 | E227: Asylum seeker / asylum seeker ARE | F227: =B244+B241+B243+B240+B232 -> 409 | G227: =100/3137*F227 -> 13.03793433
A228: Limited leave with recourse to public funds (following COC) | B228: 180 | C228: 5.73796621 | E228: Leave to Remain (LTR) with recourse | F228: =B236+B237+B238+B235+B233+B229+B228+B227 -> 578 | G228: 18.42524705
A229: Limited Leave with Recourse to Public Funds (other) | B229: 76 | C229: 2.422696844 | E229: British | F229: =B245 -> 41 | G229: 1.306981192
A230: Limited leave with NRPF (10 year route) | B230: 365 | C230: 11.63532037
A231: Limited leave with NRPF (other) | B231: 308 | C231: 9.818297737
A232: UASC leave | B232: 0 | C232: 0
A233: Indefinite Leave | B233: 65 | C233: 2.072043354
A234: No record held by HO (non EEA) | B234: 180 | C234: 5.73796621
A235: Humanitarian Protection | B235: 5 | C235: 0.1593879503
A236: Refugee Status | B236: 32 | C236: 1.020082882
A237: Discretionary leave - trafficking | B237: 0 | C237: 0
A238: DDV Concession | B238: 84 | C238: 2.677717565
A239: Over-stayer / Deception / Breach - asylum claimed 'no' | B239: 697 | C239: 22.21868027
A240: Over-stayer / Deception / Breach - asylum claimed 'yes' | B240: 153 | C240: 4.877271278
A241: In Country Asylum Seeker | B241: 50 | C241: 1.593879503
A242: Illegal entrant - asylum claimed 'no' | B242: 79 | C242: 2.518329614
A243: Illegal entrant - asylum claimed 'yes' | B243: 175 | C243: 5.578578259
A244: Port Case | B244: 31 | C244: 0.9882052917
A245: British | B245: 41 | C245: 1.306981192
A252: Immigration status adults - all referrals for the year | B252: Total | C252: Percentage | E252: Summary - adults referred - F/Y | F252: Number | G252: Percentage
A253: EEA nationals or EU residence rights - not granted EUSS | B253: 338 | C253: =100/1732*B253 -> 19.51501155 | E253: EEA national or EU residence rights | F253: =B253+B254+B255 -> 479 | G253: =100/1732*F253 -> 27.65588915
A254: Indefinite leave to remain (EU Settlement Scheme) | B254: 50 | C254: =100/1732*B254 -> 2.886836028 | E254: Leave to Remain (LTR) with NRPF | F254: =B259+B260 -> 165 | G254: 9
A255: Leave to remain (EU Settlement Scheme) | B255: 91 | C255: 5.25404157 | E255: No current immigration permission | F255: =B271+B268+B263 -> 495 | G255: =100/1732*F255 -> 28.57967667
A256: Limited leave with recourse to public funds (10 year route) | B256: 16 | C256: 0.9237875289 | E256: Asylum seeker / asylum seeker ARE | F256: =B273+B270+B272+B269+B261 -> 402 | G256: 23.21016166
A257: Limited leave with recourse to public funds (following COC) | B257: 13 | C257: 0.7505773672 | E257: Leave to Remain (LTR) with recourse | F257: =B265+B266+B267+B264+B262+B258+B257+B256 -> 190 | G257: 10.96997691
A258: Limited Leave with Recourse to Public Funds (other) | B258: 37 | C258: 2.136258661 | E258: British | F258: =B274 -> 1 | G258: 0.05773672055
A259: Limited leave with NRPF (10 year route) | B259: 56 | C259: 3.233256351
A260: Limited leave with NRPF (other) | B260: 109 | C260: 6.29330254
A261: UASC leave | B261: 0 | C261: 0
A262: Indefinite Leave | B262: 78 | C262: 4.503464203
A263: No record held by HO (non EEA) | B263: 179 | C263: 10.33487298
A264: Humanitarian Protection | B264: 4 | C264: 0.2309468822
A265: Refugee Status | B265: 24 | C265: 1.385681293
A266: Discretionary leave - trafficking | B266: 0 | C266: 0
A267: DDV Concession | B267: 18 | C267: 1.03926097
A268: Over-stayer / Deception / Breach - asylum claimed 'no' | B268: 272 | C268: 15.70438799
A269: Over-stayer / Deception / Breach - asylum claimed 'yes' | B269: 156 | C269: 9.006928406
A270: In Country Asylum Seeker | B270: 17 | C270: 0.9815242494
A271: Illegal entrant - asylum claimed 'no' | B271: 44 | C271: 2.540415704
A272: Illegal entrant - asylum claimed 'yes' | B272: 200 | C272: 11.54734411
A273: Port Case | B273: 29 | C273: 1.674364896
A274: British | B274: 1 | C274: 0.05773672055

Sheet East of England
A1: Description - all local authorities 2020-2021 | B1: Q1 20/21 | C1: Q2 20/21 | D1: Q3 20/21 | E1: Q4 20/21
A2: Number of local authorities subscribing at end of quarter | B2: 4 | C2: 4 | D2: 4 | E2: 4
A3: Number of local authorities with data uploaded at end of quarter - all case types | B3: 4 | C3: 4 | D3: 4 | E3: 4
A4: Number of local authorities with data for family cases | B4: 4 | C4: 4 | D4: 4 | E4: 4
A5: Number of local authorities with data for adult cases | B5: 2 | C5: 2 | D5: 2 | E5: 2
A6: Number of local authorities with data for children / care leaver cases | B6: 1 | C6: 1 | D6: 1 | E6: 1
A10: Family cases | B10: Q1 20/21 | C10: Q2 20/21 | D10: Q3 20/21 | E10: Q4 20/21
A11: Number of financially supported households at end of quarter | B11: 56 | C11: 56 | D11: 69 | E11: 74
A12: Number of dependants of financially supported households at end of quarter | B12: 107 | C12: 110 | D12: 120 | E12: 143
A13: Total weekly spend for the cases supported at the end of the quarter | B13: 12639.55 | C13: 13452 | D13: 16312 | E13: 18211
A14: Average annual cost per case | B14: =B13*52/B11 -> 11736.725 | C14: =C13*52/C11 -> 12491.14286 | D14: 12293.10145 | E14: 12796.91892
A15: Average annual cost (weekly spend X 52) | B15: =B13*52 -> 657256.6 | C15: =C13*52 -> 699504 | D15: 848224 | E15: 946972
A16: Average number of days on support, cases open at end of quarter | B16: 423 | C16: 458 | D16: 408 | E16: 427
A17: Of Row 11 - Number that are non EEA and unresolved | B17: 37 | C17: 34 | D17: 47 | E17: 44
A18: Of Row 11 - EEA national or EEA family member / derivative rights | B18: 14 | C18: 16 | D18: 18 | E18: 23
A19: Of Row 11 - Number that are non EEA but have LTR with recourse | B19: 5 | C19: 6 | D19: 4 | E19: 7
A20: Of Row 17 - Number that are 1000 day cases | B20: 2 | C20: 1 | D20: 1 | E20: 3
A21: Of Row 18 - Number of 1000 day EEA national cases without 'settled status | B21: 1 | C21: 2 | D21: 3 | E21: 5
A22: Non EEA 1000 day cases, percentage of unresolved cohort (row 20 / row 17) | B22: 0.05 | C22: 0.03 | D22: 0.02 | E22: 0.07
A23: EEA 1000 day cases, percentage of unresolved cohort (row 21 / row 18) | B23: 0.07 | C23: 0.13 | D23: 0.17 | E23: 0.22
A24: Total number of referrals per quarter | B24: 52 | C24: 44 | D24: 31 | E24: 29
A25: Total number of new cases taken on for support within quarter | B25: 18 | C25: 7 | D25: 21 | E25: 15
A26: Total number of supported cases closed within quarter | B26: 9 | C26: 11 | D26: 8 | E26: 10
A31: Adult cases | B31: Q1 20/21 | C31: Q2 20/21 | D31: Q3 20/21 | E31: Q4 20/21
A32: Number of financially supported households at end of quarter | B32: 30 | C32: 35 | D32: 41 | E32: 42
A33: Total weekly spend for the cases supported at the end of the quarter | B33: 9879 | C33: 10049 | D33: 10580 | E33: 11013
A34: Average annual cost per case | B34: =B33*52/B32 -> 17123.6 | C34: =C33*52/C32 -> 14929.94286 | D34: =D33*52/D32 -> 13418.53659 | E34: 13635.14286
A35: Average annual cost (weekly spend X 52) | B35: =B33*52 -> 513708 | C35: =C33*52 -> 522548 | D35: =D33*52 -> 550160 | E35: 572676
A36: Average number of days on support, cases open at end of quarter | B36: 682 | C36: 661 | D36: 607 | E36: 636
A37: Of Row 31 - Number that are non EEA and unresolved | B37: 15 | C37: 15 | D37: 15 | E37: 14
A38: Of Row 31 - EEA national or EEA family member / derivative rights | B38: 15 | C38: 19 | D38: 25 | E38: 28
A39: Of Row 31 - Number that are non EEA but have LTR with recourse | B39: 0 | C39: 1 | D39: 1 | E39: 0
A40: Of Row 31 - Number that are 1000 day cases | B40: 3 | C40: 3 | D40: 3 | E40: 5
A41: Of Row 31 - Number of 1000 day EEA national cases without 'settled status | B41: 1 | C41: 2 | D41: 2 | E41: 2
A42: Non EEA 1000 day cases, percentage of unresolved cohort (row 39 / row 36) | B42: 0.2 | C42: 0.2 | D42: 0.2 | E42: 0.36
A43: EEA 1000 day cases, percentage of unresolved cohort (row 40 / row 37) | B43: 0.07 | C43: 0.1 | D43: 0.08 | E43: 0.07
A44: Total number of referrals per quarter | B44: 107 | C44: 30 | D44: 42 | E44: 79
A45: Total number of new cases taken on for support within quarter | B45: 11 | C45: 8 | D45: 12 | E45: 11
A46: Total number of supported cases closed within quarter | B46: 7 | C46: 3 | D46: 6 | E46: 10
A53: Looked after children and care leavers | B53: Q1 20/21 | C53: Q2 20/21 | D53: Q3 20/21 | E53: Q4 20/21
A54: Number of open cases at end of quarter | B54: 200 | C54: 240 | D54: 239 | E54: 240
A55: Of which under age of 18 | B55: 42 | C55: 71 | D55: 71 | E55: 72
A56: Of which aged 18-21 | B56: 97 | C56: 108 | D56: 107 | E56: 107
A57: Of which aged 21 and over | B57: 61 | C57: 61 | D57: 61 | E57: 61
A58: Of number of open cases (row 54), number financially supported | B58: 108 | C58: 108 | D58: 106 | E58: 107
A59: Total weekly spend for the cases financially supported at end of quarter | B59: 62855 | C59: 62178.93 | D59: 61370 | E59: 61984
A60: Average annual cost per case | B60: =B59/B58*52 -> 30263.51852 | C60: =C59/C58*52 -> 29938.00333 | D60: 30106.03774 | E60: 30123.06542
A61: Average annual cost (weekly spend X 52) | B61: =B59*52 -> 3268460 | C61: =C59*52 -> 3233304.36 | D61: 3191240 | E61: 3223168
A62: Total number of new cases recorded within the quarter | B62: 5 | C62: 40 | D62: 1 | E62: 1
A63: Total number of cases closed | B63: 0 | C63: 0 | D63: 2 | E63: 0
A73: Closure reason family and adult cases - all closures in the year | B73: Total | C73: Percentage
A74: EEA national - left the UK (LA Funded / self return) | B74: 8 | C74: =100/64*B74 -> 12.5
A75: Non-EEA national - left the UK (HO / LA funded) | B75: 0 | C75: =100/64*B75 -> 0
A76: Accessed Asylum Support | B76: 6 | C76: 9.375
A77: No longer eligible | B77: =2+1 -> 3 | C77: 4.6875
A78: EEA national / family member - accessed benefits / employment | B78: 3 | C78: 4.6875
A79: Granted Leave to Remain | B79: =34+10 -> 44 | C79: 68.75
A95: Closure reason family cases - all closures in the year | B95: Total | C95: Percentage
A96: EEA national - left the UK (LA Funded / self return) | B96: 2 | C96: =100/38*B96 -> 5.263157895
A97: Non-EEA national - left the UK (HO / LA funded) | B97: 0 | C97: =100/38*B97 -> 0
A98: Accessed Asylum Support | B98: 4 | C98: 10.52631579
A99: No longer eligible | B99: =1+1 -> 2 | C99: 5.263157895
A100: EEA national / family member - accessed benefits / employment | B100: 1 | C100: 2.631578947
A101: Granted Leave to Remain | B101: =5+24 -> 29 | C101: 76.31578947
A117: Closure reason adult cases - all closures in the year | B117: Total | C117: Percentage
A118: EEA national - left the UK (LA Funded / self return) | B118: 6 | C118: =100/26*B118 -> 23.07692308
A119: Non-EEA national - left the UK (HO / LA funded) | B119: 0 | C119: =100/26*B119 -> 0
A120: Accessed Asylum Support | B120: 2 | C120: 7
A121: No longer eligible | B121: 0 | C121: 0
A122: Deceased | B122: 1 | C122: 3.846153846
A123: EEA national / family member - accessed benefits / employment | B123: 2 | C123: 7.692307692
A124: Granted Leave to Remain | B124: =5+10 -> 15 | C124: 57.69230769
A139: Immigration status families - open cases as of 31 March 2021 | B139: Total | C139: Percentage | E139: Summary - families - 31 March 2021 | F139: Number | G139: Percentage
A140: EEA nationals or EU residence rights - not granted EUSS | B140: 18 | C140: =100/63*B140 -> 28.57142857 | E140: EEA national or EU residence rights | F140: =B140+B141+B142 -> 23 | G140: 36
A141: Indefinite leave to remain (EU Settlement Scheme) | B141: 0 | C141: =100/63*B141 -> 0 | E141: Leave to Remain (LTR) with NRPF | F141: =B146+B147 -> 10 | G141: =100/63*F141 -> 15.87301587
A142: Leave to remain (EU Settlement Scheme) | B142: 5 | C142: 7.936507937 | E142: No current immigration permission | F142: =B158+B155+B150 -> 15 | G142: 23.80952381
A143: Limited leave with recourse to public funds (10 year route) | B143: 3 | C143: 4.761904762 | E143: Asylum seeker / asylum seeker ARE | F143: =B160+B157+B159+B156+B148 -> 7 | G143: 11.11111111
A144: Limited leave with recourse to public funds (following COC) | B144: 0 | C144: 0 | E144: Leave to Remain (LTR) with recourse | F144: =B152+B153+B154+B151+B149+B145+B144+B143 -> 7 | G144: 11.11111111
A145: Limited Leave with Recourse to Public Funds (other) | B145: 0 | C145: 0 | E145: British | F145: =B161 -> 1 | G145: 1.587301587
A146: Limited leave with NRPF (10 year route) | B146: 4 | C146: 6.349206349
A147: Limited leave with NRPF (other) | B147: 6 | C147: 9.523809524
A148: UASC leave | B148: 0 | C148: 0
A149: No record held by HO (non EEA) | B149: 3 | C149: 4.761904762
A150: Humanitarian Protection | B150: 0 | C150: 0
A151: Refugee Status | B151: 0 | C151: 0
A152: Indefinite leave | B152: 1 | C152: 1.587301587
A153: Discretionary leave - trafficking | B153: 0 | C153: 0
A154: DDV Concession | B154: 0 | C154: 0
A155: Over-stayer / Deception / Breach - asylum claimed 'no' | B155: 13 | C155: 20.63492063
A156: Over-stayer / Deception / Breach - asylum claimed 'yes' | B156: 3 | C156: 4.761904762
A157: In Country Asylum Seeker | B157: 0 | C157: 0
A158: Illegal entrant - asylum claimed 'no' | B158: 2 | C158: 3.174603175
A159: Illegal entrant - asylum claimed 'yes' | B159: 2 | C159: 3.174603175
A160: Port Case | B160: 2 | C160: 3.174603175
A161: British | B161: 1 | C161: 1.587301587
A165: Adults - open cases as of 31 March 2021 | B165: Total | C165: Percentage | E165: Summary - adults - 31 March 2021 | F165: Number | G165: Percentage
A166: EEA nationals or EU residence rights - not granted EUSS | B166: 18 | C166: =100/42*B166 -> 42.85714286 | E166: EEA national or EU residence rights | F166: =B166+B167+B168 -> 28 | G166: =100/42*F166 -> 66.66666667
A167: Indefinite leave to remain (EU Settlement Scheme) | B167: 0 | C167: =100/42*B167 -> 0 | E167: Leave to Remain (LTR) with NRPF | F167: =B172+B173 -> 1 | G167: =100/42*F167 -> 2.380952381
A168: Leave to remain (EU Settlement Scheme) | B168: 10 | C168: 23.80952381 | E168: No current immigration permission | F168: =B184+B181+B176 -> 8 | G168: 19.04761905
A169: Limited leave with recourse to public funds (10 year route) | B169: 0 | C169: 0 | E169: Asylum seeker / asylum seeker ARE | F169: =B186+B183+B185+B182+B174 -> 5 | G169: 11.9047619
A170: Limited leave with recourse to public funds (following COC) | B170: 0 | C170: 0 | E170: Leave to Remain (LTR) with recourse | F170: =B178+B179+B180+B177+B175+B171+B170+B169 -> 0 | G170: 0
A171: Limited Leave with Recourse to Public Funds (other) | B171: 0 | C171: 0 | E171: British | F171: =B187 -> 0 | G171: 0
A172: Limited leave with NRPF (10 year route) | B172: 0 | C172: 0
A173: Limited leave with NRPF (other) | B173: 1 | C173: 2.380952381
A174: UASC leave | B174: 0 | C174: 0
A175: Indefinite Leave | B175: 0 | C175: 0
A176: No record held by HO (non EEA) | B176: 1 | C176: 2.380952381
A177: Humanitarian Protection | B177: 0 | C177: 0
A178: Refugee Status | B178: 0 | C178: 0
A179: Discretionary leave - trafficking | B179: 0 | C179: 0
A180: DDV Concession | B180: 0 | C180: 0
A181: Over-stayer / Deception / Breach - asylum claimed 'no' | B181: 7 | C181: 16.66666667
A182: Over-stayer / Deception / Breach - asylum claimed 'yes' | B182: 4 | C182: 9.523809524
A183: In Country Asylum Seeker | B183: 0 | C183: 0
A184: Illegal entrant - asylum claimed 'no' | B184: 0 | C184: 0
A185: Illegal entrant - asylum claimed 'yes' | B185: 0 | C185: 0
A186: Port Case | B186: 1 | C186: 2.380952381
A187: British | B187: 0 | C187: 0
A191: looked after children and care leavers - open cases as of 31 March 2021 | B191: Total | C191: Percentage | E191: Summary - LAC / CL - 31 March 21 | F191: Number | G191: Percentage
A192: EEA nationals or EU residence rights - not granted EUSS | B192: 12 | C192: =100/240*B192 -> 5 | E192: EEA national or EU residence rights | F192: =B192+B193+B194 -> 12 | G192: =100/240*F192 -> 5
A193: Indefinite leave to remain (EU Settlement Scheme) | B193: 0 | C193: =100/240*B193 -> 0 | E193: Leave to Remain (LTR) with NRPF | F193: =B198+B199 -> 0 | G193: =100/240*F193 -> 0
A194: Leave to remain (EU Settlement Scheme) | B194: 0 | C194: 0 | E194: No current immigration permission | F194: =B210+B207+B202 -> 21 | G194: 8.75
A195: Limited leave with recourse to public funds (10 year route) | B195: 1 | C195: 0.4166666667 | E195: Asylum seeker / asylum seeker ARE | F195: =B212+B209+B211+B208+B200 -> 163 | G195: 67.91666667
A196: Limited leave with recourse to public funds (following COC) | B196: 1 | C196: 0.4166666667 | E196: Leave to Remain (LTR) with recourse | F196: =B204+B205+B206+B203+B201+B197+B196+B195 -> 44 | G196: 18.33333333
A197: Limited Leave with Recourse to Public Funds (other) | B197: 9 | C197: 3.75 | E197: British | F197: =B213 -> 0 | G197: 0
A198: Limited leave with NRPF (10 year route) | B198: 0 | C198: 0
A199: Limited leave with NRPF (other) | B199: 0 | C199: 0
A200: UASC leave | B200: 11 | C200: 4.583333333
A201: Indefinite Leave | B201: 2 | C201: 0.8333333333
A202: No record held by HO (non EEA) | B202: 9 | C202: 3.75
A203: Humanitarian Protection | B203: 1 | C203: 0.4166666667
A204: Refugee Status | B204: 30 | C204: 12.5
A205: Discretionary leave - trafficking | B205: 0 | C205: 0
A206: DDV Concession | B206: 0 | C206: 0
A207: Over-stayer / Deception / Breach - asylum claimed 'no' | B207: 1 | C207: 0.4166666667
A208: Over-stayer / Deception / Breach - asylum claimed 'yes' | B208: 4 | C208: 1.666666667
A209: In Country Asylum Seeker | B209: 14 | C209: 5.833333333
A210: Illegal entrant - asylum claimed 'no' | B210: 11 | C210: 4.583333333
A211: Illegal entrant - asylum claimed 'yes' | B211: 102 | C211: 42.5
A212: Port Case | B212: 32 | C212: 13.33333333
A213: British | B213: 0 | C213: 0
A217: Immigration status families - all referrals for the year | B217: Total | C217: Percentage | E217: Summary - families referred - F/Y | F217: Number | G217: Percentage
A218: EEA nationals or EU residence rights - not granted EUSS | B218: 19 | C218: =100/147*B218 -> 12.92517007 | E218: EEA national or EU residence rights | F218: =B218+B219+B220 -> 33 | G218: =100/147*F218 -> 22.44897959
A219: Indefinite leave to remain (EU Settlement Scheme) | B219: 2 | C219: =100/147*B219 -> 1.360544218 | E219: Leave to Remain (LTR) with NRPF | F219: =B224+B225 -> 32 | G219: =100/147*F219 -> 21.76870748
A220: Leave to remain (EU Settlement Scheme) | B220: 12 | C220: 8.163265306 | E220: No current immigration permission | F220: =B236+B233+B228 -> 23 | G220: 15.6462585
A221: Limited leave with recourse to public funds (10 year route) | B221: 6 | C221: 4.081632653 | E221: Asylum seeker / asylum seeker ARE | F221: =B238+B235+B237+B234+B226 -> 41 | G221: 27.89115646
A222: Limited leave with recourse to public funds (following COC) | B222: 3 | C222: 2.040816327 | E222: Leave to Remain (LTR) with recourse | F222: =B230+B231+B232+B229+B227+B223+B222+B221 -> 16 | G222: 10.88435374
A223: Limited Leave with Recourse to Public Funds (other) | B223: 2 | C223: 1.360544218 | E223: British | F223: =B239 -> 2 | G223: 1.360544218
A224: Limited leave with NRPF (10 year route) | B224: 13 | C224: 8.843537415
A225: Limited leave with NRPF (other) | B225: 19 | C225: 12.92517007
A226: UASC leave | B226: 3 | C226: 2.040816327
A227: Indefinite Leave | B227: 0 | C227: 0
A228: No record held by HO (non EEA) | B228: 4 | C228: 2.721088435
A229: Humanitarian Protection | B229: 0 | C229: 0
A230: Refugee Status | B230: 1 | C230: 0.6802721088
A231: Discretionary leave - trafficking | B231: 0 | C231: 0
A232: DDV Concession | B232: 4 | C232: 2.721088435
A233: Over-stayer / Deception / Breach - asylum claimed 'no' | B233: 17 | C233: 11.56462585
A234: Over-stayer / Deception / Breach - asylum claimed 'yes' | B234: 11 | C234: 7.482993197
A235: In Country Asylum Seeker | B235: 2 | C235: 1.360544218
A236: Illegal entrant - asylum claimed 'no' | B236: 2 | C236: 1.360544218
A237: Illegal entrant - asylum claimed 'yes' | B237: 21 | C237: 14.28571429
A238: Port Case | B238: 4 | C238: 2.721088435
A239: British | B239: 2 | C239: 1.360544218
A243: Immigration status adults - all referrals for the year | B243: Total | C243: Percentage | E243: Summary - adults referred - F/Y | F243: Number | G243: Percentage
A244: EEA nationals or EU residence rights - not granted EUSS | B244: 96 | C244: =100/265*B244 -> 36.22641509 | E244: EEA national or EU residence rights | F244: =B244+B245+B246 -> 139 | G244: =100/265*F244 -> 52.45283019
A245: Indefinite leave to remain (EU Settlement Scheme) | B245: 17 | C245: =100/265*B245 -> 6.41509434 | E245: Leave to Remain (LTR) with NRPF | F245: =B250+B251 -> 24 | G245: =100/265*F245 -> 9.056603774
A246: Leave to remain (EU Settlement Scheme) | B246: 26 | C246: 9.811320755 | E246: No current immigration permission | F246: =B262+B259+B254 -> 18 | G246: 6.79245283
A247: Limited leave with recourse to public funds (10 year route) | B247: 0 | C247: 0 | E247: Asylum seeker / asylum seeker ARE | F247: =B264+B261+B263+B260+B252 -> 66 | G247: 24.90566038
A248: Limited leave with recourse to public funds (following COC) | B248: 1 | C248: 0.3773584906 | E248: Leave to Remain (LTR) with recourse | F248: =B256+B257+B258+B255+B253+B249+B248+B247 -> 16 | G248: 6.037735849
A249: Limited Leave with Recourse to Public Funds (other) | B249: 2 | C249: 0.7547169811 | E249: British | F249: =B265 -> 2 | G249: 0.7547169811
A250: Limited leave with NRPF (10 year route) | B250: 12 | C250: 4.528301887
A251: Limited leave with NRPF (other) | B251: 12 | C251: 4.528301887
A252: UASC leave | B252: 0 | C252: 0
A253: Indefinite Leave | B253: 6 | C253: 2.264150943
A254: No record held by HO (non EEA) | B254: 12 | C254: 4.528301887
A255: Humanitarian Protection | B255: 0 | C255: 0
A256: Refugee Status | B256: 5 | C256: 1.886792453
A257: Discretionary leave - trafficking | B257: 0 | C257: 0
A258: DDV Concession | B258: 2 | C258: 0.7547169811
A259: Over-stayer / Deception / Breach - asylum claimed 'no' | B259: 5 | C259: 1.886792453
A260: Over-stayer / Deception / Breach - asylum claimed 'yes' | B260: 8 | C260: 3.018867925
A261: In Country Asylum Seeker | B261: 1 | C261: 0.3773584906
A262: Illegal entrant - asylum claimed 'no' | B262: 1 | C262: 0.3773584906
A263: Illegal entrant - asylum claimed 'yes' | B263: 50 | C263: 18.86792453
A264: Port Case | B264: 7 | C264: 2.641509434
A265: British | B265: 2 | C265: 0.7547169811

Sheet East Midlands
A1: Description - all local authorities 2020-2021 | B1: Q1 20/21 | C1: Q2 20/21 | D1: Q3 20/21 | E1: Q4 20/21
A2: Number of local authorities subscribing at end of quarter | B2: 5 | C2: 5 | D2: 5 | E2: 5
A3: Number of local authorities with data uploaded at end of quarter - all case types | B3: 5 | C3: 5 | D3: 5 | E3: 5
A4: Number of local authorities with data for family cases | B4: 5 | C4: 5 | D4: 5 | E4: 5
A5: Number of local authorities with data for adult cases | B5: 1 | C5: 1 | D5: 3 | E5: 3
A6: Number of local authorities with data for children / care leaver cases | B6: 3 | C6: 3 | D6: 3 | E6: 3
A10: Family cases | B10: Q1 20/21 | C10: Q2 20/21 | D10: Q3 20/21 | E10: Q4 20/21
A11: Number of financially supported households at end of quarter | B11: 73 | C11: 76 | D11: 76 | E11: 81
A12: Number of dependants of financially supported households at end of quarter | B12: 168 | C12: 177 | D12: 174 | E12: 180
A13: Total weekly spend for the cases supported at the end of the quarter | B13: 23039 | C13: 24780 | D13: 23736 | E13: 23060
A14: Average annual cost per case | B14: =B13*52/B11 -> 16411.34247 | C14: =C13*52/C11 -> 16954.73684 | D14: =D13*52/D11 -> 16240.42105 | E14: =E13*52/E11 -> 14803.95062
A15: Average annual cost (weekly spend X 52) | B15: =B13*52 -> 1198028 | C15: =C13*52 -> 1288560 | D15: =D13*52 -> 1234272 | E15: =E13*52 -> 1199120
A16: Average number of days on support, cases open at end of quarter | B16: 486 | C16: 512 | D16: 576 | E16: 547
A17: Of Row 11 - Number that are non EEA and unresolved | B17: 53 | C17: 55 | D17: 50 | E17: 51
A18: Of Row 11 - EEA national or EEA family member / derivative rights | B18: 15 | C18: 18 | D18: 21 | E18: 22
A19: Of Row 11 - Number that are non EEA but have LTR with recourse | B19: 5 | C19: 3 | D19: 5 | E19: 8
A20: Of Row 17 - Number that are 1000 day cases | B20: 9 | C20: 10 | D20: 11 | E20: 7
A21: Of Row 18 - Number of 1000 day EEA national cases without 'settled status | B21: 3 | C21: 4 | D21: 3 | E21: 3
A22: Non EEA 1000 day cases, percentage of unresolved cohort (row 20 / row 17) | B22: 0.17 | C22: 0.18 | D22: 0.22 | E22: 0.14
A23: EEA 1000 day cases, percentage of unresolved cohort (row 21 / row 18) | B23: 0.2 | C23: 0.22 | D23: 0.14 | E23: 0.14
A24: Total number of referrals per quarter | B24: 73 | C24: 65 | D24: 62 | E24: 66
A25: Total number of new cases taken on for support within quarter | B25: 24 | C25: 19 | D25: 10 | E25: 14
A26: Total number of supported cases closed within quarter | B26: 10 | C26: 16 | D26: 12 | E26: 9
A30: Adult cases | B30: Q1 20/21 | C30: Q2 20/21 | D30: Q3 20/21 | E30: Q4 20/21
A31: Number of financially supported households at end of quarter | B31: 15 | C31: 15 | D31: 18 | E31: 19
A32: Total weekly spend for the cases supported at the end of the quarter | B32: 5196 | C32: 5120 | D32: 6475 | E32: 6771
A33: Average annual cost per case | B33: =B32*52/B31 -> 18012.8 | C33: =C32*52/C31 -> 17749.33333 | D33: 18705.55556 | E33: 18531.15789
A34: Average annual cost (weekly spend X 52) | B34: =B32*52 -> 270192 | C34: =C32*52 -> 266240 | D34: 336700 | E34: 352092
A35: Average number of days on support, cases open at end of quarter | B35: 1423 | C35: 1236 | D35: 1114 | E35: 994
A36: Of Row 31 - Number that are non EEA and unresolved | B36: 12 | C36: 13 | D36: 15 | E36: 17
A37: Of Row 31 - EEA national or EEA family member / derivative rights | B37: 1 | C37: 1 | D37: 1 | E37: 2
A38: Of Row 31 - Number that are non EEA but have LTR with recourse | B38: 2 | C38: 1 | D38: 2 | E38: 0
A39: Of Row 31 - Number that are 1000 day cases | B39: 6 | C39: 6 | D39: 7 | E39: 7
A40: Of Row 31 - Number of 1000 day EEA national cases without 'settled status | B40: 0 | C40: 0 | D40: 0 | E40: 0
A41: Non EEA 1000 day cases, percentage of unresolved cohort (row 39 / row 36) | B41: 0.5 | C41: 0.46 | D41: 0.47 | E41: 0.41
A42: EEA 1000 day cases, percentage of unresolved cohort (row 40 / row 37) | B42: 0 | C42: 0 | D42: 0 | E42: 0
A43: Total number of referrals per quarter | B43: 21 | C43: 13 | D43: 14 | E43: 27
A44: Total number of new cases taken on for support within quarter | B44: 2 | C44: 1 | D44: 5 | E44: 3
A45: Total number of supported cases closed within quarter | B45: 1 | C45: 1 | D45: 2 | E45: 2
A52: Looked after children and care leavers | B52: Q1 20/21 | C52: Q2 20/21 | D52: Q3 20/21 | E52: Q4 20/21
A53: Number of open cases at end of quarter | B53: 483 | C53: 465 | D53: 465 | E53: 464
A54: Of which under age of 18 | B54: 79 | C54: 77 | D54: 77 | E54: 77
A55: Of which aged 18-21 | B55: 236 | C55: 231 | D55: 231 | E55: 230
A56: Of which aged 21 and over | B56: 168 | C56: 157 | D56: 157 | E56: 157
A57: Of number of open cases (row 53), number financially supported | B57: 37 | C57: 39 | D57: 41 | E57: 44
A58: Total weekly spend for the cases financially supported at end of quarter | B58: 12881 | C58: 13364 | D58: 15018 | E58: 15510
A59: Average annual cost per case | B59: =B58/B57*52 -> 18103.02703 | C59: =C58/C57*52 -> 17818.66667 | D59: 19047.21951 | E59: 18330
A60: Average annual cost (weekly spend X 52) | B60: =B58*52 -> 669812 | C60: =C58*52 -> 694928 | D60: 780936 | E60: 806520
A61: Total number of new cases recorded within the quarter | B61: 14 | C61: 11 | D61: 25 | E61: 14
A62: Total number of cases closed | B62: 49 | C62: 18 | D62: 0 | E62: 1
A75: Closure reason family and adult cases - all closures in the year | B75: Total | C75: Percentage
A76: EEA national - left the UK (LA Funded / self return) | B76: 2 | C76: =100/54*B76 -> 3.703703704
A77: Non-EEA national - left the UK (HO / LA funded) | B77: 2 | C77: =100/54*B77 -> 3.703703704
A78: Accessed Asylum Support | B78: 8 | C78: 14.81481481
A79: No longer eligible | B79: 2 | C79: 3.703703704
A80: EEA national / family member - accessed benefits / employment | B80: 7 | C80: 12.96296296
A81: Granted Leave to Remain | B81: 33 | C81: 61.11111111
A98: Closure reason family cases - all closures in the year | B98: Total | C98: Percentage
A99: EEA national - left the UK (LA Funded / self return) | B99: 2 | C99: =100/48*B99 -> 4.166666667
A100: Non-EEA national - left the UK (HO / LA funded) | B100: 2 | C100: =100/48*B100 -> 4.166666667
A101: Accessed Asylum Support | B101: 5 | C101: 10.41666667
A102: No longer eligible | B102: 2 | C102: 4.166666667
A103: EEA national / family member - accessed benefits / employment | B103: 7 | C103: 14.58333333
A104: Granted Leave to Remain | B104: 30 | C104: 62.5
A124: Closure reason adult cases - all closures in the year | B124: Total | C124: Percentage
A125: EEA national - left the UK (LA Funded / self return) | B125: 0 | C125: =100/212*B125 -> 0
A126: Non-EEA national - left the UK (HO / LA funded) | B126: 0 | C126: =100/212*B126 -> 0
A127: Accessed Asylum Support | B127: 3 | C127: 50
A128: No longer eligible | B128: 0 | C128: 0
A129: Deceased | B129: 0 | C129: 0
A130: EEA national / family member - accessed benefits / employment | B130: 0 | C130: 0
A131: Granted Leave to Remain | B131: 3 | C131: 50
A140: Immigration status families - open cases as of 31 March 2021 | B140: Total | C140: Percentage | E140: Summary - families - 31 March 2021 | F140: Number | G140: Percentage
A141: EEA nationals or EU residence rights - not granted EUSS | B141: 12 | C141: =100/78*B141 -> 15.38461538 | E141: EEA national or EU residence rights | F141: =B141+B142+B143 -> 22 | G141: =100/78*F141 -> 28.20512821
A142: Indefinite leave to remain (EU Settlement Scheme) | B142: 3 | C142: =100/78*B142 -> 3.846153846 | E142: Leave to Remain (LTR) with NRPF | F142: =B147+B148 -> 8 | G142: =100/78*F142 -> 10.25641026
A143: Leave to remain (EU Settlement Scheme) | B143: 7 | C143: 8.974358974 | E143: No current immigration permission | F143: =B159+B156+B151 -> 25 | G143: 32.05128205
A144: Limited leave with recourse to public funds (10 year route) | B144: 8 | C144: 10.25641026 | E144: Asylum seeker / asylum seeker ARE | F144: =B161+B158+B160+B157+B149 -> 15 | G144: 19.23076923
A145: Limited leave with recourse to public funds (following COC) | B145: 0 | C145: 0 | E145: Leave to Remain (LTR) with recourse | F145: =B153+B154+B155+B152+B150+B146+B145+B144 -> 8 | G145: 11
A146: Limited Leave with Recourse to Public Funds (other) | B146: 0 | C146: 0 | E146: British | F146: =B162 -> 0 | G146: 0
A147: Limited leave with NRPF (10 year route) | B147: 4 | C147: 5.128205128
A148: Limited leave with NRPF (other) | B148: 4 | C148: 5.128205128
A149: UASC leave | B149: 0 | C149: 0
A150: No record held by HO (non EEA) | B150: 0 | C150: 0
A151: Humanitarian Protection | B151: 0 | C151: 0
A152: Refugee Status | B152: 0 | C152: 0
A153: Indefinite leave | B153: 0 | C153: 0
A154: Discretionary leave - trafficking | B154: 0 | C154: 0
A155: DDV Concession | B155: 0 | C155: 0
A156: Over-stayer / Deception / Breach - asylum claimed 'no' | B156: 22 | C156: 28.20512821
A157: Over-stayer / Deception / Breach - asylum claimed 'yes' | B157: 8 | C157: 10.25641026
A158: In Country Asylum Seeker | B158: 0 | C158: 0
A159: Illegal entrant - asylum claimed 'no' | B159: 3 | C159: 3.846153846
A160: Illegal entrant - asylum claimed 'yes' | B160: 6 | C160: 7.692307692
A161: Port Case | B161: 1 | C161: 1.282051282
A162: British | B162: 0 | C162: 0
A166: Adults - open cases as of 31 March 2021 | B166: Total | C166: Percentage | E166: Summary - adults - 31 March 2021 | F166: Number | G166: Percentage
A167: EEA nationals or EU residence rights - not granted EUSS | B167: 2 | C167: =100/18*B167 -> 11.11111111 | E167: EEA national or EU residence rights | F167: =B167+B168+B169 -> 2 | G167: =100/18*F167 -> 11.11111111
A168: Indefinite leave to remain (EU Settlement Scheme) | B168: 0 | C168: =100/18*B168 -> 0 | E168: Leave to Remain (LTR) with NRPF | F168: =B173+B174 -> 0 | G168: 0
A169: Leave to remain (EU Settlement Scheme) | B169: 0 | C169: 0 | E169: No current immigration permission | F169: =B185+B182+B177 -> 5 | G169: 27.77777778
A170: Limited leave with recourse to public funds (10 year route) | B170: 0 | C170: 0 | E170: Asylum seeker / asylum seeker ARE | F170: =B187+B184+B186+B183+B175 -> 11 | G170: 61.11111111
A171: Limited leave with recourse to public funds (following COC) | B171: 0 | C171: 0 | E171: Leave to Remain (LTR) with recourse | F171: =B179+B180+B181+B178+B176+B172+B171+B170 -> 0 | G171: 0
A172: Limited Leave with Recourse to Public Funds (other) | B172: 0 | C172: 0 | E172: British | F172: =B188 -> 0 | G172: 0
A173: Limited leave with NRPF (10 year route) | B173: 0 | C173: 0
A174: Limited leave with NRPF (other) | B174: 0 | C174: 0
A175: UASC leave | B175: 0 | C175: 0
A176: Indefinite Leave | B176: 0 | C176: 0
A177: No record held by HO (non EEA) | B177: 1 | C177: 5.555555556
A178: Humanitarian Protection | B178: 0 | C178: 0
A179: Refugee Status | B179: 0 | C179: 0
A180: Discretionary leave - trafficking | B180: 0 | C180: 0
A181: DDV Concession | B181: 0 | C181: 0
A182: Over-stayer / Deception / Breach - asylum claimed 'no' | B182: 3 | C182: 16.66666667
A183: Over-stayer / Deception / Breach - asylum claimed 'yes' | B183: 7 | C183: 38.88888889
A184: In Country Asylum Seeker | B184: 0 | C184: 0
A185: Illegal entrant - asylum claimed 'no' | B185: 1 | C185: 5.555555556
A186: Illegal entrant - asylum claimed 'yes' | B186: 3 | C186: 16.66666667
A187: Port Case | B187: 1 | C187: 5.555555556
A188: British | B188: 0 | C188: 0
A192: looked after children and care leavers - open cases as of 31 March 2021 | B192: Total | C192: Percentage | E192: Summary - LAC / CL - 31 March 21 | F192: Number | G192: Percentage
A193: EEA nationals or EU residence rights - not granted EUSS | B193: 13 | C193: =100/462*B193 -> 2.813852814 | E193: EEA national or EU residence rights | F193: =B193+B194+B195 -> 14 | G193: =100/461*F193 -> 3.036876356
A194: Indefinite leave to remain (EU Settlement Scheme) | B194: 1 | C194: =100/462*B194 -> 0.2164502165 | E194: Leave to Remain (LTR) with NRPF | F194: =B199+B200 -> 0 | G194: =100/461*F194 -> 0
A195: Leave to remain (EU Settlement Scheme) | B195: 0 | C195: 0 | E195: No current immigration permission | F195: =B211+B208+B203 -> 49 | G195: 10.62906725
A196: Limited leave with recourse to public funds (10 year route) | B196: 0 | C196: 0 | E196: Asylum seeker / asylum seeker ARE | F196: =B213+B210+B212+B209+B201 -> 189 | G196: 40.9978308
A197: Limited leave with recourse to public funds (following COC) | B197: 0 | C197: 0 | E197: Leave to Remain (LTR) with recourse | F197: =B205+B206+B207+B204+B202+B198+B197+B196 -> 208 | G197: 45.11930586
A198: Limited Leave with Recourse to Public Funds (other) | B198: 20 | C198: 4.329004329 | E198: British | F198: =B214 -> 1 | G198: 0.2169197397
A199: Limited leave with NRPF (10 year route) | B199: 0 | C199: 0
A200: Limited leave with NRPF (other) | B200: 0 | C200: 0
A201: UASC leave | B201: 12 | C201: 2.597402597
A202: Indefinite Leave | B202: 11 | C202: 2.380952381
A203: No record held by HO (non EEA) | B203: 19 | C203: 4.112554113
A204: Humanitarian Protection | B204: 15 | C204: 3.246753247
A205: Refugee Status | B205: 161 | C205: 34.84848485
A206: Discretionary leave - trafficking | B206: 1 | C206: 0.2164502165
A207: DDV Concession | B207: 0 | C207: 0
A208: Over-stayer / Deception / Breach - asylum claimed 'no' | B208: 1 | C208: 0.2164502165
A209: Over-stayer / Deception / Breach - asylum claimed 'yes' | B209: 21 | C209: 4.545454545
A210: In Country Asylum Seeker | B210: 4 | C210: 0.8658008658
A211: Illegal entrant - asylum claimed 'no' | B211: 29 | C211: 6.277056277
A212: Illegal entrant - asylum claimed 'yes' | B212: 151 | C212: 32.68398268
A213: Port Case | B213: 1 | C213: 0.2164502165
A214: British | B214: 1 | C214: 0.2164502165
A218: Immigration status families - all referrals for the year | B218: Total | C218: Percentage | E218: Summary - families referred - F/Y | F218: Number | G218: Percentage
A219: EEA nationals or EU residence rights - not granted EUSS | B219: 44 | C219: =100/252*B219 -> 17.46031746 | E219: EEA national or EU residence rights | F219: =B219+B220+B221 -> 88 | G219: =100/252*F219 -> 34.92063492
A220: Indefinite leave to remain (EU Settlement Scheme) | B220: 16 | C220: =100/252*B220 -> 6.349206349 | E220: Leave to Remain (LTR) with NRPF | F220: =B225+B226 -> 40 | G220: =100/252*F220 -> 15.87301587
A221: Leave to remain (EU Settlement Scheme) | B221: 28 | C221: 11.11111111 | E221: No current immigration permission | F221: =B237+B234+B229 -> 44 | G221: 18
A222: Limited leave with recourse to public funds (10 year route) | B222: 10 | C222: 3.968253968 | E222: Asylum seeker / asylum seeker ARE | F222: =B239+B236+B238+B235+B227 -> 39 | G222: 15.47619048
A223: Limited leave with recourse to public funds (following COC) | B223: 4 | C223: 1.587301587 | E223: Leave to Remain (LTR) with recourse | F223: =B231+B232+B233+B230+B228+B224+B223+B222 -> 39 | G223: 15.47619048
A224: Limited Leave with Recourse to Public Funds (other) | B224: 7 | C224: 2.777777778 | E224: British | F224: =B240 -> 2 | G224: 0.7936507937
A225: Limited leave with NRPF (10 year route) | B225: 15 | C225: 5.952380952
A226: Limited leave with NRPF (other) | B226: 25 | C226: 9.920634921
A227: UASC leave | B227: 0 | C227: 0
A228: Indefinite Leave | B228: 7 | C228: 2.777777778
A229: No record held by HO (non EEA) | B229: 14 | C229: 5.555555556
A230: Humanitarian Protection | B230: 0 | C230: 0
A231: Refugee Status | B231: 5 | C231: 1.984126984
A232: Discretionary leave - trafficking | B232: 0 | C232: 0
A233: DDV Concession | B233: 6 | C233: 2.380952381
A234: Over-stayer / Deception / Breach - asylum claimed 'no' | B234: 23 | C234: 9.126984127
A235: Over-stayer / Deception / Breach - asylum claimed 'yes' | B235: 10 | C235: 3.968253968
A236: In Country Asylum Seeker | B236: 2 | C236: 0.7936507937
A237: Illegal entrant - asylum claimed 'no' | B237: 7 | C237: 2.777777778
A238: Illegal entrant - asylum claimed 'yes' | B238: 26 | C238: 10.31746032
A239: Port Case | B239: 1 | C239: 0.3968253968
A240: British | B240: 2 | C240: 0.7936507937
A244: Immigration status adults - all referrals for the year | B244: Total | C244: Percentage | E244: Summary - adults referred - F/Y | F244: Number | G244: Percentage
A245: EEA nationals or EU residence rights - not granted EUSS | B245: 9 | C245: =100/72*B245 -> 12.5 | E245: EEA national or EU residence rights | F245: =B245+B246+B247 -> 23 | G245: =100/72*F245 -> 31.94444444
A246: Indefinite leave to remain (EU Settlement Scheme) | B246: 2 | C246: =100/72*B246 -> 2.777777778 | E246: Leave to Remain (LTR) with NRPF | F246: =B251+B252 -> 6 | G246: =100/72*F246 -> 8.333333333
A247: Leave to remain (EU Settlement Scheme) | B247: 12 | C247: 16.66666667 | E247: No current immigration permission | F247: =B263+B260+B255 -> 23 | G247: 31.94444444
A248: Limited leave with recourse to public funds (10 year route) | B248: 0 | C248: 0 | E248: Asylum seeker / asylum seeker ARE | F248: =B265+B262+B264+B261+B253 -> 14 | G248: 19.44444444
A249: Limited leave with recourse to public funds (following COC) | B249: 0 | C249: 0 | E249: Leave to Remain (LTR) with recourse | F249: =B257+B258+B259+B256+B254+B250+B249+B248 -> 4 | G249: 5.555555556
A250: Limited Leave with Recourse to Public Funds (other) | B250: 0 | C250: 0 | E250: British | F250: =B266 -> 2 | G250: 2.777777778
A251: Limited leave with NRPF (10 year route) | B251: 3 | C251: 4.166666667
A252: Limited leave with NRPF (other) | B252: 3 | C252: 4.166666667
A253: UASC leave | B253: 0 | C253: 0
A254: Indefinite Leave | B254: 2 | C254: 2.777777778
A255: No record held by HO (non EEA) | B255: 13 | C255: 18.05555556
A256: Humanitarian Protection | B256: 0 | C256: 0
A257: Refugee Status | B257: 0 | C257: 0
A258: Discretionary leave - trafficking | B258: 0 | C258: 0
A259: DDV Concession | B259: 2 | C259: 2.777777778
A260: Over-stayer / Deception / Breach - asylum claimed 'no' | B260: 7 | C260: 9.722222222
A261: Over-stayer / Deception / Breach - asylum claimed 'yes' | B261: 5 | C261: 6.944444444
A262: In Country Asylum Seeker | B262: 0 | C262: 0
A263: Illegal entrant - asylum claimed 'no' | B263: 3 | C263: 4.166666667
A264: Illegal entrant - asylum claimed 'yes' | B264: 7 | C264: 9.722222222
A265: Port Case | B265: 2 | C265: 2.777777778
A266: British | B266: 2 | C266: 2.777777778

Sheet Greater London
A1: Description - all local authorities 2020-2021 | B1: Q1 20/21 | C1: Q2 20/21 | D1: Q3 20/21 | E1: Q4 20/21
A2: Number of local authorities subscribing at end of quarter | B2: 30 | C2: 30 | D2: 30 | E2: 30
A3: Number of local authorities with data uploaded at end of quarter - all case types | B3: 30 | C3: 30 | D3: 30 | E3: 30
A4: Number of local authorities with data for family cases | B4: 30 | C4: 30 | D4: 30 | E4: 30
A5: Number of local authorities with data for adult cases | B5: 23 | C5: 22 | D5: 22 | E5: 22
A6: Number of local authorities with data for children / care leaver cases | B6: 13 | C6: 14 | D6: 14 | E6: 14
A10: Family cases | B10: Q1 20/21 | C10: Q2 20/21 | D10: Q3 20/21 | E10: Q4 20/21
A11: Number of financially supported households at end of quarter | B11: 995 | C11: 1002 | D11: 1087 | E11: 1045
A12: Number of dependants of financially supported households at end of quarter | B12: 1814 | C12: 1785 | D12: 1914 | E12: 1809
A13: Total weekly spend for the cases supported at the end of the quarter | B13: 314275 | C13: 323450 | D13: 356091 | E13: 355416
A14: Average annual cost per case | B14: =B13/B11*52 -> 16424.42211 | C14: =C13/C11*52 -> 16785.82834 | D14: =D13/D11*52 -> 17034.71205 | E14: 17685.77225
A15: Average annual cost (weekly spend X 52) | B15: =B13*52 -> 16342300 | C15: =C13*52 -> 16819400 | D15: =D13*52 -> 18516732 | E15: 18481632
A16: Average number of days on support, cases open at end of quarter | B16: 536 | C16: 552 | D16: 552 | E16: 569
A17: Of Row 11 - Number that are non EEA and unresolved | B17: 767 | C17: 779 | D17: 850 | E17: 794
A18: Of Row 11 - EEA national or EEA family member / derivative rights | B18: 88 | C18: 99 | D18: 95 | E18: 98
A19: Of Row 11 - Number that are non EEA but have LTR with recourse | B19: 140 | C19: 124 | D19: 142 | E19: 153
A20: Of Row 17 - Number that are 1000 day cases | B20: 112 | C20: 109 | D20: 112 | E20: 110
A21: Of Row 18 - Number of 1000 day EEA national cases without 'settled status | B21: 19 | C21: 20 | D21: 18 | E21: 13
A22: Non EEA 1000 day cases, percentage of unresolved cohort (row 20 / row 17) | B22: 0.15 | C22: 0.14 | D22: 0.13 | E22: 0.14
A23: EEA 1000 day cases, percentage of unresolved cohort (row 21 / row 18) | B23: 0.2 | C23: 0.22 | D23: 0.2 | E23: 0.14
A24: Total number of referrals per quarter | B24: 564 | C24: 517 | D24: 476 | E24: 431
A25: Total number of new cases taken on for support within quarter | B25: 262 | C25: 224 | D25: 231 | E25: 169
A26: Total number of supported cases closed within quarter | B26: 147 | C26: 217 | D26: 161 | E26: 195
A30: Adult cases | B30: Q1 20/21 | C30: Q2 20/21 | D30: Q3 20/21 | E30: Q4 20/21
A31: Number of financially supported households at end of quarter | B31: 472 | C31: 460 | D31: 490 | E31: 494
A32: Total weekly spend for the cases supported at the end of the quarter | B32: 178686 | C32: 175429 | D32: 186636 | E32: 186270
A33: Average annual cost per case | B33: =B32*52/B31 -> 19685.74576 | C33: =C32*52/C31 -> 19831.10435 | D33: =D32*52/D31 -> 19806.26939 | E33: 19607.36842
A34: Average annual cost (weekly spend X 52) | B34: =B32*52 -> 9291672 | C34: =C32*52 -> 9122308 | D34: =D32*52 -> 9705072 | E34: 9686040
A35: Average number of days on support, cases open at end of quarter | B35: 962 | C35: 991 | D35: 945 | E35: 949
A36: Of Row 31 - Number that are non EEA and unresolved | B36: 381 | C36: 372 | D36: 384 | E36: 384
A37: Of Row 31 - EEA national or EEA family member / derivative rights | B37: 69 | C37: 70 | D37: 86 | E37: 79
A38: Of Row 31 - Number that are non EEA but have LTR with recourse | B38: 22 | C38: 18 | D38: 20 | E38: 31
A39: Of Row 31 - Number that are 1000 day cases | B39: 128 | C39: 130 | D39: 134 | E39: 132
A40: Of Row 31 - Number of 1000 day EEA national cases without 'settled status | B40: 15 | C40: 14 | D40: 14 | E40: 11
A41: Non EEA 1000 day cases, percentage of unresolved cohort (row 39 / row 36) | B41: 0.34 | C41: 0.35 | D41: 0.35 | E41: 0.34
A42: EEA 1000 day cases, percentage of unresolved cohort (row 40 / row 37) | B42: 0.23 | C42: 0.21 | D42: 0.16 | E42: 0.14
A43: Total number of referrals per quarter | B43: 277 | C43: 244 | D43: 258 | E43: 265
A44: Total number of new cases taken on for support within quarter | B44: 108 | C44: 52 | D44: 70 | E44: 61
A45: Total number of supported cases closed within quarter | B45: 48 | C45: 60 | D45: 43 | E45: 57
A50: Looked after children and care leavers | B50: Q1 20/21 | C50: Q2 20/21 | D50: Q3 20/21 | E50: Q4 20/21
A51: Number of open cases at end of quarter | B51: 1143 | C51: 1175 | D51: 1244 | E51: 1327
A52: Of which under age of 18 | B52: 85 | C52: 105 | D52: 151 | E52: 177
A53: Of which aged 18-21 | B53: 569 | C53: 584 | D53: 598 | E53: 660
A54: Of which aged 21 and over | B54: 489 | C54: 486 | D54: 495 | E54: 490
A55: Of number of open cases (row 51), number financially supported | B55: 415 | C55: 436 | D55: 453 | E55: 452
A56: Total weekly spend for the cases financially supported at end of quarter | B56: 153663 | C56: 164871 | D56: 170556 | E56: 176229
A57: Average annual cost per case | B57: =B56/B55*52 -> 19254.15904 | C57: =C56/C55*52 -> 19663.51376 | D57: =D56/D55*52 -> 19578.17219 | E57: 20274.13274
A58: Average annual cost (weekly spend X 52) | B58: =B56*52 -> 7990476 | C58: =C56*52 -> 8573292 | D58: =D56*52 -> 8868912 | E58: 9163908
A59: Total number of new cases recorded within the quarter | B59: 65 | C59: 55 | D59: 100 | E59: 159
A60: Total number of cases closed | B60: 52 | C60: 23 | D60: 31 | E60: 76
A70: Closure reason family and adult cases - all closures in the year | B70: Total | C70: Percentage
A71: EEA national - left the UK (LA Funded / self return) | B71: 31 | C71: =100/926*B71 -> 3.347732181
A72: Non-EEA national - left the UK (HO / LA funded) | B72: 7 | C72: =100/926*B72 -> 0.7559395248
A73: Accessed Asylum Support | B73: 69 | C73: 7.451403888
A74: No longer eligible | B74: =26+83 -> 109 | C74: 11.77105832
A75: EEA national / family member - accessed benefits / employment | B75: 31 | C75: 3.347732181
A76: Granted Leave to Remain | B76: =29+638+12 -> 679 | C76: 73.32613391
A92: Closure reason family cases - all closures in the year | B92: Total | C92: Percentage
A93: EEA national - left the UK (LA Funded / self return) | B93: 17 | C93: =100/714*B93 -> 2.380952381
A94: Non-EEA national - left the UK (HO / LA funded) | B94: 5 | C94: =100/714*B94 -> 0.700280112
A95: Accessed Asylum Support | B95: 41 | C95: 5.742296919
A96: No longer eligible | B96: =1+44 -> 45 | C96: 6.302521008
A97: EEA national / family member - accessed benefits / employment | B97: 22 | C97: 3.081232493
A98: Granted Leave to Remain | B98: =10+26+548 -> 584 | C98: 81.79271709
A114: Closure reason adult cases - all closures in the year | B114: Total | C114: Percentage
A115: EEA national - left the UK (LA Funded / self return) | B115: 14 | C115: =100/212*B115 -> 6.603773585
A116: Non-EEA national - left the UK (HO / LA funded) | B116: 2 | C116: =100/212*B116 -> 0.9433962264
A117: Accessed Asylum Support | B117: 28 | C117: 13.20754717
A118: No longer eligible | B118: 39 | C118: 18.39622642
A119: Deceased | B119: 25 | C119: 11.79245283
A120: EEA national / family member - accessed benefits / employment | B120: 9 | C120: 4.245283019
A121: Granted Leave to Remain | B121: =2+3+90 -> 95 | C121: 44.81132075
A135: Immigration status families - open cases as of 31 March 2021 | B135: Total | C135: Percentage | E135: Summary - families - 31 March 2021 | F135: Number | G135: Percentage
A136: EEA nationals or EU residence rights - not granted EUSS | B136: 60 | C136: =100/1017*B136 -> 5.899705015 | E136: EEA national or EU residence rights | F136: =B136+B137+B138 -> 98 | G136: =100/1017*F136 -> 9.636184857
A137: Indefinite leave to remain (EU Settlement Scheme) | B137: 7 | C137: =100/1017*B137 -> 0.6882989184 | E137: Leave to Remain (LTR) with NRPF | F137: =B142+B143 -> 92 | G137: =100/1017*F137 -> 9.046214356
A138: Leave to remain (EU Settlement Scheme) | B138: 31 | C138: 3.048180924 | E138: No current immigration permission | F138: =B154+B151+B146 -> 540 | G138: 53.09734513
A139: Limited leave with recourse to public funds (10 year route) | B139: 83 | C139: 8.161258604 | E139: Asylum seeker / asylum seeker ARE | F139: =B156+B153+B155+B152+B144 -> 118 | G139: 11.6027532
A140: Limited leave with recourse to public funds (following COC) | B140: 32 | C140: 3.146509341 | E140: Leave to Remain (LTR) with recourse | F140: =B148+B149+B150+B147+B145+B141+B140+B139 -> 167 | G140: 16.42084562
A141: Limited Leave with Recourse to Public Funds (other) | B141: 17 | C141: 1.671583088 | E141: British | F141: =B157 -> 2 | G141: 0.1966568338
A142: Limited leave with NRPF (10 year route) | B142: 44 | C142: 4.326450344
A143: Limited leave with NRPF (other) | B143: 48 | C143: 4.719764012
A144: UASC leave | B144: 0 | C144: 0
A145: No record held by HO (non EEA) | B145: 23 | C145: 2.261553589
A146: Humanitarian Protection | B146: 1 | C146: 0.09832841691
A147: Refugee Status | B147: 2 | C147: 0.1966568338
A148: Indefinite leave | B148: 10 | C148: 0.9832841691
A149: Discretionary leave - trafficking | B149: 0 | C149: 0
A150: DDV Concession | B150: 0 | C150: 0
A151: Over-stayer / Deception / Breach - asylum claimed 'no' | B151: 476 | C151: 46.80432645
A152: Over-stayer / Deception / Breach - asylum claimed 'yes' | B152: 64 | C152: 6.293018682
A153: In Country Asylum Seeker | B153: 3 | C153: 0.2949852507
A154: Illegal entrant - asylum claimed 'no' | B154: 63 | C154: 6.194690265
A155: Illegal entrant - asylum claimed 'yes' | B155: 39 | C155: 3.83480826
A156: Port Case | B156: 12 | C156: 1.179941003
A157: British | B157: 2 | C157: 0.1966568338
A161: Adults - open cases as of 31 March 2021 | B161: Total | C161: Percentage | E161: Summary - adults - 31 March 2021 | F161: Number | G161: Percentage
A162: EEA nationals or EU residence rights - not granted EUSS | B162: 70 | C162: =100/478*B162 -> 14.64435146 | E162: EEA national or EU residence rights | F162: =B162+B163+B164 -> 79 | G162: 16
A163: Indefinite leave to remain (EU Settlement Scheme) | B163: 1 | C163: =100/478*B163 -> 0.2092050209 | E163: Leave to Remain (LTR) with NRPF | F163: =B168+B169 -> 22 | G163: =100/478*F163 -> 4.60251046
A164: Leave to remain (EU Settlement Scheme) | B164: 8 | C164: 1.673640167 | E164: No current immigration permission | F164: =B180+B177+B172 -> 209 | G164: 43.72384937
A165: Limited leave with recourse to public funds (10 year route) | B165: 9 | C165: 1.882845188 | E165: Asylum seeker / asylum seeker ARE | F165: =B182+B179+B181+B178+B170 -> 137 | G165: 28.66108787
A166: Limited leave with recourse to public funds (following COC) | B166: 3 | C166: 0.6276150628 | E166: Leave to Remain (LTR) with recourse | F166: =B174+B175+B176+B173+B171+B167+B166+B165 -> 30 | G166: 6.276150628
A167: Limited Leave with Recourse to Public Funds (other) | B167: 16 | C167: 3.347280335 | E167: British | F167: =B183 -> 1 | G167: 0.2092050209
A168: Limited leave with NRPF (10 year route) | B168: 8 | C168: 1.673640167
A169: Limited leave with NRPF (other) | B169: 14 | C169: 2.928870293
A170: UASC leave | B170: 0 | C170: 0
A171: Indefinite Leave | B171: 1 | C171: 0.2092050209
A172: No record held by HO (non EEA) | B172: 36 | C172: 7.531380753
A173: Humanitarian Protection | B173: 0 | C173: 0
A174: Refugee Status | B174: 1 | C174: 0.2092050209
A175: Discretionary leave - trafficking | B175: 0 | C175: 0
A176: DDV Concession | B176: 0 | C176: 0
A177: Over-stayer / Deception / Breach - asylum claimed 'no' | B177: 146 | C177: 30.54393305
A178: Over-stayer / Deception / Breach - asylum claimed 'yes' | B178: 62 | C178: 12.9707113
A179: In Country Asylum Seeker | B179: 10 | C179: 2.092050209
A180: Illegal entrant - asylum claimed 'no' | B180: 27 | C180: 5.648535565
A181: Illegal entrant - asylum claimed 'yes' | B181: 56 | C181: 11.71548117
A182: Port Case | B182: 9 | C182: 1.882845188
A183: British | B183: 1 | C183: 0.2092050209
A187: looked after children and care leavers - open cases as of 31 March 2021 | B187: Total | C187: Percentage | E187: Summary - LAC / CL - 31 March 21 | F187: Number | G187: Percentage
A188: EEA nationals or EU residence rights - not granted EUSS | B188: 39 | C188: =100/1246*B188 -> 3.130016051 | E188: EEA national or EU residence rights | F188: =B188+B189+B190 -> 43 | G188: =100/1246*F188 -> 3.451043339
A189: Indefinite leave to remain (EU Settlement Scheme) | B189: 1 | C189: =100/1246*B189 -> 0.08025682183 | E189: Leave to Remain (LTR) with NRPF | F189: =B194+B195 -> 10 | G189: =100/1246*F189 -> 0.8025682183
A190: Leave to remain (EU Settlement Scheme) | B190: 3 | C190: 0.2407704655 | E190: No current immigration permission | F190: =B206+B203+B198 -> 107 | G190: 8.587479936
A191: Limited leave with recourse to public funds (10 year route) | B191: 14 | C191: 1.123595506 | E191: Asylum seeker / asylum seeker ARE | F191: =B208+B205+B207+B204+B196 -> 878 | G191: 71
A192: Limited leave with recourse to public funds (following COC) | B192: 6 | C192: 0.481540931 | E192: Leave to Remain (LTR) with recourse | F192: =B200+B201+B202+B199+B197+B193+B192+B191 -> 203 | G192: 16.29213483
A193: Limited Leave with Recourse to Public Funds (other) | B193: 49 | C193: 3.93258427 | E193: British | F193: =B209 -> 5 | G193: 0.4012841091
A194: Limited leave with NRPF (10 year route) | B194: 5 | C194: 0.4012841091
A195: Limited leave with NRPF (other) | B195: 5 | C195: 0.4012841091
A196: UASC leave | B196: 24 | C196: 1.926163724
A197: Indefinite Leave | B197: 16 | C197: 1.284109149
A198: No record held by HO (non EEA) | B198: 50 | C198: 4.012841091
A199: Humanitarian Protection | B199: 7 | C199: 0.5617977528
A200: Refugee Status | B200: 111 | C200: 8.908507223
A201: Discretionary leave - trafficking | B201: 0 | C201: 0
A202: DDV Concession | B202: 0 | C202: 0
A203: Over-stayer / Deception / Breach - asylum claimed 'no' | B203: 25 | C203: 2.006420546
A204: Over-stayer / Deception / Breach - asylum claimed 'yes' | B204: 116 | C204: 9.309791332
A205: In Country Asylum Seeker | B205: 53 | C205: 4.253611557
A206: Illegal entrant - asylum claimed 'no' | B206: 32 | C206: 2.568218299
A207: Illegal entrant - asylum claimed 'yes' | B207: 674 | C207: 54.09309791
A208: Port Case | B208: 11 | C208: 0.8828250401
A209: British | B209: 5 | C209: 0.4012841091
A213: Immigration status families - all referrals for the year | B213: Total | C213: Percentage | E213: Summary - families referred - F/Y | F213: Number | G213: Percentage
A214: EEA nationals or EU residence rights - not granted EUSS | B214: 136 | C214: =100/1916*B214 -> 7.098121086 | E214: EEA national or EU residence rights | F214: =B214+B215+B216 -> 240 | G214: =100/1916*F214 -> 12.52609603
A215: Indefinite leave to remain (EU Settlement Scheme) | B215: 29 | C215: =100/1916*B215 -> 1.513569937 | E215: Leave to Remain (LTR) with NRPF | F215: =B220+B221 -> 391 | G215: =100/1916*F215 -> 20.40709812
A216: Leave to remain (EU Settlement Scheme) | B216: 75 | C216: 3.91440501 | E216: No current immigration permission | F216: =B232+B229+B224 -> 663 | G216: 34.60334029
A217: Limited leave with recourse to public funds (10 year route) | B217: 88 | C217: 4.592901879 | E217: Asylum seeker / asylum seeker ARE | F217: =B234+B231+B233+B230+B222 -> 225 | G217: 11.74321503
A218: Limited leave with recourse to public funds (following COC) | B218: 141 | C218: 7.35908142 | E218: Leave to Remain (LTR) with recourse | F218: =B226+B227+B228+B225+B223+B219+B218+B217 -> 369 | G218: 19.25887265
A219: Limited Leave with Recourse to Public Funds (other) | B219: 43 | C219: 2.244258873 | E219: British | F219: =B235 -> 28 | G219: 1.461377871
A220: Limited leave with NRPF (10 year route) | B220: 243 | C220: 12.68267223
A221: Limited leave with NRPF (other) | B221: 148 | C221: 7.724425887
A222: UASC leave | B222: 0 | C222: 0
A223: Indefinite Leave | B223: 38 | C223: 1.983298539
A224: No record held by HO (non EEA) | B224: 115 | C224: 6.002087683
A225: Humanitarian Protection | B225: 3 | C225: 0.1565762004
A226: Refugee Status | B226: 17 | C226: 0.8872651357
A227: Discretionary leave - trafficking | B227: 0 | C227: 0
A228: DDV Concession | B228: 39 | C228: 2.035490605
A229: Over-stayer / Deception / Breach - asylum claimed 'no' | B229: 493 | C229: 25.73068894
A230: Over-stayer / Deception / Breach - asylum claimed 'yes' | B230: 86 | C230: 4.488517745
A231: In Country Asylum Seeker | B231: 34 | C231: 1.774530271
A232: Illegal entrant - asylum claimed 'no' | B232: 55 | C232: 2.870563674
A233: Illegal entrant - asylum claimed 'yes' | B233: 86 | C233: 4.488517745
A234: Port Case | B234: 19 | C234: 0.9916492693
A235: British | B235: 28 | C235: 1.461377871
A239: Immigration status adults - all referrals for the year | B239: Total | C239: Percentage | E239: Summary - adults referred - F/Y | F239: Number | G239: Percentage
A240: EEA nationals or EU residence rights - not granted EUSS | B240: 150 | C240: =100/987*B240 -> 15.19756839 | E240: EEA national or EU residence rights | F240: =B240+B241+B242 -> 211 | G240: =100/987*F240 -> 21.37791287
A241: Indefinite leave to remain (EU Settlement Scheme) | B241: 27 | C241: =100/987*B241 -> 2.73556231 | E241: Leave to Remain (LTR) with NRPF | F241: =B246+B247 -> 86 | G241: =100/987*F241 -> 8.713272543
A242: Leave to remain (EU Settlement Scheme) | B242: 34 | C242: 3.444782168 | E242: No current immigration permission | F242: =B258+B255+B250 -> 327 | G242: 33.13069909
A243: Limited leave with recourse to public funds (10 year route) | B243: 14 | C243: 1.418439716 | E243: Asylum seeker / asylum seeker ARE | F243: =B260+B257+B259+B256+B248 -> 226 | G243: 22.89766971
A244: Limited leave with recourse to public funds (following COC) | B244: 11 | C244: 1.114488349 | E244: Leave to Remain (LTR) with recourse | F244: =B252+B253+B254+B251+B249+B245+B244+B243 -> 124 | G244: 12.5633232
A245: Limited Leave with Recourse to Public Funds (other) | B245: 26 | C245: 2.634245187 | E245: British | F245: =B261 -> 13 | G245: 1.317122594
A246: Limited leave with NRPF (10 year route) | B246: 44 | C246: 4.457953394
A247: Limited leave with NRPF (other) | B247: 42 | C247: 4.255319149
A248: UASC leave | B248: 0 | C248: 0
A249: Indefinite Leave | B249: 54 | C249: 5.47112462
A250: No record held by HO (non EEA) | B250: 110 | C250: 11.14488349
A251: Humanitarian Protection | B251: 2 | C251: 0.2026342452
A252: Refugee Status | B252: 17 | C252: 1.722391084
A253: Discretionary leave - trafficking | B253: 0 | C253: 0
A254: DDV Concession | B254: 0 | C254: 0
A255: Over-stayer / Deception / Breach - asylum claimed 'no' | B255: 193 | C255: 19.55420466
A256: Over-stayer / Deception / Breach - asylum claimed 'yes' | B256: 99 | C256: 10.03039514
A257: In Country Asylum Seeker | B257: 15 | C257: 1.519756839
A258: Illegal entrant - asylum claimed 'no' | B258: 24 | C258: 2.431610942
A259: Illegal entrant - asylum claimed 'yes' | B259: 96 | C259: 9.726443769
A260: Port Case | B260: 16 | C260: 1.621073961
A261: British | B261: 13 | C261: 1.317122594

Sheet North East
A1: Description - all local authorities 2020-2021 | B1: Q1 20/21 | C1: Q2 20/21 | D1: Q3 20/21 | E1: Q4 20/21
A2: Number of local authorities subscribing at end of quarter | B2: 3 | C2: 3 | D2: 3 | E2: 3
A3: Number of local authorities with data uploaded at end of quarter - all case types | B3: 3 | C3: 3 | D3: 3 | E3: 3
A4: Number of local authorities with data for family cases | B4: 3 | C4: 3 | D4: 3 | E4: 3
A5: Number of local authorities with data for adult cases | B5: 3 | C5: 3 | D5: 3 | E5: 3
A6: Number of local authorities with data for children / care leaver cases | B6: 1 | C6: 1 | D6: 1 | E6: 1
A10: Family cases | B10: Q1 20/21 | C10: Q2 20/21 | D10: Q3 20/21 | E10: Q4 20/21
A11: Number of financially supported households at end of quarter | B11: 10 | C11: 10 | D11: 8 | E11: 8
A12: Number of dependants of financially supported households at end of quarter | B12: 17 | C12: 17 | D12: 16 | E12: 16
A13: Total weekly spend for the cases supported at the end of the quarter | B13: 3005 | C13: 3007 | D13: 2713 | E13: 2713
A14: Average annual cost per case | B14: =B13*52/B11 -> 15626 | C14: =C13*52/C11 -> 15636.4 | D14: 17634.5 | E14: 17634.5
A15: Average annual cost (weekly spend X 52) | B15: =B13*52 -> 156260 | C15: =C13*52 -> 156364 | D15: 141076 | E15: 141076
A16: Average number of days on support, cases open at end of quarter | B16: 1286 | C16: 1378 | D16: 1461 | E16: 1551
A17: Of Row 11 - Number that are non EEA and unresolved | B17: 6 | C17: 6 | D17: 4 | E17: 4
A18: Of Row 11 - EEA national or EEA family member / derivative rights | B18: 1 | C18: 1 | D18: 1 | E18: 1
A19: Of Row 11 - Number that are non EEA but have LTR with recourse | B19: 3 | C19: 3 | D19: 3 | E19: 3
A20: Of Row 17 - Number that are 1000 day cases | B20: 5 | C20: 6 | D20: 4 | E20: 4
A21: Of Row 18 - Number of 1000 day EEA national cases without 'settled status | B21: 0 | C21: 1 | D21: 0 | E21: 0
A22: Non EEA 1000 day cases, percentage of unresolved cohort (row 20 / row 17) | B22: 0.83 | C22: 1 | D22: 1 | E22: 1
A23: EEA 1000 day cases, percentage of unresolved cohort (row 21 / row 18) | B23: 0 | C23: 1 | D23: 0 | E23: 0
A24: Total number of referrals per quarter | B24: 1 | C24: 0 | D24: 1 | E24: 0
A25: Total number of new cases taken on for support within quarter | B25: 1 | C25: 0 | D25: 0 | E25: 0
A26: Total number of supported cases closed within quarter | B26: 0 | C26: 0 | D26: 2 | E26: 0
A30: Adult cases | B30: Q1 20/21 | C30: Q2 20/21 | D30: Q3 20/21 | E30: Q4 20/21
A31: Number of financially supported households at end of quarter | B31: 10 | C31: 9 | D31: 9 | E31: 8
A32: Total weekly spend for the cases supported at the end of the quarter | B32: 2393 | C32: 2112 | D32: 2119 | E32: 1883
A33: Average annual cost per case | B33: =B32*52/B31 -> 12443.6 | C33: =C32*52/C31 -> 12202.66667 | D33: 12243.11111 | E33: 12239.5
A34: Average annual cost (weekly spend X 52) | B34: =B32*52 -> 124436 | C34: =C32*52 -> 109824 | D34: 110188 | E34: 97916
A35: Average number of days on support, cases open at end of quarter | B35: 1805 | C35: 1884 | D35: 1976 | E35: 2160
A36: Of Row 31 - Number that are non EEA and unresolved | B36: 9 | C36: 7 | D36: 7 | E36: 7
A37: Of Row 31 - EEA national or EEA family member / derivative rights | B37: 1 | C37: 1 | D37: 1 | E37: 1
A38: Of Row 31 - Number that are non EEA but have LTR with recourse | B38: 0 | C38: 1 | D38: 1 | E38: 0
A39: Of Row 31 - Number that are 1000 day cases | B39: 7 | C39: 6 | D39: 6 | E39: 6
A40: Of Row 31 - Number of 1000 day EEA national cases without 'settled status | B40: 0 | C40: 1 | D40: 1 | E40: 1
A41: Non EEA 1000 day cases, percentage of unresolved cohort (row 39 / row 36) | B41: 0.78 | C41: 0.86 | D41: 0.86 | E41: 0.86
A42: EEA 1000 day cases, percentage of unresolved cohort (row 40 / row 37) | B42: 0 | C42: 1 | D42: 1 | E42: 1
A43: Total number of referrals per quarter | B43: 1 | C43: 4 | D43: 5 | E43: 1
A44: Total number of new cases taken on for support within quarter | B44: 0 | C44: 0 | D44: 0 | E44: 0
A45: Total number of supported cases closed within quarter | B45: 1 | C45: 1 | D45: 0 | E45: 1
A51: Looked after children and care leavers | B51: Q1 20/21 | C51: Q2 20/21 | D51: Q3 20/21 | E51: Q4 20/21
A52: Number of open cases at end of quarter | B52: 12 | C52: 12 | D52: 12 | E52: 12
A53: Of which under age of 18 | B53: 0 | C53: 0 | D53: 0 | E53: 0
A54: Of which aged 18-21 | B54: 3 | C54: 3 | D54: 3 | E54: 3
A55: Of which aged 21 and over | B55: 9 | C55: 9 | D55: 9 | E55: 9
A56: Of number of open cases (row 52), number financially supported | B56: 8 | C56: 8 | D56: 7 | E56: 8
A57: Total weekly spend for the cases financially supported at end of quarter | B57: 1769 | C57: 1769 | D57: 1543 | E57: 1769
A58: Average annual cost per case | B58: =B57/B56*52 -> 11498.5 | C58: =C57/C56*52 -> 11498.5 | D58: 11462.28571 | E58: 11498.5
A59: Average annual cost (weekly spend X 52) | B59: =B57*52 -> 91988 | C59: =C57*52 -> 91988 | D59: 80236 | E59: 91988
A60: Total number of new cases recorded within the quarter | B60: 0 | C60: 0 | D60: 0 | E60: 0
A61: Total number of cases closed | B61: 0 | C61: 0 | D61: 0 | E61: 0
A70: Closure reason family and adult cases - all closures in the year | B70: Total | C70: Percentage
A71: EEA national - left the UK (LA Funded / self return) | B71: 0 | C71: =100/5*B71 -> 0
A72: Non-EEA national - left the UK (HO / LA funded) | B72: 0 | C72: =100/5*B72 -> 0
A73: Accessed Asylum Support | B73: 0 | C73: 0
A74: No longer eligible | B74: 2 | C74: 40
A75: EEA national / family member - accessed benefits / employment | B75: 0 | C75: 0
A76: Granted Leave to Remain | B76: 3 | C76: 60
A92: Closure reason family cases - all closures in the year | B92: Total | C92: Percentage
A93: EEA national - left the UK (LA Funded / self return) | C93: =100/714*B93 -> 0
A94: Non-EEA national - left the UK (HO / LA funded) | C94: =100/714*B94 -> 0
A95: Accessed Asylum Support | C95: 0
A96: No longer eligible | C96: 0
A97: EEA national / family member - accessed benefits / employment | C97: 0
A98: Granted Leave to Remain | C98: 0
A102: Closure reason adult cases - all closures in the year | B102: Total | C102: Percentage
A103: EEA national - left the UK (LA Funded / self return) | C103: =100/212*B103 -> 0
A104: Non-EEA national - left the UK (HO / LA funded) | C104: =100/212*B104 -> 0
A105: Accessed Asylum Support | C105: 0
A106: No longer eligible | C106: 0
A107: Deceased | C107: 0
A108: EEA national / family member - accessed benefits / employment | C108: 0
A109: Granted Leave to Remain | C109: 0
A113: Immigration status families - open cases as of 31 March 2021 | B113: Total | C113: Percentage | E113: Summary - families - 31 March 2021 | F113: Number | G113: Percentage
A114: EEA nationals or EU residence rights - not granted EUSS | B114: 1 | C114: =100/8*B114 -> 12.5 | E114: EEA national or EU residence rights | F114: =B114+B115+B116 -> 1 | G114: =100/8*F114 -> 12.5
A115: Indefinite leave to remain (EU Settlement Scheme) | B115: 0 | C115: =100/8*B115 -> 0 | E115: Leave to Remain (LTR) with NRPF | F115: =B120+B121 -> 1 | G115: =100/8*F115 -> 12.5
A116: Leave to remain (EU Settlement Scheme) | B116: 0 | C116: 0 | E116: No current immigration permission | F116: =B132+B129+B124 -> 1 | G116: 12.5
A117: Limited leave with recourse to public funds (10 year route) | B117: 2 | C117: 25 | E117: Asylum seeker / asylum seeker ARE | F117: =B134+B131+B133+B130+B122 -> 2 | G117: 25
A118: Limited leave with recourse to public funds (following COC) | B118: 0 | C118: 0 | E118: Leave to Remain (LTR) with recourse | F118: =B126+B127+B128+B125+B123+B119+B118+B117 -> 3 | G118: 37
A119: Limited Leave with Recourse to Public Funds (other) | B119: 1 | C119: 12.5 | E119: British | F119: =B135 -> 0 | G119: 0
A120: Limited leave with NRPF (10 year route) | B120: 0 | C120: 0
A121: Limited leave with NRPF (other) | B121: 1 | C121: 12.5
A122: UASC leave | B122: 0 | C122: 0
A123: No record held by HO (non EEA) | B123: 0 | C123: 0
A124: Humanitarian Protection | B124: 0 | C124: 0
A125: Refugee Status | B125: 0 | C125: 0
A126: Indefinite leave | B126: 0 | C126: 0
A127: Discretionary leave - trafficking | B127: 0 | C127: 0
A128: DDV Concession | B128: 0 | C128: 0
A129: Over-stayer / Deception / Breach - asylum claimed 'no' | B129: 0 | C129: 0
A130: Over-stayer / Deception / Breach - asylum claimed 'yes' | B130: 0 | C130: 0
A131: In Country Asylum Seeker | B131: 2 | C131: 25
A132: Illegal entrant - asylum claimed 'no' | B132: 1 | C132: 12.5
A133: Illegal entrant - asylum claimed 'yes' | B133: 0 | C133: 0
A134: Port Case | B134: 0 | C134: 0
A135: British | B135: 0 | C135: 0
A140: Adults - open cases as of 31 March 2021 | B140: Total | C140: Percentage | E140: Summary - adults - 31 March 2021 | F140: Number | G140: Percentage
A141: EEA nationals or EU residence rights - not granted EUSS | B141: 1 | C141: =100/8*B141 -> 12.5 | E141: EEA national or EU residence rights | F141: =B141+B142+B143 -> 1 | G141: 12
A142: Indefinite leave to remain (EU Settlement Scheme) | B142: 0 | C142: =100/8*B142 -> 0 | E142: Leave to Remain (LTR) with NRPF | F142: =B147+B148 -> 0 | G142: =100/8*F142 -> 0
A143: Leave to remain (EU Settlement Scheme) | B143: 0 | C143: 0 | E143: No current immigration permission | F143: =B159+B156+B151 -> 0 | G143: 0
A144: Limited leave with recourse to public funds (10 year route) | B144: 0 | C144: 0 | E144: Asylum seeker / asylum seeker ARE | F144: =B161+B158+B160+B157+B149 -> 7 | G144: 87.5
A145: Limited leave with recourse to public funds (following COC) | B145: 0 | C145: 0 | E145: Leave to Remain (LTR) with recourse | F145: =B153+B154+B155+B152+B150+B146+B145+B144 -> 0 | G145: 0
A146: Limited Leave with Recourse to Public Funds (other) | B146: 0 | C146: 0 | E146: British | F146: =B162 -> 0 | G146: 0
A147: Limited leave with NRPF (10 year route) | B147: 0 | C147: 0
A148: Limited leave with NRPF (other) | B148: 0 | C148: 0
A149: UASC leave | B149: 0 | C149: 0
A150: Indefinite Leave | B150: 0 | C150: 0
A151: No record held by HO (non EEA) | B151: 0 | C151: 0
A152: Humanitarian Protection | B152: 0 | C152: 0
A153: Refugee Status | B153: 0 | C153: 0
A154: Discretionary leave - trafficking | B154: 0 | C154: 0
A155: DDV Concession | B155: 0 | C155: 0
A156: Over-stayer / Deception / Breach - asylum claimed 'no' | B156: 0 | C156: 0
A157: Over-stayer / Deception / Breach - asylum claimed 'yes' | B157: 2 | C157: 25
A158: In Country Asylum Seeker | B158: 0 | C158: 0
A159: Illegal entrant - asylum claimed 'no' | B159: 0 | C159: 0
A160: Illegal entrant - asylum claimed 'yes' | B160: 5 | C160: 62.5
A161: Port Case | B161: 0 | C161: 0
A162: British | B162: 0 | C162: 0
A166: looked after children and care leavers - open cases as of 31 March 2021 | B166: Total | C166: Percentage | E166: Summary - LAC / CL - 31 March 21 | F166: Number | G166: Percentage
A167: EEA nationals or EU residence rights - not granted EUSS | E167: EEA national or EU residence rights
A168: Indefinite leave to remain (EU Settlement Scheme) | E168: Leave to Remain (LTR) with NRPF
A169: Leave to remain (EU Settlement Scheme) | E169: No current immigration permission
A170: Limited leave with recourse to public funds (10 year route) | E170: Asylum seeker / asylum seeker ARE
A171: Limited leave with recourse to public funds (following COC) | E171: Leave to Remain (LTR) with recourse
A172: Limited Leave with Recourse to Public Funds (other) | E172: British
A173: Limited leave with NRPF (10 year route)
A174: Limited leave with NRPF (other)
A175: UASC leave
A176: Indefinite Leave
A177: No record held by HO (non EEA)
A178: Humanitarian Protection
A179: Refugee Status
A180: Discretionary leave - trafficking
A181: DDV Concession
A182: Over-stayer / Deception / Breach - asylum claimed 'no'
A183: Over-stayer / Deception / Breach - asylum claimed 'yes'
A184: In Country Asylum Seeker
A185: Illegal entrant - asylum claimed 'no'
A186: Illegal entrant - asylum claimed 'yes'
A187: Port Case
A188: British
A192: Immigration status families - all referrals for the year | B192: Total | C192: Percentage
A193: EEA nationals or EU residence rights - not granted EUSS
A194: Indefinite leave to remain (EU Settlement Scheme)
A195: Leave to remain (EU Settlement Scheme)
A196: Limited leave with recourse to public funds (10 year route)
A197: Limited leave with recourse to public funds (following COC)
A198: Limited Leave with Recourse to Public Funds (other)
A199: Limited leave with NRPF (10 year route)
A200: Limited leave with NRPF (other)
A201: UASC leave
A202: Indefinite Leave
A203: No record held by HO (non EEA)
A204: Humanitarian Protection
A205: Refugee Status
A206: Discretionary leave - trafficking
A207: DDV Concession
A208: Over-stayer / Deception / Breach - asylum claimed 'no'
A209: Over-stayer / Deception / Breach - asylum claimed 'yes'
A210: In Country Asylum Seeker
A211: Illegal entrant - asylum claimed 'no'
A212: Illegal entrant - asylum claimed 'yes'
A213: Port Case
A214: British
A218: Immigration status adults - all referrals for the year | B218: Total | C218: Percentage
A219: EEA nationals or EU residence rights - not granted EUSS
A220: Indefinite leave to remain (EU Settlement Scheme)
A221: Leave to remain (EU Settlement Scheme)
A222: Limited leave with recourse to public funds (10 year route)
A223: Limited leave with recourse to public funds (following COC)
A224: Limited Leave with Recourse to Public Funds (other)
A225: Limited leave with NRPF (10 year route)
A226: Limited leave with NRPF (other)
A227: UASC leave
A228: Indefinite Leave
A229: No record held by HO (non EEA)
A230: Humanitarian Protection
A231: Refugee Status
A232: Discretionary leave - trafficking
A233: DDV Concession
A234: Over-stayer / Deception / Breach - asylum claimed 'no'
A235: Over-stayer / Deception / Breach - asylum claimed 'yes'
A236: In Country Asylum Seeker
A237: Illegal entrant - asylum claimed 'no'
A238: Illegal entrant - asylum claimed 'yes'
A239: Port Case
A240: British

Sheet North West
A1: Description - all local authorities 2020-2021 | B1: Q1 20/21 | C1: Q2 20/21 | D1: Q3 20/21 | E1: Q4 20/21
A2: Number of local authorities subscribing at end of quarter | B2: 2 | C2: 2 | D2: 2 | E2: 2
A3: Number of local authorities with data uploaded at end of quarter - all case types | B3: 2 | C3: 2 | D3: 2 | E3: 2
A4: Number of local authorities with data for family cases | B4: 2 | C4: 2 | D4: 2 | E4: 2
A5: Number of local authorities with data for adult cases | B5: 1 | C5: 2 | D5: 2 | E5: 1
A6: Number of local authorities with data for children / care leaver cases | B6: 0 | C6: 0 | D6: 0 | E6: 2
A10: Family cases | B10: Q1 20/21 | C10: Q2 20/21 | D10: Q3 20/21 | E10: Q4 20/21
A11: Number of financially supported households at end of quarter | B11: 50 | C11: 45 | D11: 38 | E11: 38
A12: Number of dependants of financially supported households at end of quarter | B12: 101 | C12: 91 | D12: 77 | E12: 77
A13: Total weekly spend for the cases supported at the end of the quarter | B13: 12922 | C13: 12279 | D13: 11501 | E13: 11560
A14: Average annual cost per case | B14: =B13*52/B11 -> 13438.88 | C14: =C13*52/C11 -> 14189.06667 | D14: =D13*52/D11 -> 15738.21053 | E14: 15818.94737
A15: Average annual cost (weekly spend X 52) | B15: =B13*52 -> 671944 | C15: =C13*52 -> 638508 | D15: 598052 | E15: 601120
A16: Average number of days on support, cases open at end of quarter | B16: 377 | C16: 385 | D16: 454 | E16: 493
A17: Of Row 11 - Number that are non EEA and unresolved | B17: 44 | C17: 37 | D17: 34 | E17: 34
A18: Of Row 11 - EEA national or EEA family member / derivative rights | B18: 2 | C18: 3 | D18: 0 | E18: 0
A19: Of Row 11 - Number that are non EEA but have LTR with recourse | B19: 4 | C19: 5 | D19: 4 | E19: 4
A20: Of Row 17 - Number that are 1000 day cases | B20: 7 | C20: 5 | D20: 4 | E20: 7
A21: Of Row 18 - Number of 1000 day EEA national cases without 'settled status | B21: 0 | C21: 0 | D21: 0 | E21: 0
A22: Non EEA 1000 day cases, percentage of unresolved cohort (row 20 / row 17) | B22: 0.16 | C22: 0.14 | D22: 0.12 | E22: 0.21
A23: EEA 1000 day cases, percentage of unresolved cohort (row 21 / row 18) | B23: 0 | C23: 0 | D23: 0 | E23: 0
A24: Total number of referrals per quarter | B24: 63 | C24: 40 | D24: 29 | E24: 40
A25: Total number of new cases taken on for support within quarter | B25: 24 | C25: 16 | D25: 13 | E25: 12
A26: Total number of supported cases closed within quarter | B26: 17 | C26: 21 | D26: 20 | E26: 12
A31: Adult cases | B31: Q1 20/21 | C31: Q2 20/21 | D31: Q3 20/21 | E31: Q4 20/21
A32: Number of financially supported households at end of quarter | B32: 20 | C32: 22 | D32: 21 | E32: 21
A33: Total weekly spend for the cases supported at the end of the quarter | B33: 6837 | C33: 7283 | D33: 7290 | E33: 5432
A34: Average annual cost per case | B34: =B33*52/B32 -> 17776.2 | C34: =C33*52/C32 -> 17214.36364 | D34: 18051.42857 | E34: 13450.66667
A35: Average annual cost (weekly spend X 52) | B35: =B33*52 -> 355524 | C35: =C33*52 -> 378716 | D35: 379080 | E35: 282464
A36: Average number of days on support, cases open at end of quarter | B36: 844 | C36: 824 | D36: 802 | E36: 831
A37: Of Row 31 - Number that are non EEA and unresolved | B37: 13 | C37: 14 | D37: 16 | E37: 15
A38: Of Row 31 - EEA national or EEA family member / derivative rights | B38: 7 | C38: 8 | D38: 5 | E38: 6
A39: Of Row 31 - Number that are non EEA but have LTR with recourse | B39: 0 | C39: 0 | D39: 0 | E39: 0
A40: Of Row 31 - Number that are 1000 day cases | B40: 6 | C40: 7 | D40: 6 | E40: 5
A41: Of Row 31 - Number of 1000 day EEA national cases without 'settled status | B41: 0 | C41: 0 | D41: 0 | E41: 1
A42: Non EEA 1000 day cases, percentage of unresolved cohort (row 39 / row 36) | B42: 0.46 | C42: 0.5 | D42: 0.38 | E42: 0.33
A43: EEA 1000 day cases, percentage of unresolved cohort (row 40 / row 37) | B43: 0 | C43: 0 | D43: 0 | E43: 0.17
A44: Total number of referrals per quarter | B44: 32 | C44: 23 | D44: 20 | E44: 20
A45: Total number of new cases taken on for support within quarter | B45: 2 | C45: 6 | D45: 6 | E45: 4
A46: Total number of supported cases closed within quarter | B46: 5 | C46: 4 | D46: 7 | E46: 4
A53: Looked after children and care leavers | B53: Q1 20/21 | C53: Q2 20/21 | D53: Q3 20/21 | E53: Q4 20/21
A54: Number of open cases at end of quarter
A55: Of which under age of 18
A56: Of which aged 18-21
A57: Of which aged 21 and over
A58: Of number of open cases (row 54), number financially supported
A59: Total weekly spend for the cases financially supported at end of quarter
A60: Average annual cost per case
A61: Average annual cost (weekly spend X 52)
A62: Total number of new cases recorded within the quarter
A63: Total number of cases closed
A70: Closure reason family and adult cases - all closures in the year | B70: Total | C70: Percentage
A71: EEA national - left the UK (LA Funded / self return) | B71: 3 | C71: =100/90*B71 -> 3.333333333
A72: Non-EEA national - left the UK (HO / LA funded) | B72: 0 | C72: =100/90*B72 -> 0
A73: Accessed Asylum Support | B73: 4 | C73: 4.444444444
A74: No longer eligible | B74: 9 | C74: 10
A75: EEA national / family member - accessed benefits / employment | B75: 5 | C75: 5.555555556
A76: Granted Leave to Remain | B76: =2+3+64 -> 69 | C76: 76.66666667
A92: Closure reason family cases - all closures in the year | B92: Total | C92: Percentage
A93: EEA national - left the UK (LA Funded / self return) | B93: 1 | C93: =100/70*B93 -> 1.428571429
A94: Non-EEA national - left the UK (HO / LA funded) | B94: 0 | C94: =100/70*B94 -> 0
A95: Accessed Asylum Support | B95: 1 | C95: 1.428571429
A96: No longer eligible | B96: 6 | C96: 8.571428571
A97: EEA national / family member - accessed benefits / employment | B97: 4 | C97: 5.714285714
A98: Granted Leave to Remain | B98: =2+2+54 -> 58 | C98: 82.85714286
A114: Closure reason adult cases - all closures in the year | B114: Total | C114: Percentage
A115: EEA national - left the UK (LA Funded / self return) | B115: 2 | C115: =100/20*B115 -> 10
A116: Non-EEA national - left the UK (HO / LA funded) | B116: 0 | C116: =100/20*B116 -> 0
A117: Accessed Asylum Support | B117: 3 | C117: 15
A118: No longer eligible | B118: 2 | C118: 10
A119: Deceased | B119: 1 | C119: 5
A120: EEA national / family member - accessed benefits / employment | B120: 1 | C120: 5
A121: Granted Leave to Remain | B121: 11 | C121: 55
A136: Immigration status families - open cases as of 31 March 2021 | B136: Total | C136: Percentage | E136: Summary - families - 31 March 2021 | F136: Number | G136: Percentage
A137: EEA nationals or EU residence rights - not granted EUSS | B137: 0 | C137: =100/37*B137 -> 0 | E137: EEA national or EU residence rights | F137: =B137+B138+B139 -> 0 | G137: =100/37*F137 -> 0
A138: Indefinite leave to remain (EU Settlement Scheme) | B138: 0 | C138: =100/37*B138 -> 0 | E138: Leave to Remain (LTR) with NRPF | F138: =B143+B144 -> 2 | G138: 6
A139: Leave to remain (EU Settlement Scheme) | B139: 0 | C139: 0 | E139: No current immigration permission | F139: =B155+B152+B147 -> 26 | G139: =100/37*F139 -> 70.27027027
A140: Limited leave with recourse to public funds (10 year route) | B140: 2 | C140: 5.405405405 | E140: Asylum seeker / asylum seeker ARE | F140: =B157+B154+B156+B153+B145 -> 6 | G140: 16.21621622
A141: Limited leave with recourse to public funds (following COC) | B141: 0 | C141: 0 | E141: Leave to Remain (LTR) with recourse | F141: =B149+B150+B151+B148+B146+B142+B141+B140 -> 3 | G141: 8.108108108
A142: Limited Leave with Recourse to Public Funds (other) | B142: 1 | C142: 2.702702703 | E142: British | F142: =B158 -> 0 | G142: 0
A143: Limited leave with NRPF (10 year route) | B143: 1 | C143: 2.702702703
A144: Limited leave with NRPF (other) | B144: 1 | C144: 2.702702703
A145: UASC leave | B145: 0 | C145: 0
A146: No record held by HO (non EEA) | B146: 0 | C146: 0
A147: Humanitarian Protection | B147: 0 | C147: 0
A148: Refugee Status | B148: 0 | C148: 0
A149: Indefinite leave | B149: 0 | C149: 0
A150: Discretionary leave - trafficking | B150: 0 | C150: 0
A151: DDV Concession | B151: 0 | C151: 0
A152: Over-stayer / Deception / Breach - asylum claimed 'no' | B152: 24 | C152: 64.86486486
A153: Over-stayer / Deception / Breach - asylum claimed 'yes' | B153: 3 | C153: 8.108108108
A154: In Country Asylum Seeker | B154: 0 | C154: 0
A155: Illegal entrant - asylum claimed 'no' | B155: 2 | C155: 5.405405405
A156: Illegal entrant - asylum claimed 'yes' | B156: 3 | C156: 8.108108108
A157: Port Case | B157: 0 | C157: 0
A158: British | B158: 0 | C158: =100/37*B158 -> 0
A162: Adults - open cases as of 31 March 2021 | B162: Total | C162: Percentage | E162: Summary - adults - 31 March 2021 | F162: Number | G162: Percentage
A163: EEA nationals or EU residence rights - not granted EUSS | B163: 6 | C163: =100/21*B163 -> 28.57142857 | E163: EEA national or EU residence rights | F163: =B163+B164+B165 -> 6 | G163: 28
A164: Indefinite leave to remain (EU Settlement Scheme) | B164: 0 | C164: =100/21*B164 -> 0 | E164: Leave to Remain (LTR) with NRPF | F164: =B169+B170 -> 1 | G164: =100/21*F164 -> 4.761904762
A165: Leave to remain (EU Settlement Scheme) | B165: 0 | C165: 0 | E165: No current immigration permission | F165: =B181+B178+B173 -> 6 | G165: 28.57142857
A166: Limited leave with recourse to public funds (10 year route) | B166: 0 | C166: 0 | E166: Asylum seeker / asylum seeker ARE | F166: =B183+B180+B182+B179+B171 -> 8 | G166: 38.0952381
A167: Limited leave with recourse to public funds (following COC) | B167: 0 | C167: 0 | E167: Leave to Remain (LTR) with recourse | F167: =B175+B176+B177+B174+B172+B168+B167+B166 -> 0 | G167: 0
A168: Limited Leave with Recourse to Public Funds (other) | B168: 0 | C168: 0 | E168: British | F168: =B184 -> 0 | G168: 0
A169: Limited leave with NRPF (10 year route) | B169: 0 | C169: 0
A170: Limited leave with NRPF (other) | B170: 1 | C170: 4.761904762
A171: UASC leave | B171: 0 | C171: 0
A172: Indefinite Leave | B172: 0 | C172: 0
A173: No record held by HO (non EEA) | B173: 0 | C173: 0
A174: Humanitarian Protection | B174: 0 | C174: 0
A175: Refugee Status | B175: 0 | C175: 0
A176: Discretionary leave - trafficking | B176: 0 | C176: 0
A177: DDV Concession | B177: 0 | C177: 0
A178: Over-stayer / Deception / Breach - asylum claimed 'no' | B178: 6 | C178: 28.57142857
A179: Over-stayer / Deception / Breach - asylum claimed 'yes' | B179: 2 | C179: 9.523809524
A180: In Country Asylum Seeker | B180: 0 | C180: 0
A181: Illegal entrant - asylum claimed 'no' | B181: 0 | C181: 0
A182: Illegal entrant - asylum claimed 'yes' | B182: 6 | C182: 28.57142857
A183: Port Case | B183: 0 | C183: 0
A184: British | B184: 0 | C184: 0
A188: looked after children and care leavers - open cases as of 31 March 2021 | B188: Total | C188: Percentage | E188: Summary - LAC / CL - 31 March 21 | F188: Number | G188: Percentage
A189: EEA nationals or EU residence rights - not granted EUSS | E189: EEA national or EU residence rights
A190: Indefinite leave to remain (EU Settlement Scheme) | E190: Leave to Remain (LTR) with NRPF
A191: Leave to remain (EU Settlement Scheme) | E191: No current immigration permission
A192: Limited leave with recourse to public funds (10 year route) | E192: Asylum seeker / asylum seeker ARE
A193: Limited leave with recourse to public funds (following COC) | E193: Leave to Remain (LTR) with recourse
A194: Limited Leave with Recourse to Public Funds (other) | E194: British
A195: Limited leave with NRPF (10 year route)
A196: Limited leave with NRPF (other)
A197: UASC leave
A198: Indefinite Leave
A199: No record held by HO (non EEA)
A200: Humanitarian Protection
A201: Refugee Status
A202: Discretionary leave - trafficking
A203: DDV Concession
A204: Over-stayer / Deception / Breach - asylum claimed 'no'
A205: Over-stayer / Deception / Breach - asylum claimed 'yes'
A206: In Country Asylum Seeker
A207: Illegal entrant - asylum claimed 'no'
A208: Illegal entrant - asylum claimed 'yes'
A209: Port Case
A210: British
A214: Immigration status families - all referrals for the year | B214: Total | C214: Percentage | E214: Summary - families referred - F/Y | F214: Number | G214: Percentage
A215: EEA nationals or EU residence rights - not granted EUSS | B215: 14 | C215: =100/163*B215 -> 8.588957055 | E215: EEA national or EU residence rights | F215: =B215+B216+B217 -> 21 | G215: =100/163*F215 -> 12.88343558
A216: Indefinite leave to remain (EU Settlement Scheme) | B216: 1 | C216: =100/163*B216 -> 0.6134969325 | E216: Leave to Remain (LTR) with NRPF | F216: =B221+B222 -> 46 | G216: =100/163*F216 -> 28.2208589
A217: Leave to remain (EU Settlement Scheme) | B217: 6 | C217: 3.680981595 | E217: No current immigration permission | F217: =B233+B230+B225 -> 51 | G217: 31.28834356
A218: Limited leave with recourse to public funds (10 year route) | B218: 4 | C218: 2.45398773 | E218: Asylum seeker / asylum seeker ARE | F218: =B235+B232+B234+B231+B223 -> 20 | G218: 12.26993865
A219: Limited leave with recourse to public funds (following COC) | B219: 7 | C219: 4.294478528 | E219: Leave to Remain (LTR) with recourse | F219: =B227+B228+B229+B226+B224+B220+B219+B218 -> 25 | G219: 15.33742331
A220: Limited Leave with Recourse to Public Funds (other) | B220: 6 | C220: 3.680981595 | E220: British | F220: =B236 -> 0 | G220: 0
A221: Limited leave with NRPF (10 year route) | B221: 25 | C221: 15.33742331
A222: Limited leave with NRPF (other) | B222: 21 | C222: 12.88343558
A223: UASC leave | B223: 0 | C223: 0
A224: Indefinite Leave | B224: 2 | C224: 1.226993865
A225: No record held by HO (non EEA) | B225: 10 | C225: 6.134969325
A226: Humanitarian Protection | B226: 0 | C226: 0
A227: Refugee Status | B227: 3 | C227: 1.840490798
A228: Discretionary leave - trafficking | B228: 0 | C228: 0
A229: DDV Concession | B229: 3 | C229: 1.840490798
A230: Over-stayer / Deception / Breach - asylum claimed 'no' | B230: 38 | C230: 23.31288344
A231: Over-stayer / Deception / Breach - asylum claimed 'yes' | B231: 9 | C231: 5.521472393
A232: In Country Asylum Seeker | B232: 0 | C232: 0
A233: Illegal entrant - asylum claimed 'no' | B233: 3 | C233: 1.840490798
A234: Illegal entrant - asylum claimed 'yes' | B234: 7 | C234: 4.294478528
A235: Port Case | B235: 4 | C235: 2.45398773
A236: British | B236: 0 | C236: 0
A240: Immigration status adults - all referrals for the year | B240: Total | C240: Percentage | E240: Summary - adults referred - F/Y | F240: Number | G240: Percentage
A241: EEA nationals or EU residence rights - not granted EUSS | B241: 14 | C241: =100/21*B241 -> 66.66666667 | E241: EEA national or EU residence rights | F241: =B241+B242+B243 -> 15 | G241: 0.17
A242: Indefinite leave to remain (EU Settlement Scheme) | B242: 0 | C242: =100/21*B242 -> 0 | E242: Leave to Remain (LTR) with NRPF | F242: =B247+B248 -> 15 | G242: 0.17
A243: Leave to remain (EU Settlement Scheme) | B243: 1 | C243: 4.761904762 | E243: No current immigration permission | F243: =B259+B256+B251 -> 28 | G243: 0.31
A244: Limited leave with recourse to public funds (10 year route) | B244: 0 | C244: 0 | E244: Asylum seeker / asylum seeker ARE | F244: =B261+B258+B260+B257+B249 -> 26 | G244: 0.29
A245: Limited leave with recourse to public funds (following COC) | B245: 1 | C245: 4.761904762 | E245: Leave to Remain (LTR) with recourse | F245: =B253+B254+B255+B252+B250+B246+B245+B244 -> 5 | G245: 0.05
A246: Limited Leave with Recourse to Public Funds (other) | B246: 1 | C246: 4.761904762 | E246: British | F246: =B262 -> 1 | G246: 0.01
A247: Limited leave with NRPF (10 year route) | B247: 4 | C247: 19.04761905
A248: Limited leave with NRPF (other) | B248: 11 | C248: 52.38095238
A249: UASC leave | B249: 3 | C249: 14.28571429
A250: Indefinite Leave | B250: 0 | C250: 0
A251: No record held by HO (non EEA) | B251: 9 | C251: 42.85714286
A252: Humanitarian Protection | B252: 0 | C252: 0
A253: Refugee Status | B253: 0 | C253: 0
A254: Discretionary leave - trafficking | B254: 0 | C254: 0
A255: DDV Concession | B255: 3 | C255: 14.28571429
A256: Over-stayer / Deception / Breach - asylum claimed 'no' | B256: 19 | C256: 90.47619048
A257: Over-stayer / Deception / Breach - asylum claimed 'yes' | B257: 7 | C257: 33.33333333
A258: In Country Asylum Seeker | B258: 0 | C258: 0
A259: Illegal entrant - asylum claimed 'no' | B259: 0 | C259: 0
A260: Illegal entrant - asylum claimed 'yes' | B260: 13 | C260: 61.9047619
A261: Port Case | B261: 3 | C261: 14.28571429
A262: British | B262: 1 | C262: 4.761904762

Sheet South East
A1: Description - all local authorities 2020-2021 | B1: Q1 20/21 | C1: Q2 20/21 | D1: Q3 20/21 | E1: Q4 20/21
A2: Number of local authorities subscribing at end of quarter | B2: 10 | C2: 11 | D2: 11 | E2: 12
A3: Number of local authorities with data uploaded at end of quarter - all case types | B3: 10 | C3: 10 | D3: 10 | E3: 11
A4: Number of local authorities with data for family cases | B4: 10 | C4: 10 | D4: 10 | E4: 10
A5: Number of local authorities with data for adult cases | B5: 6 | C5: 6 | D5: 7 | E5: 7
A6: Number of local authorities with data for children / care leaver cases | B6: 6 | C6: 5 | D6: 5 | E6: 5
A10: Family cases | B10: Q1 20/21 | C10: Q2 20/21 | D10: Q3 20/21 | E10: Q4 20/21
A11: Number of financially supported households at end of quarter | B11: 102 | C11: 106 | D11: 109 | E11: 113
A12: Number of dependants of financially supported households at end of quarter | B12: 186 | C12: 190 | D12: 194 | E12: 188
A13: Total weekly spend for the cases supported at the end of the quarter | B13: 29606 | C13: 31453 | D13: 32981 | E13: 33730
A14: Average annual cost per case | B14: =B13*52/B11 -> 15093.2549 | C14: =C13*52/C11 -> 15429.77358 | D14: =D13*52/D11 -> 15734.05505 | E14: =E13*52/E11 -> 15521.76991
A15: Average annual cost (weekly spend X 52) | B15: =B13*52 -> 1539512 | C15: =C13*52 -> 1635556 | D15: =D13*52 -> 1715012 | E15: =E13*52 -> 1753960
A16: Average number of days on support, cases open at end of quarter | B16: 704 | C16: 710 | D16: 744 | E16: 770
A17: Of Row 11 - Number that are non EEA and unresolved | B17: 64 | C17: 69 | D17: 65 | E17: 60
A18: Of Row 11 - EEA national or EEA family member / derivative rights | B18: 15 | C18: 18 | D18: 20 | E18: 19
A19: Of Row 11 - Number that are non EEA but have LTR with recourse | B19: 23 | C19: 19 | D19: 24 | E19: 34
A20: Of Row 17 - Number that are 1000 day cases | B20: 13 | C20: 11 | D20: 11 | E20: 9
A21: Of Row 18 - Number of 1000 day EEA national cases without 'settled status | B21: 4 | C21: 4 | D21: 4 | E21: 4
A22: Non EEA 1000 day cases, percentage of unresolved cohort (row 20 / row 17) | B22: 0.2 | C22: 0.16 | D22: 0.17 | E22: 0.15
A23: EEA 1000 day cases, percentage of unresolved cohort (row 21 / row 18) | B23: 0.27 | C23: 0.22 | D23: 0.21 | E23: 0.22
A24: Total number of referrals per quarter | B24: 45 | C24: 47 | D24: 54 | E24: 50
A25: Total number of new cases taken on for support within quarter | B25: 17 | C25: 17 | D25: 12 | E25: 28
A26: Total number of supported cases closed within quarter | B26: 10 | C26: 13 | D26: 9 | E26: 13
A31: Adult cases | B31: Q1 20/21 | C31: Q2 20/21 | D31: Q3 20/21 | E31: Q4 20/21
A32: Number of financially supported households at end of quarter | B32: 27 | C32: 27 | D32: 32 | E32: 32
A33: Total weekly spend for the cases supported at the end of the quarter | B33: 17527 | C33: 17570 | D33: 18294 | E33: 18237
A34: Average annual cost per case | B34: =B33*52/B32 -> 33755.7037 | C34: =C33*52/C32 -> 33838.51852 | D34: =D33*52/D32 -> 29727.75 | E34: 29635.125
A35: Average annual cost (weekly spend X 52) | B35: =B33*52 -> 911404 | C35: =C33*52 -> 913640 | D35: =D33*52 -> 951288 | E35: 948324
A36: Average number of days on support, cases open at end of quarter | B36: 796 | C36: 1092 | D36: 919 | E36: 1009
A37: Of Row 31 - Number that are non EEA and unresolved | B37: 18 | C37: 18 | D37: 23 | E37: 21
A38: Of Row 31 - EEA national or EEA family member / derivative rights | B38: 8 | C38: 8 | D38: 8 | E38: 9
A39: Of Row 31 - Number that are non EEA but have LTR with recourse | B39: 1 | C39: 1 | D39: 1 | E39: 2
A40: Of Row 31 - Number that are 1000 day cases | B40: 6 | C40: 6 | D40: 8 | E40: 9
A41: Of Row 31 - Number of 1000 day EEA national cases without 'settled status | B41: 2 | C41: 2 | D41: 3 | E41: 3
A42: Non EEA 1000 day cases, percentage of unresolved cohort (row 39 / row 36) | B42: 0.33 | C42: 0.33 | D42: 0.35 | E42: 0.43
A43: EEA 1000 day cases, percentage of unresolved cohort (row 40 / row 37) | B43: 0.25 | C43: 0.25 | D43: 0.38 | E43: 0.33
A44: Total number of referrals per quarter | B44: 0 | C44: 5 | D44: 8 | E44: 7
A45: Total number of new cases taken on for support within quarter | B45: 2 | C45: 0 | D45: 7 | E45: 0
A46: Total number of supported cases closed within quarter | B46: 6 | C46: 0 | D46: 2 | E46: 0
A53: Looked after children and care leavers | B53: Q1 20/21 | C53: Q2 20/21 | D53: Q3 20/21 | E53: Q4 20/21
A54: Number of open cases at end of quarter | B54: 182 | C54: 197 | D54: 233 | E54: 246
A55: Of which under age of 18 | B55: 11 | C55: 13 | D55: 19 | E55: 22
A56: Of which aged 18-21 | B56: 106 | C56: 119 | D56: 150 | E56: 163
A57: Of which aged 21 and over | B57: 65 | C57: 65 | D57: 64 | E57: 61
A58: Of number of open cases (row 54), number financially supported | B58: 143 | C58: 145 | D58: 147 | E58: 150
A59: Total weekly spend for the cases financially supported at end of quarter | B59: 47147 | C59: 48728.76 | D59: 49518 | E59: 49565
A60: Average annual cost per case | B60: =B59/B58*52 -> 17144.36364 | C60: =C59/C58*52 -> 17475.14152 | D60: =D59/D58*52 -> 17516.57143 | E60: 17182.53333
A61: Average annual cost (weekly spend X 52) | B61: =B59*52 -> 2451644 | C61: =C59*52 -> 2533895.52 | D61: =D59*52 -> 2574936 | E61: 2577380
A62: Total number of new cases recorded within the quarter | B62: 21 | C62: 33 | D62: 37 | E62: 24
A63: Total number of cases closed | B63: 12 | C63: 8 | D63: 12 | E63: 11
A74: Closure reason family and adult cases - all closures in the year | B74: Total | C74: Percentage
A75: EEA national - left the UK (LA Funded / self return) | B75: 1 | C75: =100/53*B75 -> 1.886792453
A76: Non-EEA national - left the UK (HO / LA funded) | B76: 0 | C76: =100/53*B76 -> 0
A77: Accessed Asylum Support | B77: 3 | C77: 5.660377358
A78: No longer eligible | B78: 1 | C78: 1.886792453
A79: EEA national / family member - accessed benefits / employment | B79: 1 | C79: 1.886792453
A80: Granted Leave to Remain | B80: =1+10+36 -> 47 | C80: 88.67924528
A95: Closure reason family cases - all closures in the year | B95: Total | C95: Percentage
A96: EEA national - left the UK (LA Funded / self return) | B96: 0 | C96: =100/45*B96 -> 0
A97: Non-EEA national - left the UK (HO / LA funded) | B97: 0 | C97: =100/45*B97 -> 0
A98: Accessed Asylum Support | B98: 3 | C98: 6.666666667
A99: No longer eligible | B99: 0 | C99: 0
A100: EEA national / family member - accessed benefits / employment | B100: 1 | C100: 2.222222222
A101: Granted Leave to Remain | B101: =9+32 -> 41 | C101: 91.11111111
A117: Closure reason adult cases - all closures in the year | B117: Total | C117: Percentage
A118: EEA national - left the UK (LA Funded / self return) | B118: 1 | C118: 12
A119: Non-EEA national - left the UK (HO / LA funded) | B119: 0 | C119: =100/8*B119 -> 0
A120: Accessed Asylum Support | B120: 0 | C120: 0
A121: No longer eligible | B121: 0 | C121: 0
A122: Deceased | B122: 1 | C122: 12.5
A123: EEA national / family member - accessed benefits / employment | B123: 0 | C123: 0
A124: Granted Leave to Remain | B124: 6 | C124: 75
A141: Immigration status families - open cases as of 31 March 2021 | B141: Total | C141: Percentage | E141: Summary - families - 31 March 2021 | F141: Number | G141: Percentage
A142: EEA nationals or EU residence rights - not granted EUSS | B142: 14 | C142: =100/111*B142 -> 12.61261261 | E142: EEA national or EU residence rights | F142: =B142+B143+B144 -> 19 | G142: =100/111*F142 -> 17.11711712
A143: Indefinite leave to remain (EU Settlement Scheme) | B143: 1 | C143: =100/111*B143 -> 0.9009009009 | E143: Leave to Remain (LTR) with NRPF | F143: =B148+B149 -> 8 | G143: =100/111*F143 -> 7.207207207
A144: Leave to remain (EU Settlement Scheme) | B144: 4 | C144: 3.603603604 | E144: No current immigration permission | F144: =B160+B157+B152 -> 30 | G144: 27.02702703
A145: Limited leave with recourse to public funds (10 year route) | B145: 19 | C145: 17.11711712 | E145: Asylum seeker / asylum seeker ARE | F145: =B162+B159+B161+B158+B150 -> 21 | G145: 18.91891892
A146: Limited leave with recourse to public funds (following COC) | B146: 2 | C146: 1.801801802 | E146: Leave to Remain (LTR) with recourse | F146: =B154+B155+B156+B153+B151+B147+B146+B145 -> 32 | G146: 28.82882883
A147: Limited Leave with Recourse to Public Funds (other) | B147: 3 | C147: 2.702702703 | E147: British | F147: =B163 -> 1 | G147: 0.9009009009
A148: Limited leave with NRPF (10 year route) | B148: 3 | C148: 2.702702703
A149: Limited leave with NRPF (other) | B149: 5 | C149: 4.504504505
A150: UASC leave | B150: 0 | C150: 0
A151: No record held by HO (non EEA) | B151: 2 | C151: 1.801801802
A152: Humanitarian Protection | B152: 1 | C152: 0.9009009009
A153: Refugee Status | B153: 1 | C153: 0.9009009009
A154: Indefinite leave | B154: 5 | C154: 4.504504505
A155: Discretionary leave - trafficking | B155: 0 | C155: 0
A156: DDV Concession | B156: 0 | C156: 0
A157: Over-stayer / Deception / Breach - asylum claimed 'no' | B157: 28 | C157: 25.22522523
A158: Over-stayer / Deception / Breach - asylum claimed 'yes' | B158: 9 | C158: 8.108108108
A159: In Country Asylum Seeker | B159: 0 | C159: 0
A160: Illegal entrant - asylum claimed 'no' | B160: 1 | C160: 0.9009009009
A161: Illegal entrant - asylum claimed 'yes' | B161: 11 | C161: 9.90990991
A162: Port Case | B162: 1 | C162: 0.9009009009
A163: British | B163: 1 | C163: 0.9009009009
A167: Adults - open cases as of 31 March 2021 | B167: Total | C167: Percentage | E167: Summary - adults - 31 March 2021 | F167: Number | G167: Percentage
A168: EEA nationals or EU residence rights - not granted EUSS | B168: 7 | C168: =100/31*B168 -> 22.58064516 | E168: EEA national or EU residence rights | F168: =B168+B169+B170 -> 8 | G168: =100/31*F168 -> 25.80645161
A169: Indefinite leave to remain (EU Settlement Scheme) | B169: 0 | C169: =100/31*B169 -> 0 | E169: Leave to Remain (LTR) with NRPF | F169: =B174+B175 -> 2 | G169: =100/31*F169 -> 6.451612903
A170: Leave to remain (EU Settlement Scheme) | B170: 1 | C170: 3.225806452 | E170: No current immigration permission | F170: =B186+B183+B178 -> 5 | G170: 16.12903226
A171: Limited leave with recourse to public funds (10 year route) | B171: 1 | C171: 3.225806452 | E171: Asylum seeker / asylum seeker ARE | F171: =B188+B185+B187+B184+B176 -> 13 | G171: 41.93548387
A172: Limited leave with recourse to public funds (following COC) | B172: 1 | C172: 3.225806452 | E172: Leave to Remain (LTR) with recourse | F172: =B180+B181+B182+B179+B177+B173+B172+B171 -> 3 | G172: 9.677419355
A173: Limited Leave with Recourse to Public Funds (other) | B173: 1 | C173: 3.225806452 | E173: British | F173: =B189 -> 0 | G173: 0
A174: Limited leave with NRPF (10 year route) | B174: 0 | C174: 0
A175: Limited leave with NRPF (other) | B175: 2 | C175: 6.451612903
A176: UASC leave | B176: 0 | C176: 0
A177: Indefinite Leave | B177: 0 | C177: 0
A178: No record held by HO (non EEA) | B178: 0 | C178: 0
A179: Humanitarian Protection | B179: 0 | C179: 0
A180: Refugee Status | B180: 0 | C180: 0
A181: Discretionary leave - trafficking | B181: 0 | C181: 0
A182: DDV Concession | B182: 0 | C182: 0
A183: Over-stayer / Deception / Breach - asylum claimed 'no' | B183: 5 | C183: 16.12903226
A184: Over-stayer / Deception / Breach - asylum claimed 'yes' | B184: 5 | C184: 16.12903226
A185: In Country Asylum Seeker | B185: 1 | C185: 3.225806452
A186: Illegal entrant - asylum claimed 'no' | B186: 0 | C186: 0
A187: Illegal entrant - asylum claimed 'yes' | B187: 5 | C187: 16.12903226
A188: Port Case | B188: 2 | C188: 6.451612903
A189: British | B189: 0 | C189: 0
A193: looked after children and care leavers - open cases as of 31 March 2021 | B193: Total | C193: Percentage | E193: Summary - LAC / CL - 31 March 21 | F193: Number | G193: Percentage
A194: EEA nationals or EU residence rights - not granted EUSS | B194: 3 | C194: =100/237*B194 -> 1.265822785 | E194: EEA national or EU residence rights | F194: =B194+B195+B196 -> 3 | G194: =100/237*F194 -> 1.265822785
A195: Indefinite leave to remain (EU Settlement Scheme) | B195: 0 | C195: =100/237*B195 -> 0 | E195: Leave to Remain (LTR) with NRPF | F195: =B200+B201 -> 4 | G195: =100/237*F195 -> 1.687763713
A196: Leave to remain (EU Settlement Scheme) | B196: 0 | C196: 0 | E196: No current immigration permission | F196: =B212+B209+B204 -> 11 | G196: 4.641350211
A197: Limited leave with recourse to public funds (10 year route) | B197: 0 | C197: 0 | E197: Asylum seeker / asylum seeker ARE | F197: =B214+B211+B213+B210+B202 -> 176 | G197: 74.26160338
A198: Limited leave with recourse to public funds (following COC) | B198: 0 | C198: 0 | E198: Leave to Remain (LTR) with recourse | F198: =B206+B207+B208+B205+B203+B199+B198+B197 -> 43 | G198: 18.14345992
A199: Limited Leave with Recourse to Public Funds (other) | B199: 9 | C199: 3.797468354 | E199: British | F199: =B215 -> 0 | G199: 0
A200: Limited leave with NRPF (10 year route) | B200: 1 | C200: 0.4219409283
A201: Limited leave with NRPF (other) | B201: 3 | C201: 1.265822785
A202: UASC leave | B202: 6 | C202: 2.53164557
A203: Indefinite Leave | B203: 1 | C203: 0.4219409283
A204: No record held by HO (non EEA) | B204: 2 | C204: 0.8438818565
A205: Humanitarian Protection | B205: 3 | C205: 1.265822785
A206: Refugee Status | B206: 30 | C206: 12.65822785
A207: Discretionary leave - trafficking | B207: 0 | C207: 0
A208: DDV Concession | B208: 0 | C208: 0
A209: Over-stayer / Deception / Breach - asylum claimed 'no' | B209: 4 | C209: 1.687763713
A210: Over-stayer / Deception / Breach - asylum claimed 'yes' | B210: 21 | C210: 8.860759494
A211: In Country Asylum Seeker | B211: 33 | C211: 13.92405063
A212: Illegal entrant - asylum claimed 'no' | B212: 5 | C212: 2.109704641
A213: Illegal entrant - asylum claimed 'yes' | B213: 109 | C213: 45.99156118
A214: Port Case | B214: 7 | C214: 2.953586498
A215: British | B215: 0 | C215: 0
A219: Immigration status families - all referrals for the year | B219: Total | C219: Percentage | E219: Summary - families referred - F/Y | F219: Number | G219: Percentage
A220: EEA nationals or EU residence rights - not granted EUSS | B220: 15 | C220: =100/195*B220 -> 7.692307692 | E220: EEA national or EU residence rights | F220: =B220+B221+B222 -> 25 | G220: =100/195*F220 -> 12.82051282
A221: Indefinite leave to remain (EU Settlement Scheme) | B221: 0 | C221: =100/195*B221 -> 0 | E221: Leave to Remain (LTR) with NRPF | F221: =B226+B227 -> 47 | G221: =100/195*F221 -> 24.1025641
A222: Leave to remain (EU Settlement Scheme) | B222: 10 | C222: 5.128205128 | E222: No current immigration permission | F222: =B238+B235+B230 -> 58 | G222: 29.74358974
A223: Limited leave with recourse to public funds (10 year route) | B223: 8 | C223: 4.102564103 | E223: Asylum seeker / asylum seeker ARE | F223: =B240+B237+B239+B236+B228 -> 27 | G223: 13.84615385
A224: Limited leave with recourse to public funds (following COC) | B224: 6 | C224: 3.076923077 | E224: Leave to Remain (LTR) with recourse | F224: =B232+B233+B234+B231+B229+B225+B224+B223 -> 34 | G224: 17.43589744
A225: Limited Leave with Recourse to Public Funds (other) | B225: 3 | C225: 1.538461538 | E225: British | F225: =B241 -> 4 | G225: 2.051282051
A226: Limited leave with NRPF (10 year route) | B226: 24 | C226: 12.30769231
A227: Limited leave with NRPF (other) | B227: 23 | C227: 11.79487179
A228: UASC leave | B228: 0 | C228: 0
A229: Indefinite Leave | B229: 7 | C229: 3.58974359
A230: No record held by HO (non EEA) | B230: 13 | C230: 6.666666667
A231: Humanitarian Protection | B231: 0 | C231: 0
A232: Refugee Status | B232: 5 | C232: 2.564102564
A233: Discretionary leave - trafficking | B233: 0 | C233: 0
A234: DDV Concession | B234: 5 | C234: 2.564102564
A235: Over-stayer / Deception / Breach - asylum claimed 'no' | B235: 41 | C235: 21.02564103
A236: Over-stayer / Deception / Breach - asylum claimed 'yes' | B236: 13 | C236: 6.666666667
A237: In Country Asylum Seeker | B237: 7 | C237: 3.58974359
A238: Illegal entrant - asylum claimed 'no' | B238: 4 | C238: 2.051282051
A239: Illegal entrant - asylum claimed 'yes' | B239: 6 | C239: 3.076923077
A240: Port Case | B240: 1 | C240: 0.5128205128
A241: British | B241: 4 | C241: 2.051282051
A245: Immigration status adults - all referrals for the year | B245: Total | C245: Percentage | E245: Summary - adults referred - F/Y | F245: Number | G245: Percentage
A246: EEA nationals or EU residence rights - not granted EUSS | B246: 2 | C246: =100/19*B246 -> 10.52631579 | E246: EEA national or EU residence rights | F246: =B246+B247+B248 -> 5 | G246: 27
A247: Indefinite leave to remain (EU Settlement Scheme) | B247: 0 | C247: =100/19*B247 -> 0 | E247: Leave to Remain (LTR) with NRPF | F247: =B252+B253 -> 3 | G247: =100/19*F247 -> 15.78947368
A248: Leave to remain (EU Settlement Scheme) | B248: 3 | C248: 15.78947368 | E248: No current immigration permission | F248: =B264+B261+B256 -> 4 | G248: 21.05263158
A249: Limited leave with recourse to public funds (10 year route) | B249: 0 | C249: 0 | E249: Asylum seeker / asylum seeker ARE | F249: =B266+B263+B265+B262+B254 -> 5 | G249: 26.31578947
A250: Limited leave with recourse to public funds (following COC) | B250: 0 | C250: 0 | E250: Leave to Remain (LTR) with recourse | F250: =B258+B259+B260+B257+B255+B251+B250+B249 -> 1 | G250: 5.263157895
A251: Limited Leave with Recourse to Public Funds (other) | B251: 0 | C251: 0 | E251: British | F251: =B267 -> 1 | G251: 5.263157895
A252: Limited leave with NRPF (10 year route) | B252: 1 | C252: 5.263157895
A253: Limited leave with NRPF (other) | B253: 2 | C253: 10.52631579
A254: UASC leave | B254: 0 | C254: 0
A255: Indefinite Leave | B255: 1 | C255: 5.263157895
A256: No record held by HO (non EEA) | B256: 1 | C256: 5.263157895
A257: Humanitarian Protection | B257: 0 | C257: 0
A258: Refugee Status | B258: 0 | C258: 0
A259: Discretionary leave - trafficking | B259: 0 | C259: 0
A260: DDV Concession | B260: 0 | C260: 0
A261: Over-stayer / Deception / Breach - asylum claimed 'no' | B261: 3 | C261: 15.78947368
A262: Over-stayer / Deception / Breach - asylum claimed 'yes' | B262: 2 | C262: 10.52631579
A263: In Country Asylum Seeker | B263: 1 | C263: 5.263157895
A264: Illegal entrant - asylum claimed 'no' | B264: 0 | C264: 0
A265: Illegal entrant - asylum claimed 'yes' | B265: 2 | C265: 10.52631579
A266: Port Case | B266: 0 | C266: 0
A267: British | B267: 1 | C267: 5.263157895

Sheet South West
A1: Description - all local authorities 2020-2021 | B1: Q1 20/21 | C1: Q2 20/21 | D1: Q3 20/21 | E1: Q4 20/21
A2: Number of local authorities subscribing at end of quarter | B2: 2 | C2: 2 | D2: 2 | E2: 2
A3: Number of local authorities with data uploaded at end of quarter - all case types | B3: 2 | C3: 2 | D3: 2 | E3: 2
A4: Number of local authorities with data for family cases | B4: 2 | C4: 2 | D4: 2 | E4: 2
A5: Number of local authorities with data for adult cases | B5: 1 | C5: 1 | D5: 1 | E5: 1
A6: Number of local authorities with data for children / care leaver cases | B6: 2 | C6: 2 | D6: 2 | E6: 1
A10: Family cases | B10: Q1 20/21 | C10: Q2 20/21 | D10: Q3 20/21 | E10: Q4 20/21
A11: Number of financially supported households at end of quarter | B11: 64 | C11: 75 | D11: 72 | E11: 62
A12: Number of dependants of financially supported households at end of quarter | B12: 118 | C12: 136 | D12: 123 | E12: 99
A13: Total weekly spend for the cases supported at the end of the quarter | B13: 17931 | C13: 20438 | D13: 17931 | E13: 18837
A14: Average annual cost per case | B14: =B13*52/B11 -> 14568.9375 | C14: =C13*52/C11 -> 14170.34667 | D14: 12950.16667 | E14: =E13*52/E11 -> 15798.77419
A15: Average annual cost (weekly spend X 52) | B15: =B13*52 -> 932412 | C15: =C13*52 -> 1062776 | D15: 932412 | E15: =E13*52 -> 979524
A16: Average number of days on support, cases open at end of quarter | B16: 618 | C16: 608 | D16: 634 | E16: 602
A17: Of Row 11 - Number that are non EEA and unresolved | B17: 46 | C17: 52 | D17: 50 | E17: 44
A18: Of Row 11 - EEA national or EEA family member / derivative rights | B18: 10 | C18: 10 | D18: 11 | E18: 10
A19: Of Row 11 - Number that are non EEA but have LTR with recourse | B19: 8 | C19: 13 | D19: 11 | E19: 8
A20: Of Row 17 - Number that are 1000 day cases | B20: 9 | C20: 8 | D20: 8 | E20: 7
A21: Of Row 18 - Number of 1000 day EEA national cases without 'settled status | B21: 2 | C21: 3 | D21: 3 | E21: 3
A22: Non EEA 1000 day cases, percentage of unresolved cohort (row 20 / row 17) | B22: 0.2 | C22: 0.15 | D22: 0.16 | E22: 0.16
A23: EEA 1000 day cases, percentage of unresolved cohort (row 21 / row 18) | B23: 0.2 | C23: 0.3 | D23: 0.3 | E23: 0.3
A24: Total number of referrals per quarter | B24: 9 | C24: 12 | D24: 19 | E24: 29
A25: Total number of new cases taken on for support within quarter | B25: 10 | C25: 12 | D25: 8 | E25: 10
A26: Total number of supported cases closed within quarter | B26: 10 | C26: 1 | D26: 11 | E26: 20
A33: Adult cases | B33: Q1 20/21 | C33: Q2 20/21 | D33: Q3 20/21 | E33: Q4 20/21
A34: Number of financially supported households at end of quarter | B34: 15 | C34: 18 | D34: 21 | E34: 19
A35: Total weekly spend for the cases supported at the end of the quarter | B35: 4908 | C35: 5660 | D35: 6165 | E35: 6048
A36: Average annual cost per case | B36: =B35*52/B34 -> 17014.4 | C36: =C35*52/C34 -> 16351.11111 | D36: 15265.71429 | E36: =E35*52/E34 -> 16552.42105
A37: Average annual cost (weekly spend X 52) | B37: =B35*52 -> 255216 | C37: =C35*52 -> 294320 | D37: 320580 | E37: =E35*52 -> 314496
A38: Average number of days on support, cases open at end of quarter | B38: 740 | C38: 698 | D38: 684 | E38: 784
A39: Of Row 31 - Number that are non EEA and unresolved | B39: 11 | C39: 14 | D39: 17 | E39: 16
A40: Of Row 31 - EEA national or EEA family member / derivative rights | B40: 4 | C40: 4 | D40: 4 | E40: 3
A41: Of Row 31 - Number that are non EEA but have LTR with recourse | B41: 0 | C41: 0 | D41: 0 | E41: 0
A42: Of Row 31 - Number that are 1000 day cases | B42: 4 | C42: 4 | D42: 4 | E42: 4
A43: Of Row 31 - Number of 1000 day EEA national cases without 'settled status | B43: 0 | C43: 0 | D43: 0 | E43: 0
A44: Non EEA 1000 day cases, percentage of unresolved cohort (row 39 / row 36) | B44: 0.36 | C44: 0.29 | D44: 0.24 | E44: 0.25
A45: EEA 1000 day cases, percentage of unresolved cohort (row 40 / row 37) | B45: 0 | C45: 0 | D45: 0 | E45: 0
A46: Total number of referrals per quarter | B46: 5 | C46: 6 | D46: 6 | E46: 2
A47: Total number of new cases taken on for support within quarter | B47: 3 | C47: 4 | D47: 3 | E47: 0
A48: Total number of supported cases closed within quarter | B48: 3 | C48: 1 | D48: 0 | E48: 2
A54: Looked after children and care leavers | B54: Q1 20/21 | C54: Q2 20/21 | D54: Q3 20/21 | E54: Q4 20/21
A55: Number of open cases at end of quarter | B55: 135 | C55: 140 | D55: 149 | E55: 123
A56: Of which under age of 18 | B56: 28 | C56: 31 | D56: 37 | E56: 42
A57: Of which aged 18-21 | B57: 57 | C57: 59 | D57: 64 | E57: 50
A58: Of which aged 21 and over | B58: 50 | C58: 50 | D58: 48 | E58: 31
A59: Of number of open cases (row 55), number financially supported | B59: 29 | C59: 29 | D59: 28 | E59: 29
A60: Total weekly spend for the cases financially supported at end of quarter | B60: 5259 | C60: 5317 | D60: 5159 | E60: 6554
A61: Average annual cost per case | B61: =B60/B59*52 -> 9429.931034 | C61: =C60/C59*52 -> 9533.931034 | D61: 9581 | E61: =E60/E59*52 -> 11752
A62: Average annual cost (weekly spend X 52) | B62: =B60*52 -> 273468 | C62: =C60*52 -> 276484 | D62: 268268 | E62: =E60*52 -> 340808
A63: Total number of new cases recorded within the quarter | B63: 5 | C63: 5 | D63: 13 | E63: 14
A64: Total number of cases closed | B64: 0 | C64: 0 | D64: 4 | E64: 40
A74: Closure reason family and adult cases - all closures in the year | B74: Total | C74: Percentage
A75: EEA national - left the UK (LA Funded / self return) | B75: 1 | C75: =100/49*B75 -> 2.040816327
A76: Non-EEA national - left the UK (HO / LA funded) | B76: 0 | C76: =100/49*B76 -> 0
A77: Accessed Asylum Support | B77: 2 | C77: 4.081632653
A78: No longer eligible | B78: 2 | C78: 4.081632653
A79: EEA national / family member - accessed benefits / employment | B79: 2 | C79: 4.081632653
A80: Granted Leave to Remain | B80: 42 | C80: 85.71428571
A96: Closure reason family cases - all closures in the year | B96: Total | C96: Percentage
A97: EEA national - left the UK (LA Funded / self return) | B97: 1 | C97: =100/42*B97 -> 2.380952381
A98: Non-EEA national - left the UK (HO / LA funded) | B98: 0 | C98: =100/42*B98 -> 0
A99: Accessed Asylum Support | B99: 0 | C99: 0
A100: No longer eligible | B100: 1 | C100: 2.380952381
A101: EEA national / family member - accessed benefits / employment | B101: 2 | C101: 4.761904762
A102: Granted Leave to Remain | B102: 38 | C102: 91
A118: Closure reason adult cases - all closures in the year | B118: Total | C118: Percentage
A119: EEA national - left the UK (LA Funded / self return) | B119: 0 | C119: 0
A120: Non-EEA national - left the UK (HO / LA funded) | B120: 0 | C120: 0
A121: Accessed Asylum Support | B121: 2 | C121: 0.29
A122: No longer eligible | B122: 1 | C122: 0.14
A123: Deceased | B123: 0 | C123: 0
A124: EEA national / family member - accessed benefits / employment | B124: 0 | C124: 0
A125: Granted Leave to Remain | B125: 4 | C125: 0.57
A140: Immigration status families - open cases as of 31 March 2021 | B140: Total | C140: Percentage | E140: Summary - families - 31 March 2021 | F140: Number | G140: Percentage
A141: EEA nationals or EU residence rights - not granted EUSS | B141: 6 | C141: =100/61*B141 -> 9.836065574 | E141: EEA national or EU residence rights | F141: =B141+B142+B143 -> 10 | G141: =100/61*F141 -> 16.39344262
A142: Indefinite leave to remain (EU Settlement Scheme) | B142: 0 | C142: =100/61*B142 -> 0 | E142: Leave to Remain (LTR) with NRPF | F142: =B147+B148 -> 4 | G142: 6.557377049
A143: Leave to remain (EU Settlement Scheme) | B143: 4 | C143: 6.557377049 | E143: No current immigration permission | F143: =B159+B156+B151 -> 17 | G143: 27.86885246
A144: Limited leave with recourse to public funds (10 year route) | B144: 2 | C144: 3.278688525 | E144: Asylum seeker / asylum seeker ARE | F144: =B161+B158+B160+B157+B149 -> 21 | G144: 34.42622951
A145: Limited leave with recourse to public funds (following COC) | B145: 1 | C145: 1.639344262 | E145: Leave to Remain (LTR) with recourse | F145: =B153+B154+B155+B152+B150+B146+B145+B144 -> 8 | G145: 13.1147541
A146: Limited Leave with Recourse to Public Funds (other) | B146: 1 | C146: 1.639344262 | E146: British | F146: =B162 -> 1 | G146: 1.639344262
A147: Limited leave with NRPF (10 year route) | B147: 2 | C147: 3.278688525
A148: Limited leave with NRPF (other) | B148: 2 | C148: 3.278688525
A149: UASC leave | B149: 1 | C149: 1.639344262
A150: No record held by HO (non EEA) | B150: 2 | C150: 3.278688525
A151: Humanitarian Protection | B151: 0 | C151: 0
A152: Refugee Status | B152: 2 | C152: 3.278688525
A153: Indefinite leave | B153: 0 | C153: 0
A154: Discretionary leave - trafficking | B154: 0 | C154: 0
A155: DDV Concession | B155: 0 | C155: 0
A156: Over-stayer / Deception / Breach - asylum claimed 'no' | B156: 14 | C156: 22.95081967
A157: Over-stayer / Deception / Breach - asylum claimed 'yes' | B157: 8 | C157: 13.1147541
A158: In Country Asylum Seeker | B158: 3 | C158: 4.918032787
A159: Illegal entrant - asylum claimed 'no' | B159: 3 | C159: 4.918032787
A160: Illegal entrant - asylum claimed 'yes' | B160: 9 | C160: 14.75409836
A161: Port Case | B161: 0 | C161: 0
A162: British | B162: 1 | C162: 1.639344262
A166: Adults - open cases as of 31 March 2021 | B166: Total | C166: Percentage | E166: Summary - adults - 31 March 2021 | F166: Number | G166: Percentage
A167: EEA nationals or EU residence rights - not granted EUSS | B167: 2 | C167: =100/18*B167 -> 11.11111111 | E167: EEA national or EU residence rights | F167: =B167+B168+B169 -> 3 | G167: =100/18*F167 -> 16.66666667
A168: Indefinite leave to remain (EU Settlement Scheme) | B168: 0 | C168: =100/18*B168 -> 0 | E168: Leave to Remain (LTR) with NRPF | F168: =B173+B174 -> 1 | G168: 5
A169: Leave to remain (EU Settlement Scheme) | B169: 1 | C169: 5.555555556 | E169: No current immigration permission | F169: =B185+B182+B177 -> 5 | G169: =100/18*F169 -> 27.77777778
A170: Limited leave with recourse to public funds (10 year route) | B170: 0 | C170: 0 | E170: Asylum seeker / asylum seeker ARE | F170: =B187+B184+B186+B183+B175 -> 9 | G170: 50
A171: Limited leave with recourse to public funds (following COC) | B171: 0 | C171: 0 | E171: Leave to Remain (LTR) with recourse | F171: =B179+B180+B181+B178+B176+B172+B171+B170 -> 0 | G171: 0
A172: Limited Leave with Recourse to Public Funds (other) | B172: 0 | C172: 0 | E172: British | F172: =B188 -> 0 | G172: 0
A173: Limited leave with NRPF (10 year route) | B173: 1 | C173: 5.555555556
A174: Limited leave with NRPF (other) | B174: 0 | C174: 0
A175: UASC leave | B175: 0 | C175: 0
A176: Indefinite Leave | B176: 0 | C176: 0
A177: No record held by HO (non EEA) | B177: 0 | C177: 0
A178: Humanitarian Protection | B178: 0 | C178: 0
A179: Refugee Status | B179: 0 | C179: 0
A180: Discretionary leave - trafficking | B180: 0 | C180: 0
A181: DDV Concession | B181: 0 | C181: 0
A182: Over-stayer / Deception / Breach - asylum claimed 'no' | B182: 4 | C182: 22.22222222
A183: Over-stayer / Deception / Breach - asylum claimed 'yes' | B183: 4 | C183: 22.22222222
A184: In Country Asylum Seeker | B184: 0 | C184: 0
A185: Illegal entrant - asylum claimed 'no' | B185: 1 | C185: 5.555555556
A186: Illegal entrant - asylum claimed 'yes' | B186: 5 | C186: 27.77777778
A187: Port Case | B187: 0 | C187: 0
A188: British | B188: 0 | C188: 0
A192: looked after children and care leavers - open cases as of 31 March 2021 | B192: Total | C192: Percentage | E192: Summary - LAC / CL - 31 March 21 | F192: Number | G192: Percentage
A193: EEA nationals or EU residence rights - not granted EUSS | B193: 5 | C193: =100/109*B193 -> 4.587155963 | E193: EEA national or EU residence rights | F193: =B193+B194+B195 -> 6 | G193: =100/109*F193 -> 5.504587156
A194: Indefinite leave to remain (EU Settlement Scheme) | B194: 0 | C194: =100/109*B194 -> 0 | E194: Leave to Remain (LTR) with NRPF | F194: =B199+B200 -> 0 | G194: =100/109*F194 -> 0
A195: Leave to remain (EU Settlement Scheme) | B195: 1 | C195: 0.9174311927 | E195: No current immigration permission | F195: =B211+B208+B203 -> 30 | G195: 27.52293578
A196: Limited leave with recourse to public funds (10 year route) | B196: 0 | C196: 0 | E196: Asylum seeker / asylum seeker ARE | F196: =B213+B210+B212+B209+B201 -> 52 | G196: 47.70642202
A197: Limited leave with recourse to public funds (following COC) | B197: 1 | C197: 0.9174311927 | E197: Leave to Remain (LTR) with recourse | F197: =B205+B206+B207+B204+B202+B198+B197+B196 -> 21 | G197: 19.26605505
A198: Limited Leave with Recourse to Public Funds (other) | B198: 9 | C198: 8.256880734 | E198: British | F198: =B214 -> 0 | G198: 0
A199: Limited leave with NRPF (10 year route) | B199: 0 | C199: 0
A200: Limited leave with NRPF (other) | B200: 0 | C200: 0
A201: UASC leave | B201: 2 | C201: 1.834862385
A202: Indefinite Leave | B202: 2 | C202: 1.834862385
A203: No record held by HO (non EEA) | B203: 7 | C203: 6.422018349
A204: Humanitarian Protection | B204: 0 | C204: 0
A205: Refugee Status | B205: 9 | C205: 8.256880734
A206: Discretionary leave - trafficking | B206: 0 | C206: 0
A207: DDV Concession | B207: 0 | C207: 0
A208: Over-stayer / Deception / Breach - asylum claimed 'no' | B208: 3 | C208: 2.752293578
A209: Over-stayer / Deception / Breach - asylum claimed 'yes' | B209: 1 | C209: 0.9174311927
A210: In Country Asylum Seeker | B210: 2 | C210: 1.834862385
A211: Illegal entrant - asylum claimed 'no' | B211: 20 | C211: 18.34862385
A212: Illegal entrant - asylum claimed 'yes' | B212: 40 | C212: 36.69724771
A213: Port Case | B213: 7 | C213: 6.422018349
A214: British | B214: 0 | C214: 0
A218: Immigration status families - all referrals for the year | B218: Total | C218: Percentage | E218: Summary - families referred - F/Y | F218: Number | G218: Percentage
A219: EEA nationals or EU residence rights - not granted EUSS | B219: 9 | C219: =100/63*B219 -> 14.28571429 | E219: EEA national or EU residence rights | F219: =B219+B220+B221 -> 16 | G219: =100/63*F219 -> 25.3968254
A220: Indefinite leave to remain (EU Settlement Scheme) | B220: 0 | C220: =100/63*B220 -> 0 | E220: Leave to Remain (LTR) with NRPF | F220: =B225+B226 -> 9 | G220: =100/63*F220 -> 14.28571429
A221: Leave to remain (EU Settlement Scheme) | B221: 7 | C221: 11.11111111 | E221: No current immigration permission | F221: =B237+B234+B229 -> 10 | G221: 15.87301587
A222: Limited leave with recourse to public funds (10 year route) | B222: 3 | C222: 4.761904762 | E222: Asylum seeker / asylum seeker ARE | F222: =B239+B236+B238+B235+B227 -> 13 | G222: 20.63492063
A223: Limited leave with recourse to public funds (following COC) | B223: 3 | C223: 4.761904762 | E223: Leave to Remain (LTR) with recourse | F223: =B231+B232+B233+B230+B228+B224+B223+B222 -> 14 | G223: 22.22222222
A224: Limited Leave with Recourse to Public Funds (other) | B224: 3 | C224: 4.761904762 | E224: British | F224: =B240 -> 1 | G224: 1.587301587
A225: Limited leave with NRPF (10 year route) | B225: 5 | C225: 7.936507937
A226: Limited leave with NRPF (other) | B226: 4 | C226: 6.349206349
A227: UASC leave | B227: 0 | C227: 0
A228: Indefinite Leave | B228: 2 | C228: 3.174603175
A229: No record held by HO (non EEA) | B229: 3 | C229: 4.761904762
A230: Humanitarian Protection | B230: 0 | C230: 0
A231: Refugee Status | B231: 1 | C231: 1.587301587
A232: Discretionary leave - trafficking | B232: 0 | C232: 0
A233: DDV Concession | B233: 2 | C233: 3.174603175
A234: Over-stayer / Deception / Breach - asylum claimed 'no' | B234: 5 | C234: 7.936507937
A235: Over-stayer / Deception / Breach - asylum claimed 'yes' | B235: 4 | C235: 6.349206349
A236: In Country Asylum Seeker | B236: 1 | C236: 1.587301587
A237: Illegal entrant - asylum claimed 'no' | B237: 2 | C237: 3.174603175
A238: Illegal entrant - asylum claimed 'yes' | B238: 7 | C238: 11.11111111
A239: Port Case | B239: 1 | C239: 1.587301587
A240: British | B240: 1 | C240: 1.587301587
A244: Immigration status adults - all referrals for the year | B244: Total | C244: Percentage | E244: Summary - adults referred - F/Y | F244: Number | G244: Percentage
A245: EEA nationals or EU residence rights - not granted EUSS | B245: 2 | C245: =100/18*B245 -> 11.11111111 | E245: EEA national or EU residence rights | F245: =B245+B246+B247 -> 2 | G245: =100/18*F245 -> 11.11111111
A246: Indefinite leave to remain (EU Settlement Scheme) | B246: 0 | C246: =100/18*B246 -> 0 | E246: Leave to Remain (LTR) with NRPF | F246: =B251+B252 -> 2 | G246: =100/18*F246 -> 11.11111111
A247: Leave to remain (EU Settlement Scheme) | B247: 0 | C247: 0 | E247: No current immigration permission | F247: =B263+B260+B255 -> 6 | G247: 33.33333333
A248: Limited leave with recourse to public funds (10 year route) | B248: 0 | C248: 0 | E248: Asylum seeker / asylum seeker ARE | F248: =B265+B262+B264+B261+B253 -> 8 | G248: 45
A249: Limited leave with recourse to public funds (following COC) | B249: 0 | C249: 0 | E249: Leave to Remain (LTR) with recourse | F249: =B257+B258+B259+B256+B254+B250+B249+B248 -> 0 | G249: 0
A250: Limited Leave with Recourse to Public Funds (other) | B250: 0 | C250: 0 | E250: British | F250: =B266 -> 0 | G250: 0
A251: Limited leave with NRPF (10 year route) | B251: 0 | C251: 0
A252: Limited leave with NRPF (other) | B252: 2 | C252: 11.11111111
A253: UASC leave | B253: 0 | C253: 0
A254: Indefinite Leave | B254: 0 | C254: 0
A255: No record held by HO (non EEA) | B255: 0 | C255: 0
A256: Humanitarian Protection | B256: 0 | C256: 0
A257: Refugee Status | B257: 0 | C257: 0
A258: Discretionary leave - trafficking | B258: 0 | C258: 0
A259: DDV Concession | B259: 0 | C259: 0
A260: Over-stayer / Deception / Breach - asylum claimed 'no' | B260: 5 | C260: 27.77777778
A261: Over-stayer / Deception / Breach - asylum claimed 'yes' | B261: 5 | C261: 27.77777778
A262: In Country Asylum Seeker | B262: 0 | C262: 0
A263: Illegal entrant - asylum claimed 'no' | B263: 1 | C263: 5.555555556
A264: Illegal entrant - asylum claimed 'yes' | B264: 3 | C264: 16.66666667
A265: Port Case | B265: 0 | C265: 0
A266: British | B266: 0 | C266: 0

Sheet Yorkshire & the Humber
A1: Description - all local authorities 2020-2021 | B1: Q1 20/21 | C1: Q2 20/21 | D1: Q3 20/21 | E1: Q4 20/21
A2: Number of local authorities subscribing at end of quarter | B2: 2 | C2: 3 | D2: 3 | E2: 3
A3: Number of local authorities with data uploaded at end of quarter - all case types | B3: 3 | C3: 3 | D3: 3 | E3: 3
A4: Number of local authorities with data for family cases | B4: 3 | C4: 3 | D4: 3 | E4: 3
A5: Number of local authorities with data for adult cases | B5: 1 | C5: 1 | D5: 1 | E5: 1
A6: Number of local authorities with data for children / care leaver cases | B6: 0 | C6: 0 | D6: 0 | E6: 0
A10: Family cases | B10: Q1 20/21 | C10: Q2 20/21 | D10: Q3 20/21 | E10: Q4 20/21
A11: Number of financially supported households at end of quarter | B11: 84 | C11: 100 | D11: 96 | E11: 82
A12: Number of dependants of financially supported households at end of quarter | B12: 188 | C12: 220 | D12: 215 | E12: 178
A13: Total weekly spend for the cases supported at the end of the quarter | B13: 20846 | C13: 23126 | D13: 23020 | E13: 20199
A14: Average annual cost per case | B14: =B13*52/B11 -> 12904.66667 | C14: =C13*52/C11 -> 12025.52 | D14: 12469.16667 | E14: 12809.12195
A15: Average annual cost (weekly spend X 52) | B15: =B13*52 -> 1083992 | C15: =C13*52 -> 1202552 | D15: 1197040 | E15: 1050348
A16: Average number of days on support, cases open at end of quarter | B16: 259 | C16: 251 | D16: 316 | E16: 377
A17: Of Row 11 - Number that are non EEA and unresolved | B17: 72 | C17: 83 | D17: 67 | E17: 63
A18: Of Row 11 - EEA national or EEA family member / derivative rights | B18: 8 | C18: 12 | D18: 15 | E18: 12
A19: Of Row 11 - Number that are non EEA but have LTR with recourse | B19: 4 | C19: 5 | D19: 14 | E19: 7
A20: Of Row 17 - Number that are 1000 day cases | B20: 1 | C20: 1 | D20: 2 | E20: 3
A21: Of Row 18 - Number of 1000 day EEA national cases without 'settled status | B21: 0 | C21: 0 | D21: 0 | E21: 0
A22: Non EEA 1000 day cases, percentage of unresolved cohort (row 20 / row 17) | B22: 0.01 | C22: 0.01 | D22: 0.03 | E22: 0.05
A23: EEA 1000 day cases, percentage of unresolved cohort (row 21 / row 18) | B23: 0 | C23: 0 | D23: 0 | E23: 0
A24: Total number of referrals per quarter | B24: 48 | C24: 39 | D24: 34 | E24: 26
A25: Total number of new cases taken on for support within quarter | B25: 38 | C25: 40 | D25: 21 | E25: 22
A26: Total number of supported cases closed within quarter | B26: 14 | C26: 24 | D26: 25 | E26: 36
A30: Adult cases | B30: Q1 20/21 | C30: Q2 20/21 | D30: Q3 20/21 | E30: Q4 20/21
A31: Number of financially supported households at end of quarter | B31: 30 | C31: 30 | D31: 28 | E31: 26
A32: Total weekly spend for the cases supported at the end of the quarter | B32: 7507 | C32: 5877 | D32: 6339 | E32: 5761
A33: Average annual cost per case | B33: =B32*52/B31 -> 13012.13333 | C33: =C32*52/C31 -> 10186.8 | D33: 11772.42857 | E33: 11522
A34: Average annual cost (weekly spend X 52) | B34: =B32*52 -> 390364 | C34: =C32*52 -> 305604 | D34: 329628 | E34: 299572
A35: Average number of days on support, cases open at end of quarter | B35: 231 | C35: 252 | D35: 227 | E35: 235
A36: Of Row 31 - Number that are non EEA and unresolved | B36: 18 | C36: 21 | D36: 21 | E36: 20
A37: Of Row 31 - EEA national or EEA family member / derivative rights | B37: 8 | C37: 8 | D37: 7 | E37: 4
A38: Of Row 31 - Number that are non EEA but have LTR with recourse | B38: 4 | C38: 1 | D38: 0 | E38: 2
A39: Of Row 31 - Number that are 1000 day cases | B39: 1 | C39: 1 | D39: 0 | E39: 0
A40: Of Row 31 - Number of 1000 day EEA national cases without 'settled status | B40: 0 | C40: 0 | D40: 0 | E40: 0
A41: Non EEA 1000 day cases, percentage of unresolved cohort (row 39 / row 36) | B41: 0.06 | C41: 0.05 | D41: 0 | E41: 0
A42: EEA 1000 day cases, percentage of unresolved cohort (row 40 / row 37) | B42: 0 | C42: 0 | D42: 0 | E42: 0
A43: Total number of referrals per quarter | B43: 19 | C43: 18 | D43: 24 | E43: 17
A44: Total number of new cases taken on for support within quarter | B44: 17 | C44: 17 | D44: 12 | E44: 16
A45: Total number of supported cases closed within quarter | B45: 13 | C45: 17 | D45: 15 | E45: 18
A49: Looked after children and care leavers | B49: Q1 20/21 | C49: Q2 20/21 | D49: Q3 20/21 | E49: Q4 20/21
A50: Number of open cases at end of quarter
A51: Of which under age of 18
A52: Of which aged 18-21
A53: Of which aged 21 and over
A54: Of number of open cases (row 50), number financially supported | B54: 0 | C54: 0 | D54: 0 | E54: 0
A55: Total weekly spend for the cases financially supported at end of quarter | B55: 0 | C55: 0 | D55: 0 | E55: 0
A56: Average annual cost per case | B56: 0 | C56: 0 | D56: 0 | E56: 0
A57: Average annual cost (weekly spend X 52) | B57: 0 | C57: 0 | D57: 0 | E57: 0
A58: Total number of new cases recorded within the quarter
A59: Total number of cases closed
A63: Closure reason family and adult cases - all closures in the year | B63: Total | C63: Percentage
A64: EEA national - left the UK (LA Funded / self return) | B64: 15 | C64: =100/163*B64 -> 9.202453988
A65: Non-EEA national - left the UK (HO / LA funded) | B65: 0 | C65: =100/163*B65 -> 0
A66: Accessed Asylum Support | B66: 5 | C66: 3.067484663
A67: No longer eligible | B67: 26 | C67: 15.95092025
A68: EEA national / family member - accessed benefits / employment | B68: 10 | C68: 6.134969325
A69: Granted Leave to Remain | B69: =80+12+15 -> 107 | C69: 65.64417178
A85: Closure reason family cases - all closures in the year | B85: Total | C85: Percentage
A86: EEA national - left the UK (LA Funded / self return) | B86: 13 | C86: =100/99*B86 -> 13.13131313
A87: Non-EEA national - left the UK (HO / LA funded) | B87: 0 | C87: =100/99*B87 -> 0
A88: Accessed Asylum Support | B88: 2 | C88: 2.02020202
A89: No longer eligible | B89: 18 | C89: 18.18181818
A90: EEA national / family member - accessed benefits / employment | B90: 2 | C90: 2.02020202
A91: Granted Leave to Remain | B91: =45+11+8 -> 64 | C91: 64.64646465
A107: Closure reason adult cases - all closures in the year | B107: Total | C107: Percentage
A108: EEA national - left the UK (LA Funded / self return) | B108: 2 | C108: =100/64*B108 -> 3.125
A109: Non-EEA national - left the UK (HO / LA funded) | B109: 0 | C109: =100/64*B109 -> 0
A110: Accessed Asylum Support | B110: 3 | C110: 4.6875
A111: No longer eligible | B111: 8 | C111: 12
A112: Deceased | B112: 0 | C112: 0
A113: EEA national / family member - accessed benefits / employment | B113: 8 | C113: 12.5
A114: Granted Leave to Remain | B114: =4+4+35 -> 43 | C114: 67.1875
A129: Immigration status families - open cases as of 31 March 2021 | B129: Total | C129: Percentage | E129: Summary - families - 31 March 2021 | F129: Number | G129: Percentage
A130: EEA nationals or EU residence rights - not granted EUSS | B130: 9 | C130: =100/79*B130 -> 11.39240506 | E130: EEA national or EU residence rights | F130: =B130+B131+B132 -> 11 | G130: =100/79*F130 -> 13.92405063
A131: Indefinite leave to remain (EU Settlement Scheme) | B131: 0 | C131: =100/79*B131 -> 0 | E131: Leave to Remain (LTR) with NRPF | F131: =B136+B137 -> 17 | G131: 21
A132: Leave to remain (EU Settlement Scheme) | B132: 2 | C132: 2.53164557 | E132: No current immigration permission | F132: =B148+B145+B140 -> 24 | G132: =100/79*F132 -> 30.37974684
A133: Limited leave with recourse to public funds (10 year route) | B133: 1 | C133: 1.265822785 | E133: Asylum seeker / asylum seeker ARE | F133: =B150+B147+B149+B146+B138 -> 19 | G133: 24.05063291
A134: Limited leave with recourse to public funds (following COC) | B134: 2 | C134: 2.53164557 | E134: Leave to Remain (LTR) with recourse | F134: =B142+B143+B144+B141+B139+B135+B134+B133 -> 6 | G134: 7.594936709
A135: Limited Leave with Recourse to Public Funds (other) | B135: 1 | C135: 1.265822785 | E135: British | F135: =B151 -> 2 | G135: 2.53164557
A136: Limited leave with NRPF (10 year route) | B136: 5 | C136: 6.329113924
A137: Limited leave with NRPF (other) | B137: 12 | C137: 15.18987342
A138: UASC leave | B138: 0 | C138: 0
A139: No record held by HO (non EEA) | B139: 2 | C139: 2.53164557
A140: Humanitarian Protection | B140: 1 | C140: 1.265822785
A141: Refugee Status | B141: 0 | C141: 0
A142: Indefinite leave | B142: 0 | C142: 0
A143: Discretionary leave - trafficking | B143: 0 | C143: 0
A144: DDV Concession | B144: 0 | C144: 0
A145: Over-stayer / Deception / Breach - asylum claimed 'no' | B145: 20 | C145: 25.3164557
A146: Over-stayer / Deception / Breach - asylum claimed 'yes' | B146: 11 | C146: 13.92405063
A147: In Country Asylum Seeker | B147: 2 | C147: 2.53164557
A148: Illegal entrant - asylum claimed 'no' | B148: 3 | C148: 3.797468354
A149: Illegal entrant - asylum claimed 'yes' | B149: 3 | C149: 3.797468354
A150: Port Case | B150: 3 | C150: 3.797468354
A151: British | B151: 2 | C151: 2.53164557
A155: Adults - open cases as of 31 March 2021 | B155: Total | C155: Percentage | E155: Summary - adults - 31 March 2021 | F155: Number | G155: Percentage
A156: EEA nationals or EU residence rights - not granted EUSS | B156: 3 | C156: =100/24*B156 -> 12.5 | E156: EEA national or EU residence rights | F156: =B156+B157+B158 -> 4 | G156: =100/24*F156 -> 16.66666667
A157: Indefinite leave to remain (EU Settlement Scheme) | B157: 1 | C157: =100/24*B157 -> 4.166666667 | E157: Leave to Remain (LTR) with NRPF | F157: =B162+B163 -> 4 | G157: =100/24*F157 -> 16.66666667
A158: Leave to remain (EU Settlement Scheme) | B158: 0 | C158: 0 | E158: No current immigration permission | F158: =B174+B171+B166 -> 8 | G158: 33.33333333
A159: Limited leave with recourse to public funds (10 year route) | B159: 0 | C159: 0 | E159: Asylum seeker / asylum seeker ARE | F159: =B176+B173+B175+B172+B164 -> 7 | G159: 29.16666667
A160: Limited leave with recourse to public funds (following COC) | B160: 0 | C160: 0 | E160: Leave to Remain (LTR) with recourse | F160: =B168+B169+B170+B167+B165+B161+B160+B159 -> 1 | G160: 4.166666667
A161: Limited Leave with Recourse to Public Funds (other) | B161: 1 | C161: 4.166666667 | E161: British | F161: =B177 -> 0 | G161: 0
A162: Limited leave with NRPF (10 year route) | B162: 0 | C162: 0
A163: Limited leave with NRPF (other) | B163: 4 | C163: 16.66666667
A164: UASC leave | B164: 0 | C164: 0
A165: Indefinite Leave | B165: 0 | C165: 0
A166: No record held by HO (non EEA) | B166: 0 | C166: 0
A167: Humanitarian Protection | B167: 0 | C167: 0
A168: Refugee Status | B168: 0 | C168: 0
A169: Discretionary leave - trafficking | B169: 0 | C169: 0
A170: DDV Concession | B170: 0 | C170: 0
A171: Over-stayer / Deception / Breach - asylum claimed 'no' | B171: 8 | C171: 33.33333333
A172: Over-stayer / Deception / Breach - asylum claimed 'yes' | B172: 3 | C172: 12.5
A173: In Country Asylum Seeker | B173: 1 | C173: 4.166666667
A174: Illegal entrant - asylum claimed 'no' | B174: 0 | C174: 0
A175: Illegal entrant - asylum claimed 'yes' | B175: 3 | C175: 12.5
A176: Port Case | B176: 0 | C176: 0
A177: British | B177: 0 | C177: 0
A181: looked after children and care leavers - open cases as of 31 March 2021 | B181: Total | C181: Percentage | E181: Summary - LAC / CL - 31 March 21 | F181: Number | G181: Percentage
A182: EEA nationals or EU residence rights - not granted EUSS | E182: EEA national or EU residence rights
A183: Indefinite leave to remain (EU Settlement Scheme) | E183: Leave to Remain (LTR) with NRPF
A184: Leave to remain (EU Settlement Scheme) | E184: No current immigration permission
A185: Limited leave with recourse to public funds (10 year route) | E185: Asylum seeker / asylum seeker ARE
A186: Limited leave with recourse to public funds (following COC) | E186: Leave to Remain (LTR) with recourse
A187: Limited Leave with Recourse to Public Funds (other) | E187: British
A188: Limited leave with NRPF (10 year route)
A189: Limited leave with NRPF (other)
A190: UASC leave
A191: Indefinite Leave
A192: No record held by HO (non EEA)
A193: Humanitarian Protection
A194: Refugee Status
A195: Discretionary leave - trafficking
A196: DDV Concession
A197: Over-stayer / Deception / Breach - asylum claimed 'no'
A198: Over-stayer / Deception / Breach - asylum claimed 'yes'
A199: In Country Asylum Seeker
A200: Illegal entrant - asylum claimed 'no'
A201: Illegal entrant - asylum claimed 'yes'
A202: Port Case
A203: British
A207: Immigration status families - all referrals for the year | B207: Total | C207: Percentage | E207: Summary - families referred - F/Y | F207: Number | G207: Percentage
A208: EEA nationals or EU residence rights - not granted EUSS | B208: 17 | C208: =100/140*B208 -> 12.14285714 | E208: EEA national or EU residence rights | F208: =B208+B209+B210 -> 26 | G208: =100/140*F208 -> 18.57142857
A209: Indefinite leave to remain (EU Settlement Scheme) | B209: 2 | C209: =100/140*B209 -> 1.428571429 | E209: Leave to Remain (LTR) with NRPF | F209: =B214+B215 -> 46 | G209: =100/140*F209 -> 32.85714286
A210: Leave to remain (EU Settlement Scheme) | B210: 7 | C210: 5 | E210: No current immigration permission | F210: =B226+B223+B218 -> 24 | G210: 17.14285714
A211: Limited leave with recourse to public funds (10 year route) | B211: 3 | C211: 2.142857143 | E211: Asylum seeker / asylum seeker ARE | F211: =B228+B225+B227+B224+B216 -> 13 | G211: 9.285714286
A212: Limited leave with recourse to public funds (following COC) | B212: 8 | C212: 5.714285714 | E212: Leave to Remain (LTR) with recourse | F212: =B220+B221+B222+B219+B217+B213+B212+B211 -> 28 | G212: 20
A213: Limited Leave with Recourse to Public Funds (other) | B213: 5 | C213: 3.571428571 | E213: British | F213: =B229 -> 3 | G213: 2.142857143
A214: Limited leave with NRPF (10 year route) | B214: 14 | C214: 10
A215: Limited leave with NRPF (other) | B215: 32 | C215: 22.85714286
A216: UASC leave | B216: 0 | C216: 0
A217: Indefinite Leave | B217: 2 | C217: 1.428571429
A218: No record held by HO (non EEA) | B218: 6 | C218: 4.285714286
A219: Humanitarian Protection | B219: 2 | C219: 1.428571429
A220: Refugee Status | B220: 0 | C220: 0
A221: Discretionary leave - trafficking | B221: 0 | C221: 0
A222: DDV Concession | B222: 8 | C222: 5.714285714
A223: Over-stayer / Deception / Breach - asylum claimed 'no' | B223: 18 | C223: 12.85714286
A224: Over-stayer / Deception / Breach - asylum claimed 'yes' | B224: 9 | C224: 6.428571429
A225: In Country Asylum Seeker | B225: 1 | C225: 0.7142857143
A226: Illegal entrant - asylum claimed 'no' | B226: 0 | C226: 0
A227: Illegal entrant - asylum claimed 'yes' | B227: 3 | C227: 2.142857143
A228: Port Case | B228: 0 | C228: 0
A229: British | B229: 3 | C229: 2.142857143
A233: Immigration status adults - all referrals for the year | B233: Total | C233: Percentage | E233: Summary - adults referred - F/Y | F233: Number | G233: Percentage
A234: EEA nationals or EU residence rights - not granted EUSS | B234: 24 | C234: =100/87*B234 -> 27.5862069 | E234: EEA national or EU residence rights | F234: =B234+B235+B236 -> 31 | G234: 35
A235: Indefinite leave to remain (EU Settlement Scheme) | B235: 3 | C235: =100/87*B235 -> 3.448275862 | E235: Leave to Remain (LTR) with NRPF | F235: =B240+B241 -> 25 | G235: =100/87*F235 -> 28.73563218
A236: Leave to remain (EU Settlement Scheme) | B236: 4 | C236: 4.597701149 | E236: No current immigration permission | F236: =B252+B249+B244 -> 15 | G236: 17.24137931
A237: Limited leave with recourse to public funds (10 year route) | B237: 1 | C237: 1.149425287 | E237: Asylum seeker / asylum seeker ARE | F237: =B254+B251+B253+B250+B242 -> 11 | G237: 12.64367816
A238: Limited leave with recourse to public funds (following COC) | B238: 0 | C238: 0 | E238: Leave to Remain (LTR) with recourse | F238: =B246+B247+B248+B245+B243+B239+B238+B237 -> 5 | G238: 5.747126437
A239: Limited Leave with Recourse to Public Funds (other) | B239: 1 | C239: 1.149425287 | E239: British | F239: =B255 -> 0 | G239: 0
A240: Limited leave with NRPF (10 year route) | B240: 0 | C240: 0
A241: Limited leave with NRPF (other) | B241: 25 | C241: 28.73563218
A242: UASC leave | B242: 0 | C242: 0
A243: Indefinite Leave | B243: 1 | C243: 1.149425287
A244: No record held by HO (non EEA) | B244: 6 | C244: 6.896551724
A245: Humanitarian Protection | B245: 0 | C245: 0
A246: Refugee Status | B246: 0 | C246: 0
A247: Discretionary leave - trafficking | B247: 0 | C247: 0
A248: DDV Concession | B248: 2 | C248: 2.298850575
A249: Over-stayer / Deception / Breach - asylum claimed 'no' | B249: 8 | C249: 9.195402299
A250: Over-stayer / Deception / Breach - asylum claimed 'yes' | B250: 5 | C250: 5.747126437
A251: In Country Asylum Seeker | B251: 0 | C251: 0
A252: Illegal entrant - asylum claimed 'no' | B252: 1 | C252: 1.149425287
A253: Illegal entrant - asylum claimed 'yes' | B253: 6 | C253: 6.896551724
A254: Port Case | B254: 0 | C254: 0
A255: British | B255: 0 | C255: 0

Sheet West Midlands
A1: Description - all local authorities 2020-2021 | B1: Q1 20/21 | C1: Q2 20/21 | D1: Q3 20/21 | E1: Q4 20/21
A2: Number of local authorities subscribing at end of quarter | B2: 6 | C2: 6 | D2: 6 | E2: 6
A3: Number of local authorities with data uploaded at end of quarter - all case types | B3: 6 | C3: 6 | D3: 6 | E3: 6
A4: Number of local authorities with data for family cases | B4: 6 | C4: 6 | D4: 6 | E4: 5
A5: Number of local authorities with data for adult cases | B5: 2 | C5: 2 | D5: 2 | E5: 2
A6: Number of local authorities with data for children / care leaver cases | B6: 1 | C6: 1 | D6: 1 | E6: 1
A10: Family cases | B10: Q1 20/21 | C10: Q2 20/21 | D10: Q3 20/21 | E10: Q4 20/21
A11: Number of financially supported households at end of quarter | B11: 122 | C11: 118 | D11: 97 | E11: 106
A12: Number of dependants of financially supported households at end of quarter | B12: 193 | C12: 193 | D12: 159 | E12: 170
A13: Total weekly spend for the cases supported at the end of the quarter | B13: 29642 | C13: 29642 | D13: 21989 | E13: 26176
A14: Average annual cost per case | B14: =B13*52/B11 -> 12634.29508 | C14: =C13*52/C11 -> 13062.57627 | D14: =D13*52/D11 -> 11787.91753 | E14: =E13*52/E11 -> 12841.0566
A15: Average annual cost (weekly spend X 52) | B15: =B13*52 -> 1541384 | C15: =C13*52 -> 1541384 | D15: =D13*52 -> 1143428 | E15: =E13*52 -> 1361152
A16: Average number of days on support, cases open at end of quarter | B16: 692 | C16: 749 | D16: 900 | E16: 875
A17: Of Row 11 - Number that are non EEA and unresolved | B17: 106 | C17: 106 | D17: 87 | E17: 90
A18: Of Row 11 - EEA national or EEA family member / derivative rights | B18: 11 | C18: 6 | D18: 5 | E18: 10
A19: Of Row 11 - Number that are non EEA but have LTR with recourse | B19: 5 | C19: 6 | D19: 5 | E19: 6
A20: Of Row 17 - Number that are 1000 day cases | B20: 33 | C20: 34 | D20: 34 | E20: 32
A21: Of Row 18 - Number of 1000 day EEA national cases without 'settled status | B21: 0 | C21: 1 | D21: 2 | E21: 2
A22: Non EEA 1000 day cases, percentage of unresolved cohort (row 20 / row 17) | B22: 0.31 | C22: 0.32 | D22: 0.4 | E22: 0.36
A23: EEA 1000 day cases, percentage of unresolved cohort (row 21 / row 18) | B23: 0 | C23: 0.17 | D23: 0.25 | E23: 0.33
A24: Total number of referrals per quarter | B24: 68 | C24: 65 | D24: 71 | E24: 49
A25: Total number of new cases taken on for support within quarter | B25: 29 | C25: 17 | D25: 5 | E25: 10
A26: Total number of supported cases closed within quarter | B26: 25 | C26: 21 | D26: 11 | E26: 15
A30: Adult cases | B30: Q1 20/21 | C30: Q2 20/21 | D30: Q3 20/21 | E30: Q4 20/21
A31: Number of financially supported households at end of quarter | B31: 12 | C31: 12 | D31: 12 | E31: 12
A32: Total weekly spend for the cases supported at the end of the quarter | B32: 3795 | C32: 3795 | D32: 3808 | E32: 3813
A33: Average annual cost per case | B33: =B32*52/B31 -> 16445 | C33: =C32*52/C31 -> 16445 | D33: 16501.33333 | E33: 16523
A34: Average annual cost (weekly spend X 52) | B34: =B32*52 -> 197340 | C34: =C32*52 -> 197340 | D34: 198016 | E34: 198276
A35: Average number of days on support, cases open at end of quarter | B35: 1171 | C35: 1263 | D35: 1355 | E35: 1445
A36: Of Row 31 - Number that are non EEA and unresolved | B36: 6 | C36: 6 | D36: 7 | E36: 6
A37: Of Row 31 - EEA national or EEA family member / derivative rights | B37: 5 | C37: 5 | D37: 5 | E37: 5
A38: Of Row 31 - Number that are non EEA but have LTR with recourse | B38: 1 | C38: 1 | D38: 0 | E38: 1
A39: Of Row 31 - Number that are 1000 day cases | B39: 4 | C39: 4 | D39: 5 | E39: 5
A40: Of Row 31 - Number of 1000 day EEA national cases without 'settled status | B40: 1 | C40: 2 | D40: 2 | E40: 3
A41: Non EEA 1000 day cases, percentage of unresolved cohort (row 39 / row 36) | B41: 0.67 | C41: 0.67 | D41: 0.71 | E41: 0.5
A42: EEA 1000 day cases, percentage of unresolved cohort (row 40 / row 37) | B42: 0.2 | C42: 0.4 | D42: 0.4 | E42: 0.6
A43: Total number of referrals per quarter | B43: 27 | C43: 46 | D43: 46 | E43: 50
A44: Total number of new cases taken on for support within quarter | B44: 0 | C44: 0 | D44: 0 | E44: 0
A45: Total number of supported cases closed within quarter | B45: 0 | C45: 0 | D45: 0 | E45: 0
A52: Looked after children and care leavers | B52: Q1 20/21 | C52: Q2 20/21 | D52: Q3 20/21 | E52: Q4 20/21
A53: Number of open cases at end of quarter | B53: 149 | C53: 93 | D53: 101 | E53: 75
A54: Of which under age of 18 | B54: 16 | C54: 7 | D54: 8 | E54: 3
A55: Of which aged 18-21 | B55: 56 | C55: 35 | D55: 41 | E55: 41
A56: Of which aged 21 and over | B56: 77 | C56: 51 | D56: 52 | E56: 31
A57: Of number of open cases (row 53), number financially supported | B57: 24 | C57: 23 | D57: 22 | E57: 22
A58: Total weekly spend for the cases financially supported at end of quarter | B58: 4841 | C58: 4786 | D58: 4466 | E58: 4455
A59: Average annual cost per case | B59: =B58/B57*52 -> 10488.83333 | C59: =C58/C57*52 -> 10820.52174 | D59: 10556 | E59: 10530
A60: Average annual cost (weekly spend X 52) | B60: =B58*52 -> 251732 | C60: =C58*52 -> 248872 | D60: 232232 | E60: 231660
A61: Total number of new cases recorded within the quarter | B61: 5 | C61: 1 | D61: 12 | E61: 11
A62: Total number of cases closed | B62: 2 | C62: 3 | D62: 11
A75: Closure reason family and adult cases - all closures in the year | B75: Total | C75: Percentage
A76: EEA national - left the UK (LA Funded / self return) | C76: =100/926*B76 -> 0
A77: Non-EEA national - left the UK (HO / LA funded) | C77: =100/926*B77 -> 0
A78: Accessed Asylum Support | C78: 0
A79: No longer eligible | C79: 0
A80: EEA national / family member - accessed benefits / employment | C80: 0
A81: Granted Leave to Remain | C81: 0
A85: Closure reason family cases - all closures in the year | B85: Total | C85: Percentage
A86: EEA national - left the UK (LA Funded / self return) | B86: 0 | C86: =100/80*B86 -> 0
A87: Non-EEA national - left the UK (HO / LA funded) | B87: 1 | C87: =100/80*B87 -> 1.25
A88: Accessed Asylum Support | B88: 9 | C88: 11.25
A89: No longer eligible | B89: 4 | C89: 5
A90: EEA national / family member - accessed benefits / employment | B90: 6 | C90: 7.5
A91: Granted Leave to Remain | B91: =2+58 -> 60 | C91: 75
A108: Closure reason adult cases - all closures in the year | B108: Total | C108: Percentage
A109: EEA national - left the UK (LA Funded / self return) | C109: =100/212*B109 -> 0
A110: Non-EEA national - left the UK (HO / LA funded) | C110: =100/212*B110 -> 0
A111: Accessed Asylum Support | C111: 0
A112: No longer eligible | C112: 0
A113: Deceased | C113: 0
A114: EEA national / family member - accessed benefits / employment | C114: 0
A115: Granted Leave to Remain | C115: 0
A119: Immigration status families - open cases as of 31 March 2021 | B119: Total | C119: Percentage | E119: Summary - families - 31 March 2021 | F119: Number | G119: Percentage
A120: EEA nationals or EU residence rights - not granted EUSS | B120: 5 | C120: =100/102*B120 -> 4.901960784 | E120: EEA national or EU residence rights | F120: =B120+B121+B122 -> 6 | G120: =100/102*F120 -> 5.882352941
A121: Indefinite leave to remain (EU Settlement Scheme) | B121: 0 | C121: =100/102*B121 -> 0 | E121: Leave to Remain (LTR) with NRPF | F121: =B126+B127 -> 11 | G121: =100/102*F121 -> 10.78431373
A122: Leave to remain (EU Settlement Scheme) | B122: 1 | C122: 0.9803921569 | E122: No current immigration permission | F122: =B138+B135+B130 -> 54 | G122: 52.94117647
A123: Limited leave with recourse to public funds (10 year route) | B123: 6 | C123: 5.882352941 | E123: Asylum seeker / asylum seeker ARE | F123: =B140+B137+B139+B136+B128 -> 22 | G123: 21
A124: Limited leave with recourse to public funds (following COC) | B124: 1 | C124: 0.9803921569 | E124: Leave to Remain (LTR) with recourse | F124: =B132+B133+B134+B131+B129+B125+B124+B123 -> 9 | G124: 8.823529412
A125: Limited Leave with Recourse to Public Funds (other) | B125: 2 | C125: 1.960784314 | E125: British | F125: =B141 -> 0 | G125: 0
A126: Limited leave with NRPF (10 year route) | B126: 4 | C126: 3.921568627
A127: Limited leave with NRPF (other) | B127: 7 | C127: 6.862745098
A128: UASC leave | B128: 0 | C128: 0
A129: No record held by HO (non EEA) | B129: 0 | C129: 0
A130: Humanitarian Protection | B130: 4 | C130: 3.921568627
A131: Refugee Status | B131: 0 | C131: 0
A132: Indefinite leave | B132: 0 | C132: 0
A133: Discretionary leave - trafficking | B133: 0 | C133: 0
A134: DDV Concession | B134: 0 | C134: 0
A135: Over-stayer / Deception / Breach - asylum claimed 'no' | B135: 45 | C135: 44.11764706
A136: Over-stayer / Deception / Breach - asylum claimed 'yes' | B136: 14 | C136: 13.7254902
A137: In Country Asylum Seeker | B137: 0 | C137: 0
A138: Illegal entrant - asylum claimed 'no' | B138: 5 | C138: 4.901960784
A139: Illegal entrant - asylum claimed 'yes' | B139: 7 | C139: 6.862745098
A140: Port Case | B140: 1 | C140: 0.9803921569
A141: British | B141: 0 | C141: 0
A145: Adults - open cases as of 31 March 2021 | B145: Total | C145: Percentage | E145: Summary - adults - 31 March 2021 | F145: Number | G145: Percentage
A146: EEA nationals or EU residence rights - not granted EUSS | B146: 5 | C146: =100/12*B146 -> 41.66666667 | E146: EEA national or EU residence rights | F146: =B146+B147+B148 -> 5 | G146: 41
A147: Indefinite leave to remain (EU Settlement Scheme) | B147: 0 | C147: =100/12*B147 -> 0 | E147: Leave to Remain (LTR) with NRPF | F147: =B152+B153 -> 2 | G147: =100/12*F147 -> 16.66666667
A148: Leave to remain (EU Settlement Scheme) | B148: 0 | C148: 0 | E148: No current immigration permission | F148: =B164+B161+B156 -> 2 | G148: 16.66666667
A149: Limited leave with recourse to public funds (10 year route) | B149: 0 | C149: 0 | E149: Asylum seeker / asylum seeker ARE | F149: =B166+B163+B165+B162+B154 -> 2 | G149: 16.66666667
A150: Limited leave with recourse to public funds (following COC) | B150: 1 | C150: 8.333333333 | E150: Leave to Remain (LTR) with recourse | F150: =B158+B159+B160+B157+B155+B151+B150+B149 -> 1 | G150: 8.333333333
A151: Limited Leave with Recourse to Public Funds (other) | B151: 0 | C151: 0 | E151: British | F151: =B167 -> 0 | G151: 0
A152: Limited leave with NRPF (10 year route) | B152: 0 | C152: 0
A153: Limited leave with NRPF (other) | B153: 2 | C153: 16.66666667
A154: UASC leave | B154: 0 | C154: 0
A155: Indefinite Leave | B155: 0 | C155: 0
A156: No record held by HO (non EEA) | B156: 0 | C156: 0
A157: Humanitarian Protection | B157: 0 | C157: 0
A158: Refugee Status | B158: 0 | C158: 0
A159: Discretionary leave - trafficking | B159: 0 | C159: 0
A160: DDV Concession | B160: 0 | C160: 0
A161: Over-stayer / Deception / Breach - asylum claimed 'no' | B161: 2 | C161: 16.66666667
A162: Over-stayer / Deception / Breach - asylum claimed 'yes' | B162: 0 | C162: 0
A163: In Country Asylum Seeker | B163: 0 | C163: 0
A164: Illegal entrant - asylum claimed 'no' | B164: 0 | C164: 0
A165: Illegal entrant - asylum claimed 'yes' | B165: 2 | C165: 16.66666667
A166: Port Case | B166: 0 | C166: 0
A167: British | B167: 0 | C167: 0
A171: looked after children and care leavers - open cases as of 31 March 2021 | B171: Total | C171: Percentage | E171: Summary - LAC / CL - 31 March 21 | F171: Number | G171: Percentage
A172: EEA nationals or EU residence rights - not granted EUSS | B172: 3 | C172: =100/73*B172 -> 4.109589041 | E172: EEA national or EU residence rights | F172: =B172+B173+B174 -> 3 | G172: =100/73*F172 -> 4.109589041
A173: Indefinite leave to remain (EU Settlement Scheme) | B173: 0 | C173: =100/73*B173 -> 0 | E173: Leave to Remain (LTR) with NRPF | F173: =B178+B179 -> 1 | G173: =100/73*F173 -> 1.369863014
A174: Leave to remain (EU Settlement Scheme) | B174: 0 | C174: 0 | E174: No current immigration permission | F174: =B190+B187+B182 -> 12 | G174: 17
A175: Limited leave with recourse to public funds (10 year route) | B175: 0 | C175: 0 | E175: Asylum seeker / asylum seeker ARE | F175: =B192+B189+B191+B188+B180 -> 55 | G175: 75.34246575
A176: Limited leave with recourse to public funds (following COC) | B176: 0 | C176: 0 | E176: Leave to Remain (LTR) with recourse | F176: =B184+B185+B186+B183+B181+B177+B176+B175 -> 2 | G176: 2.739726027
A177: Limited Leave with Recourse to Public Funds (other) | B177: 1 | C177: 1.369863014 | E177: British | F177: =B193 -> 0 | G177: 0
A178: Limited leave with NRPF (10 year route) | B178: 0 | C178: 0
A179: Limited leave with NRPF (other) | B179: 1 | C179: 1.369863014
A180: UASC leave | B180: 6 | C180: 8.219178082
A181: Indefinite Leave | B181: 0 | C181: 0
A182: No record held by HO (non EEA) | B182: 6 | C182: 8.219178082
A183: Humanitarian Protection | B183: 0 | C183: 0
A184: Refugee Status | B184: 1 | C184: 1.369863014
A185: Discretionary leave - trafficking | B185: 0 | C185: 0
A186: DDV Concession | B186: 0 | C186: 0
A187: Over-stayer / Deception / Breach - asylum claimed 'no' | B187: 3 | C187: 4.109589041
A188: Over-stayer / Deception / Breach - asylum claimed 'yes' | B188: 10 | C188: 13.69863014
A189: In Country Asylum Seeker | B189: 1 | C189: 1.369863014
A190: Illegal entrant - asylum claimed 'no' | B190: 3 | C190: 4.109589041
A191: Illegal entrant - asylum claimed 'yes' | B191: 36 | C191: 49.31506849
A192: Port Case | B192: 2 | C192: 2.739726027
A193: British | B193: 0 | C193: 0
A197: Immigration status families - all referrals for the year | B197: Total | C197: Percentage | E197: Summary - families referred - F/Y | F197: Number | G197: Percentage
A198: EEA nationals or EU residence rights - not granted EUSS | B198: 19 | C198: =100/238*B198 -> 7.983193277 | E198: EEA national or EU residence rights | F198: =B198+B199+B200 -> 28 | G198: =100/238*F198 -> 11.76470588
A199: Indefinite leave to remain (EU Settlement Scheme) | B199: 1 | C199: =100/238*B199 -> 0.4201680672 | E199: Leave to Remain (LTR) with NRPF | F199: =B204+B205 -> 61 | G199: =100/238*F199 -> 25.6302521
A200: Leave to remain (EU Settlement Scheme) | B200: 8 | C200: 3.361344538 | E200: No current immigration permission | F200: =B216+B213+B208 -> 77 | G200: 32.35294118
A201: Limited leave with recourse to public funds (10 year route) | B201: 12 | C201: 5.042016807 | E201: Asylum seeker / asylum seeker ARE | F201: =B218+B215+B217+B214+B206 -> 27 | G201: 11.34453782
A202: Limited leave with recourse to public funds (following COC) | B202: 6 | C202: 2.521008403 | E202: Leave to Remain (LTR) with recourse | F202: =B210+B211+B212+B209+B207+B203+B202+B201 -> 44 | G202: 18.48739496
A203: Limited Leave with Recourse to Public Funds (other) | B203: 6 | C203: 2.521008403 | E203: British | F203: =B219 -> 1 | G203: 1
A204: Limited leave with NRPF (10 year route) | B204: 25 | C204: 10.50420168
A205: Limited leave with NRPF (other) | B205: 36 | C205: 15.12605042
A206: UASC leave | B206: 0 | C206: 0
A207: Indefinite Leave | B207: 4 | C207: 1.680672269
A208: No record held by HO (non EEA) | B208: 14 | C208: 5.882352941
A209: Humanitarian Protection | B209: 0 | C209: 0
A210: Refugee Status | B210: 0 | C210: 0
A211: Discretionary leave - trafficking | B211: 0 | C211: 0
A212: DDV Concession | B212: 16 | C212: 6.722689076
A213: Over-stayer / Deception / Breach - asylum claimed 'no' | B213: 58 | C213: 24.3697479
A214: Over-stayer / Deception / Breach - asylum claimed 'yes' | B214: 10 | C214: 4.201680672
A215: In Country Asylum Seeker | B215: 1 | C215: 0.4201680672
A216: Illegal entrant - asylum claimed 'no' | B216: 5 | C216: 2.100840336
A217: Illegal entrant - asylum claimed 'yes' | B217: 15 | C217: 6.302521008
A218: Port Case | B218: 1 | C218: 0.4201680672
A219: British | B219: 1 | C219: 0.4201680672
A223: Immigration status adults - all referrals for the year | B223: Total | C223: Percentage | E223: Summary - adults referred - F/Y | F223: Number | G223: Percentage
A224: EEA nationals or EU residence rights - not granted EUSS | B224: 39 | C224: =100/166*B224 -> 23.4939759 | E224: EEA national or EU residence rights | F224: =B224+B225+B226 -> 51 | G224: =100/166*F224 -> 30.72289157
A225: Indefinite leave to remain (EU Settlement Scheme) | B225: 1 | C225: =100/166*B225 -> 0.6024096386 | E225: Leave to Remain (LTR) with NRPF | F225: =B230+B231 -> 12 | G225: =100/166*F225 -> 7.228915663
A226: Leave to remain (EU Settlement Scheme) | B226: 11 | C226: 6.626506024 | E226: No current immigration permission | F226: =B242+B239+B234 -> 46 | G226: 27.71084337
A227: Limited leave with recourse to public funds (10 year route) | B227: 1 | C227: 0.6024096386 | E227: Asylum seeker / asylum seeker ARE | F227: =B244+B241+B243+B240+B232 -> 40 | G227: 24.09638554
A228: Limited leave with recourse to public funds (following COC) | B228: 0 | C228: 0 | E228: Leave to Remain (LTR) with recourse | F228: =B236+B237+B238+B235+B233+B229+B228+B227 -> 16 | G228: 9.638554217
A229: Limited Leave with Recourse to Public Funds (other) | B229: 2 | C229: 1.204819277 | E229: British | F229: =B245 -> 1 | G229: 0.6024096386
A230: Limited leave with NRPF (10 year route) | B230: 4 | C230: 2.409638554
A231: Limited leave with NRPF (other) | B231: 8 | C231: 4.819277108
A232: UASC leave | B232: 0 | C232: 0
A233: Indefinite Leave | B233: 9 | C233: 5.421686747
A234: No record held by HO (non EEA) | B234: 22 | C234: 13.25301205
A235: Humanitarian Protection | B235: 1 | C235: 0.6024096386
A236: Refugee Status | B236: 2 | C236: 1.204819277
A237: Discretionary leave - trafficking | B237: 0 | C237: 0
A238: DDV Concession | B238: 1 | C238: 0.6024096386
A239: Over-stayer / Deception / Breach - asylum claimed 'no' | B239: 21 | C239: 12.65060241
A240: Over-stayer / Deception / Breach - asylum claimed 'yes' | B240: 20 | C240: 12.04819277
A241: In Country Asylum Seeker | B241: 0 | C241: 0
A242: Illegal entrant - asylum claimed 'no' | B242: 3 | C242: 1.807228916
A243: Illegal entrant - asylum claimed 'yes' | B243: 18 | C243: 10.84337349
A244: Port Case | B244: 2 | C244: 1.204819277
A245: British | B245: 1 | C245: 0.6024096386

Sheet Scotland
A1: Description - all local authorities 2020-2021 | B1: Q1 20/21 | C1: Q2 20/21 | D1: Q3 20/21 | E1: Q4 20/21
A2: Number of local authorities subscribing at end of quarter | B2: 3 | C2: 3 | D2: 3 | E2: 3
A3: Number of local authorities with data uploaded at end of quarter - all case types | B3: 2 | C3: 2 | D3: 2 | E3: 2
A4: Number of local authorities with data for family cases | B4: 2 | C4: 2 | D4: 2 | E4: 2
A5: Number of local authorities with data for adult cases | B5: 2 | C5: 2 | D5: 2 | E5: 1
A6: Number of local authorities with data for children / care leaver cases | B6: 1 | C6: 1 | D6: 0 | E6: 0
A10: Family cases | B10: Q1 20/21 | C10: Q2 20/21 | D10: Q3 20/21 | E10: Q4 20/21
A11: Number of financially supported households at end of quarter | B11: 24 | C11: 26 | D11: 22 | E11: 27
A12: Number of dependants of financially supported households at end of quarter | B12: 65 | C12: 68 | D12: 54 | E12: 72
A13: Total weekly spend for the cases supported at the end of the quarter | B13: 7382.11 | C13: 8230 | D13: 6194 | E13: 7382.11
A14: Average annual cost per case | B14: =B13*52/B11 -> 15994.57167 | C14: =C13*52/C11 -> 16460 | D14: 14640.36364 | E14: 14217.39704
A15: Average annual cost (weekly spend X 52) | B15: =B13*52 -> 383869.72 | C15: =C13*52 -> 427960 | D15: 322088 | E15: 383869.72
A16: Average number of days on support, cases open at end of quarter | B16: 503 | C16: 520 | D16: 521 | E16: 456
A17: Of Row 11 - Number that are non EEA and unresolved | B17: 15 | C17: 23 | D17: 18 | E17: 20
A18: Of Row 11 - EEA national or EEA family member / derivative rights | B18: 2 | C18: 1 | D18: 1 | E18: 4
A19: Of Row 11 - Number that are non EEA but have LTR with recourse | B19: 5 | C19: 2 | D19: 3 | E19: 3
A20: Of Row 17 - Number that are 1000 day cases | B20: 4 | C20: 4 | D20: 3 | E20: 2
A21: Of Row 18 - Number of 1000 day EEA national cases without 'settled status | B21: 0 | C21: 0 | D21: 0 | E21: 0
A22: Non EEA 1000 day cases, percentage of unresolved cohort (row 20 / row 17) | B22: 0.27 | C22: 0.17 | D22: 0.17 | E22: 0.1
A23: EEA 1000 day cases, percentage of unresolved cohort (row 21 / row 18) | B23: 0 | C23: 0 | D23: 0 | E23: 0
A24: Total number of referrals per quarter | B24: 5 | C24: 7 | D24: 4 | E24: 8
A25: Total number of new cases taken on for support within quarter | B25: 6 | C25: 7 | D25: 3 | E25: 9
A26: Total number of supported cases closed within quarter | B26: 2 | C26: 5 | D26: 7 | E26: 4
A30: Adult cases | B30: Q1 20/21 | C30: Q2 20/21 | D30: Q3 20/21 | E30: Q4 20/21
A31: Number of financially supported households at end of quarter | B31: 33 | C31: 37 | D31: 35 | E31: 35
A32: Total weekly spend for the cases supported at the end of the quarter | B32: 4230 | C32: 4713 | D32: 3751 | E32: 3750
A33: Average annual cost per case | B33: =B32*52/B31 -> 6665.454545 | C33: =C32*52/C31 -> 6623.675676 | D33: 5572.914286 | E33: 5571.428571
A34: Average annual cost (weekly spend X 52) | B34: =B32*52 -> 219960 | C34: =C32*52 -> 245076 | D34: 195052 | E34: 195000
A35: Average number of days on support, cases open at end of quarter | B35: 562 | C35: 565 | D35: 639 | E35: 780
A36: Of Row 31 - Number that are non EEA and unresolved | B36: 27 | C36: 33 | D36: 31 | E36: 31
A37: Of Row 31 - EEA national or EEA family member / derivative rights | B37: 3 | C37: 3 | D37: 3 | E37: 3
A38: Of Row 31 - Number that are non EEA but have LTR with recourse | B38: 3 | C38: 1 | D38: 1 | E38: 1
A39: Of Row 31 - Number that are 1000 day cases | B39: 7 | C39: 7 | D39: 4 | E39: 8
A40: Of Row 31 - Number of 1000 day EEA national cases without 'settled status | B40: 0 | C40: 0 | D40: 0 | E40: 0
A41: Non EEA 1000 day cases, percentage of unresolved cohort (row 39 / row 36) | B41: 0.26 | C41: 0.21 | D41: 0.13 | E41: 0.26
A42: EEA 1000 day cases, percentage of unresolved cohort (row 40 / row 37) | B42: 0 | C42: 0 | D42: 0 | E42: 0
A43: Total number of referrals per quarter | B43: 12 | C43: 9 | D43: 6 | E43: 5
A44: Total number of new cases taken on for support within quarter | B44: 14 | C44: 7 | D44: 1 | E44: 1
A45: Total number of supported cases closed within quarter | B45: 1 | C45: 3 | D45: 3 | E45: 1
A50: Looked after children and care leavers | B50: Q1 20/21 | C50: Q2 20/21 | D50: Q3 20/21 | E50: Q4 20/21
A51: Number of open cases at end of quarter | B51: 2 | C51: 2 | D51: 0 | E51: 0
A52: Of which under age of 18 | B52: 0 | C52: 0 | D52: 0 | E52: 0
A53: Of which aged 18-21 | B53: 0 | C53: 0 | D53: 0 | E53: 0
A54: Of which aged 21 and over | B54: 2 | C54: 2 | D54: 0 | E54: 0
A55: Of number of open cases (row 51), number financially supported | B55: 2 | C55: 2 | D55: 0 | E55: 0
A56: Total weekly spend for the cases financially supported at end of quarter | B56: 380 | C56: 376 | D56: 0 | E56: 0
A57: Average annual cost per case | B57: =B56/B55*52 -> 9880 | C57: =C56/C55*52 -> 9776 | D57: 0 | E57: 0
A58: Average annual cost (weekly spend X 52) | B58: =B56*52 -> 19760 | C58: =C56*52 -> 19552 | D58: 0 | E58: =E56*52 -> 0
A59: Total number of new cases recorded within the quarter | B59: 0 | C59: 0 | D59: 0 | E59: 0
A60: Total number of cases closed | B60: 0 | C60: 0 | D60: 0 | E60: 0
A70: Closure reason family and adult cases - all closures in the year | B70: Total | C70: Percentage
A71: EEA national - left the UK (LA Funded / self return) | B71: 0 | C71: =100/26*B71 -> 0
A72: Non-EEA national - left the UK (HO / LA funded) | B72: 0 | C72: 0
A73: Accessed Asylum Support | B73: 3 | C73: 11.53846154
A74: No longer eligible | B74: 8 | C74: 30.76923077
A75: EEA national / family member - accessed benefits / employment | B75: 0 | C75: 0
A76: Granted Leave to Remain | B76: =15 -> 15 | C76: =100/26*B76 -> 57.69230769
A92: Closure reason family cases - all closures in the year | B92: Total | C92: Percentage
A93: EEA national - left the UK (LA Funded / self return) | B93: 0 | C93: =100/18*B93 -> 0
A94: Non-EEA national - left the UK (HO / LA funded) | B94: 0 | C94: =100/18*B94 -> 0
A95: Accessed Asylum Support | B95: 2 | C95: 11.11111111
A96: No longer eligible | B96: 4 | C96: 22.22222222
A97: EEA national / family member - accessed benefits / employment | B97: 0 | C97: 0
A98: Granted Leave to Remain | B98: 12 | C98: 66.66666667
A114: Closure reason adult cases - all closures in the year | B114: Total | C114: Percentage
A115: EEA national - left the UK (LA Funded / self return) | B115: 0 | C115: =100/8*B115 -> 0
A116: Non-EEA national - left the UK (HO / LA funded) | B116: 0 | C116: =100/8*B116 -> 0
A117: Accessed Asylum Support | B117: 1 | C117: 12
A118: No longer eligible | B118: 1 | C118: 12
A119: Deceased | B119: 3 | C119: 37.5
A120: EEA national / family member - accessed benefits / employment | B120: 0 | C120: 0
A121: Granted Leave to Remain | B121: 3 | C121: 37.5
A136: Immigration status families - open cases as of 31 March 2021 | B136: Total | C136: Percentage | E136: Summary - families - 31 March 2021 | F136: Number | G136: Percentage
A137: EEA nationals or EU residence rights - not granted EUSS | B137: 3 | C137: =100/22*B137 -> 13.63636364 | E137: EEA national or EU residence rights | F137: =B137+B138+B139 -> 4 | G137: =100/22*F137 -> 18.18181818
A138: Indefinite leave to remain (EU Settlement Scheme) | B138: 0 | C138: =100/22*B138 -> 0 | E138: Leave to Remain (LTR) with NRPF | F138: =B143+B144 -> 0 | G138: 0
A139: Leave to remain (EU Settlement Scheme) | B139: 1 | C139: 4.545454545 | E139: No current immigration permission | F139: =B155+B152+B147 -> 5 | G139: 22.72727273
A140: Limited leave with recourse to public funds (10 year route) | B140: 3 | C140: 13.63636364 | E140: Asylum seeker / asylum seeker ARE | F140: =B157+B154+B156+B153+B145 -> 10 | G140: 45.45454545
A141: Limited leave with recourse to public funds (following COC) | B141: 0 | C141: 0 | E141: Leave to Remain (LTR) with recourse | F141: =B149+B150+B151+B148+B146+B142+B141+B140 -> 3 | G141: 13.63636364
A142: Limited Leave with Recourse to Public Funds (other) | B142: 0 | C142: 0 | E142: British | F142: =B158 -> 0 | G142: 0
A143: Limited leave with NRPF (10 year route) | B143: 0 | C143: 0
A144: Limited leave with NRPF (other) | B144: 0 | C144: 0
A145: UASC leave | B145: 0 | C145: 0
A146: No record held by HO (non EEA) | B146: 0 | C146: 0
A147: Humanitarian Protection | B147: 0 | C147: 0
A148: Refugee Status | B148: 0 | C148: 0
A149: Indefinite leave | B149: 0 | C149: 0
A150: Discretionary leave - trafficking | B150: 0 | C150: 0
A151: DDV Concession | B151: 0 | C151: 0
A152: Over-stayer / Deception / Breach - asylum claimed 'no' | B152: 5 | C152: 22.72727273
A153: Over-stayer / Deception / Breach - asylum claimed 'yes' | B153: 3 | C153: 13.63636364
A154: In Country Asylum Seeker | B154: 2 | C154: 9.090909091
A155: Illegal entrant - asylum claimed 'no' | B155: 0 | C155: 0
A156: Illegal entrant - asylum claimed 'yes' | B156: 5 | C156: 22.72727273
A157: Port Case | B157: 0 | C157: 0
A158: British | B158: 0 | C158: 0
A162: Adults - open cases as of 31 March 2021 | B162: Total | C162: Percentage | E162: Summary - adults - 31 March 2021 | F162: Number | G162: Percentage
A163: EEA nationals or EU residence rights - not granted EUSS | B163: 3 | C163: =100/35*B163 -> 8.571428571 | E163: EEA national or EU residence rights | F163: =B163+B164+B165 -> 3 | G163: =100/35*F163 -> 8.571428571
A164: Indefinite leave to remain (EU Settlement Scheme) | B164: 0 | C164: =100/35*B164 -> 0 | E164: Leave to Remain (LTR) with NRPF | F164: =B169+B170 -> 1 | G164: =100/35*F164 -> 2.857142857
A165: Leave to remain (EU Settlement Scheme) | B165: 0 | C165: 0 | E165: No current immigration permission | F165: =B181+B178+B173 -> 17 | G165: 48
A166: Limited leave with recourse to public funds (10 year route) | B166: 0 | C166: 0 | E166: Asylum seeker / asylum seeker ARE | F166: =B183+B180+B182+B179+B171 -> 14 | G166: 40
A167: Limited leave with recourse to public funds (following COC) | B167: 0 | C167: 0 | E167: Leave to Remain (LTR) with recourse | F167: =B175+B176+B177+B174+B172+B168+B167+B166 -> 0 | G167: 0
A168: Limited Leave with Recourse to Public Funds (other) | B168: 0 | C168: 0 | E168: British | F168: =B184 -> 0 | G168: 0
A169: Limited leave with NRPF (10 year route) | B169: 0 | C169: 0
A170: Limited leave with NRPF (other) | B170: 1 | C170: 2.857142857
A171: UASC leave | B171: 0 | C171: 0
A172: Indefinite Leave | B172: 0 | C172: 0
A173: No record held by HO (non EEA) | B173: 4 | C173: 11.42857143
A174: Humanitarian Protection | B174: 0 | C174: 0
A175: Refugee Status | B175: 0 | C175: 0
A176: Discretionary leave - trafficking | B176: 0 | C176: 0
A177: DDV Concession | B177: 0 | C177: 0
A178: Over-stayer / Deception / Breach - asylum claimed 'no' | B178: 11 | C178: 31.42857143
A179: Over-stayer / Deception / Breach - asylum claimed 'yes' | B179: 5 | C179: 14.28571429
A180: In Country Asylum Seeker | B180: 0 | C180: 0
A181: Illegal entrant - asylum claimed 'no' | B181: 2 | C181: 5.714285714
A182: Illegal entrant - asylum claimed 'yes' | B182: 7 | C182: 20
A183: Port Case | B183: 2 | C183: 5.714285714
A184: British | B184: 0 | C184: 0
A188: looked after children and care leavers - open cases as of 31 March 2021 | B188: Total | C188: Percentage | E188: Summary - LAC / CL - 31 March 21 | F188: Number | G188: Percentage
A189: EEA nationals or EU residence rights - not granted EUSS | E189: EEA national or EU residence rights
A190: Indefinite leave to remain (EU Settlement Scheme) | E190: Leave to Remain (LTR) with NRPF
A191: Leave to remain (EU Settlement Scheme) | E191: No current immigration permission
A192: Limited leave with recourse to public funds (10 year route) | E192: Asylum seeker / asylum seeker ARE
A193: Limited leave with recourse to public funds (following COC) | E193: Leave to Remain (LTR) with recourse
A194: Limited Leave with Recourse to Public Funds (other) | E194: British
A195: Limited leave with NRPF (10 year route)
A196: Limited leave with NRPF (other)
A197: UASC leave
A198: Indefinite Leave
A199: No record held by HO (non EEA)
A200: Humanitarian Protection
A201: Refugee Status
A202: Discretionary leave - trafficking
A203: DDV Concession
A204: Over-stayer / Deception / Breach - asylum claimed 'no'
A205: Over-stayer / Deception / Breach - asylum claimed 'yes'
A206: In Country Asylum Seeker
A207: Illegal entrant - asylum claimed 'no'
A208: Illegal entrant - asylum claimed 'yes'
A209: Port Case
A210: British
A214: Immigration status families - all referrals for the year | B214: Total | C214: Percentage | E214: Summary - families referred - F/Y | F214: Number | G214: Percentage
A215: EEA nationals or EU residence rights - not granted EUSS | B215: 0 | C215: =100/20*B215 -> 0 | E215: EEA national or EU residence rights | F215: =B215+B216+B217 -> 1 | G215: =100/20*F215 -> 5
A216: Indefinite leave to remain (EU Settlement Scheme) | B216: 0 | C216: =100/20*B216 -> 0 | E216: Leave to Remain (LTR) with NRPF | F216: =B221+B222 -> 1 | G216: =100/20*F216 -> 5
A217: Leave to remain (EU Settlement Scheme) | B217: 1 | C217: 5 | E217: No current immigration permission | F217: =B233+B230+B225 -> 6 | G217: 30
A218: Limited leave with recourse to public funds (10 year route) | B218: 2 | C218: 10 | E218: Asylum seeker / asylum seeker ARE | F218: =B235+B232+B234+B231+B223 -> 7 | G218: 35
A219: Limited leave with recourse to public funds (following COC) | B219: 1 | C219: 5 | E219: Leave to Remain (LTR) with recourse | F219: =B227+B228+B229+B226+B224+B220+B219+B218 -> 5 | G219: 25
A220: Limited Leave with Recourse to Public Funds (other) | B220: 1 | C220: 5 | E220: British | F220: =B236 -> 0 | G220: 0
A221: Limited leave with NRPF (10 year route) | B221: 1 | C221: 5
A222: Limited leave with NRPF (other) | B222: 0 | C222: 0
A223: UASC leave | B223: 0 | C223: 0
A224: Indefinite Leave | B224: 0 | C224: 0
A225: No record held by HO (non EEA) | B225: 1 | C225: 5
A226: Humanitarian Protection | B226: 0 | C226: 0
A227: Refugee Status | B227: 0 | C227: 0
A228: Discretionary leave - trafficking | B228: 0 | C228: 0
A229: DDV Concession | B229: 1 | C229: 5
A230: Over-stayer / Deception / Breach - asylum claimed 'no' | B230: 4 | C230: 20
A231: Over-stayer / Deception / Breach - asylum claimed 'yes' | B231: 1 | C231: 5
A232: In Country Asylum Seeker | B232: 2 | C232: 10
A233: Illegal entrant - asylum claimed 'no' | B233: 1 | C233: 5
A234: Illegal entrant - asylum claimed 'yes' | B234: 4 | C234: 20
A235: Port Case | B235: 0 | C235: 0
A236: British | B236: 0 | C236: 0
A240: Immigration status adults - all referrals for the year | B240: Total | C240: Percentage | E240: Summary - adults referred - F/Y | F240: Number | G240: Percentage
A241: EEA nationals or EU residence rights - not granted EUSS | B241: 1 | C241: =100/23*B241 -> 4.347826087 | E241: EEA national or EU residence rights | F241: =B241+B242+B243 -> 1 | G241: =100/23*F241 -> 4.347826087
A242: Indefinite leave to remain (EU Settlement Scheme) | B242: 0 | C242: =100/23*B242 -> 0 | E242: Leave to Remain (LTR) with NRPF | F242: =B247+B248 -> 1 | G242: =100/23*F242 -> 4.347826087
A243: Leave to remain (EU Settlement Scheme) | B243: 0 | C243: 0 | E243: No current immigration permission | F243: =B259+B256+B251 -> 11 | G243: 47.82608696
A244: Limited leave with recourse to public funds (10 year route) | B244: 0 | C244: 0 | E244: Asylum seeker / asylum seeker ARE | F244: =B261+B258+B260+B257+B249 -> 5 | G244: 21.73913043
A245: Limited leave with recourse to public funds (following COC) | B245: 0 | C245: 0 | E245: Leave to Remain (LTR) with recourse | F245: =B253+B254+B255+B252+B250+B246+B245+B244 -> 5 | G245: 21.73913043
A246: Limited Leave with Recourse to Public Funds (other) | B246: 2 | C246: 8.695652174 | E246: British | F246: =B262 -> 0 | G246: 0
A247: Limited leave with NRPF (10 year route) | B247: 0 | C247: 0
A248: Limited leave with NRPF (other) | B248: 1 | C248: 4.347826087
A249: UASC leave | B249: 0 | C249: 0
A250: Indefinite Leave | B250: 1 | C250: 4.347826087
A251: No record held by HO (non EEA) | B251: 3 | C251: 13.04347826
A252: Humanitarian Protection | B252: 1 | C252: 4.347826087
A253: Refugee Status | B253: 0 | C253: 0
A254: Discretionary leave - trafficking | B254: 0 | C254: 0
A255: DDV Concession | B255: 1 | C255: 4.347826087
A256: Over-stayer / Deception / Breach - asylum claimed 'no' | B256: 8 | C256: 34.7826087
A257: Over-stayer / Deception / Breach - asylum claimed 'yes' | B257: 1 | C257: 4.347826087
A258: In Country Asylum Seeker | B258: 0 | C258: 0
A259: Illegal entrant - asylum claimed 'no' | B259: 0 | C259: 0
A260: Illegal entrant - asylum claimed 'yes' | B260: 3 | C260: 13.04347826
A261: Port Case | B261: 1 | C261: 4.347826087
A262: British | B262: 0 | C262: 0

Sheet Sheet1
